Workbook

Sheet Title Page
B2: This version of the BTA spreadsheet was posted on | G2: 2017-06-05 | H2: =CONCATENATE(" (",TEXT(G2,"MMMM DD, YYYY)")) -> (June 05, 2017) | K2: © 2007-2017 Nurture New York’s Nature & Charles Komanoff
B4: W e l c o m e t o . . .
B6: The BTA (Balanced Transportation Analyzer) | K6: This version supersedes prior ones. Results may differ from previously published figures due to (i) updated baseline values (e.g., traffic volumes), (ii) alterations to algorithms, and/or (iii) revisions in parameters of plans being modeled (e.g., tolling levels).
B14: An integrated spreadsheet model to assess traffic improvements, revenue generation and other benefits of intelligent traffic-pricing in New York City | K14: Click for tutorial: why road pricing is key to curing traffic congestion
B18: Take these shortcuts to key modeling results (click the links)
B20: • Amazing graphic of costs and benefits of whatever toll plan the model is running.
B21: • Bar charts showing predicted revenues and possible uses of them.
B22: • Pie chart depicting those revenues, in somewhat greater detail.
B23: • If you want to switch to a different toll plan, click here.
B24: • Detailed results from the toll plan: traffic speeds, time savings, changes in car and transit use.
B25: • Pie-chart showing "mode shifts" for CBD trips due to the toll plan.
B26: • Pie-chart showing which boroughs and counties will pay least or most under the new tolls.
B27: • Index of all 71 "tabs" (pages) in this spreadsheet, with links to access them.
B28: • New worksheet tab parsing the rebound in CBD traffic congestion.
B29: • Expected delays and other costs from extra traffic if Amtrak is forced to close its cross-Hudson tunnel.
B32: ON THE WEB The BTA spreadsheet is Web-available via this link: <http://www.nnyn.org/kheelplan/BTA_1.1.xls> Since we are continually upgrading and updating the BTA, we encourage you to access the link often to ensure you're using a reasonably current version. (Note date stamp in top row of every page.) | G32: What's the CBD (Manhattan Central Business District)? The area which motor vehicles will be charged a fee to enter is Manhattan Island south of 60th Street. This 8.5-square mile zone, the commercial heart of New York City, is commonly known as the Manhattan Central Business District (CBD). See Cordon worksheet tab for fuller description, | L32: BTA in ''Wired" Magazine The June 2010 issue of "Wired" had an extensive article on the BTA by renowned financial blogger Felix Salmon. In clear and delightful prose, "The Man Who Could Unsnarl Manhattan Traffic" traces the intersection of Ted Kheel's and Charles Komanoff's lifelong transit advocacy and elucidates the ethical and pragmatic basis of congestion pricing: the social delay costs caused by each additional car trip into the Manhattan CBD. For full article, follow this link: <http://www.wired.com/magazine/2010/05/ff_komanoff_traffic/>
B39: Try Your Own Toll Plan Go to User Inputs worksheet ― it's the ninth "tab" in the list at the bottom of your screen, or click link to it in Table of Contents tab ― and follow directions there. See how traffic and revenue results for your toll plan compare with ours! | E39: How Up-to-Date is the model? This version of the BTA is largely baselined to 2015 data. This includes toll rates, traffic levels and a largely pre-Uber taxi sector. Thus, the proposed Move NY CBD tolls are set at $11.00 round-trip ($5.50 each way), rather than the $11.52/$5.76 level that went into effect in March 2017. At least as importantly, the most important transportation innovation in recent years -- the advent of app-based "transportation network companies" led by Uber -- isn't reflected in the model. Our FHV (for-hire vehicle) analysis assumes usage levels and fare-meter rates for yellow cabs just prior to the advent of Uber. We would love funding to enable us to update the model to 2017 conditions. Please contact us if you know of possible funding sources. Thanks.
L44: A "Macro" Is . . . ... a set of instructions embedded within the spreadsheet that "execute," on command, a particular calculation -- a "program within a program." When you opened the spreadsheet, you should have chosen the "Enable Macros" option. If you did not, please exit and reload the spreadsheet, selecting "Enable."
B51: Note: This spreadsheet requires Excel 2007 or later (PC) • or Excel 2008 or later (Mac) | L51: Important Note: Some older versions of Excel may default to a setting that cannot handle the mathematical interactivity built into the BTA, and will "return" circular values (perhaps indicated by #NUM values in some cells when you open the file). If that occurs, follow the 7 steps below.
B53: To learn more about the BTA, read text below. Feel free, however, to skip the rest of this worksheet (and the next half-dozen) and proceed to Results tab. There you can view traffic and revenue impacts of our various pricing scenarios, as well as your own.
L57: 1. Click Microsoft Office Button at left of top "ribbon."
B58: 1. Dual Purpose of the Balanced Transportation Analyzer | L58: 2. Click Excel Options at bottom of pop-up window.
B59: A. The BTA offers transportation planners, agency officials and advocates a transparent and straightforward tool for testing policy proposals for impacts on traffic levels, travel speeds, time spent traveling, agency revenues, emissions and other "externalities," and other key indicators. B. The model is specifically geared to analyize prospective new tolling arrangements, including the Move NY - Sam Schwartz 'Fair Tolling' plan. The "default" settings in the saved version you have downloaded reflect the Move NY plan, but you can also substitute your own tolls, if you wish. See instructions in text box above, "Try Your Own Toll Plan." | L59: 3. In left-hand column (near top), click Formulas.
L60: 4. In Calculation options section, select Enable iterative calculation check box.
L62: 5. Set maximum number of iterations to 100.
L63: 6. Set maximum change box to 0.001.
L64: 7. Press OK at the bottom.
L65: Why? The BTA is written dynamically and interactively. This requires Excel to be configured to feed cell outputs back into other cells. Otherwise, the BTA will return "circular formulas" with blank or incorrect results.
B66: 2. Unique Features of the BTA
B67: The Balanced Transportation Analyzer is the first publicly available software tool capturing the crucial transportation interactivities that characterize cities with a downtown core, and thus permitting robust evaluation of road and/or transit pricing proposals for such cities.
B70: Among the interactivities captured (reflected) in the BTA are:
B71: A. Relationships between the price (fare) to drive, use transit and take taxis, and usage of those modes.
B72: B. “Rebound effect” by which reduced auto use is tempered by trip growth from driving's reduced “time cost.”
B73: C. Mode-shifting between autos and transit, as changes in the price of one lead to changes in use of the other.
B74: D. Time-of-day shifting for both modes, via algorithms that capture the propensity of drivers and transit users to shift travel times to take advantage of lower tolls or fares.
B76: E. Changes in demand for transit service as traffic volumes, service quality and fare collection media change.
B78: For more about the origin and sponsorship of the BTA, click: | G78: More About BTA

Sheet Table of Contents
B1: Table of Contents | C1: ='Title Page'!G2 -> 2017-06-05
B3: The BTA has 71 worksheet "tabs," or "pages." Clicking on any linked tab takes you to that page.
B5: Linked tab or page | C5: Description
B6: Title Page | C6: Summarizes nature and purpose of the spreadsheet. Also includes links to particularly interesting and/or important tabs or graphics.
B7: Table of Contents | C7: (this page)
B8: About | C8: BTA origins, features, acknowledgments, contact info.
B9: Why | C9: Tutorial explaining logical underpinnings of congestion pricing: without it, drivers' trip-making decision-making can ignore delay costs caused by each trip.
B10: Flowchart | C10: Outlines key relationships among car/truck, taxi, subway and bus use that effectively define the BTA.
B11: Assumptions | C11: Catalogues several hundred key assumptions that drive the BTA, including elasticities, baseline costs to drive into the CBD, value of an hour of saved time, and more.
B12: Traffic Plans | C12: Summarizes some of the traffic-transit policy proposals developed using the BTA, including the current Move NY Plan, earlier Move NY plans, and Kheel-Komanoff precursors.
B13: Results | C13: Summarizes policy choices embodied in each traffic plan; shows impacts on traffic, transit usage, agency revenues, time lost in traffic, and other quality of life indicators.
B14: User Inputs | C14: Shows key parameters of certain scenarios, and enables users to test own scenarios.
B15: Cost-Benefit | C15: Reports monetized value of changes in traffic, travel and revenues predicted by any chosen plan.
B16: Revenues | C16: Estimates agency revenues associated with policies being modeled.
B17: Taxes Instead | C17: Estimates increases in sales or motor fuel tax rates that would be needed to collect the same net revenue as traffic-pricing.
B18: CBD Congestion | C18: Quantifies factors ― advent of app-based FHV's (Uber), installation of bicycle lanes, cheaper gasoline ― that could (and largely do) account for slowdown in CBD traffic speeds.
B19: MTA Crossings | C19: Calculates baseline revenues from MTA bridges and tunnels; estimates changes from cordon tolling and possible discounting of tolls on MTA bridges.
B20: Winners-Losers | C20: Estimates number of persons and/or trips that will be positively and/or negatively affected by the changes in travel prices and speeds under the plan chosen.
B21: Travel | C21: Estimates changes in number of persons expected to enter the CBD in cars, taxis, subways and buses.
B22: MV Condensed | C22: Abridged version of 'Motor Vs' worksheet tab, included as a tutorial to help BTA users vet the model's traffic-level inputs and its toll-revenue outputs.
B23: Motor Vs | C23: Calculates changes in motor vehicle traffic within and outside CBD as result of congestion tolls, new transit fares and related policies, and estimates resulting toll revenue.
B24: Data Flow | C24: Explicates key data inputs and processing in Motor Vs worksheet.
B25: Motor Vs Weekends | C25: Duplicates Motor Vs worksheet, for weekends (Saturdays, Sundays, Holidays).
B26: Distances | C26: Calculates mean driving distance for auto commuters to edge of Manhattan CBD. Also estimates mean distance between pairs of random points w/i the CBD.
B27: Approaches | C27: Estimates share of traffic on approach roads to CBD accounted for by cars and trucks that enter CBD and pay toll. Figures in traffic modeling in Motor Vs worksheets.
B28: Breakeven | C28: Compares time savings vs. toll payment for an individual commute trip into the CBD.
B29: Incidence | C29: Estimates toll-plan incidence by county; demonstrates graphically the impact of taxi surcharge on Manhattan's toll burden vis-à-vis boroughs and suburbs.
B30: Trucks | C30: Estimates mix of truck types that currently enter the CBD and calculates average ratio of truck-car tolls from axle-based truck toll schedule.
B31: Taxis | C31: Estimates impacts of cordon toll and possible taxi surcharges on use of yellow cabs, and feeds those results back to other BTA worksheets.
B32: Taxi Farecalcs | C32: Calculates before & after fares for a range of taxi trips in order to provide a more representative sample of fare impacts beyond the central-point example in the Taxis worksheet.
B33: TNC's | C33: Calculations of VMT and other critical parameters, within and outside CBD, for Transportation Network Companies (app-based ride services such as Uber and Lyft)
B34: Transit | C34: Estimates improvements in transit travel times from increased transit investment.
B35: Subways | C35: Calculates effects of any hour-by-hour "regime" of subway fares chosen by user; with over 400 rows and 40 columns, is BTA's transit workhorse.
B36: Subway v. Bus | C36: Develops algorithm for assigning new transit trips between subway and bus modes.
B37: Park-and-Ride | C37: Estimates the extent to which drivers might be expected to park outside the CBD and complete their journey to the CBD by subway, to avoid the congestion toll.
B38: Travel-Time Switching | C38: This text-only worksheet explains algorithms in Motor V's and Subways that estimate number of trips that will switch travel time in response to time-of-day tolling and subway fares.
B39: Buses | C39: Estimates impact of new pricing on bus service; also compiles number of buses and their passengers entering the CBD on weekdays.
B40: Bus Routes | C40: Apportions annual ridership on NYC Transit buses among the five boroughs.
B41: Bicycles | C41: (in formation) Will calculate mortality changes, street-space and delay costs, mode shifts, and traffic impacts of increased provision for bicycles.
B42: Bus Boarding | C42: Estimates time savings from fare-free boarding.
B43: Weekday Hours | C43: Estimates baseline 24-hour weekday divisions of CBD traffic and chooses hourly cordon tolls (user may vary). These specs go into traffic model in Motor Vs worksheet.
B44: Weekend Hours | C44: Estimates baseline 24-hour weekend divisions of CBD traffic and chooses hourly cordon tolls (user may vary). These specs go into traffic model in Motor Vs Weekends worksheet.
B45: Weekends | C45: Compiles hour-by-hour weekend traffic levels as percentages of weekday levels.
B46: Delays | C46: Estimates aggregate hours and minutes of vehicle-delay caused per each additional trip into the CBD.
B47: Delays Weekends | C47: Does same as Delays, for weekend vehicle traffic.
B48: Delay Costs | C48: Translates delay hours into delay dollars, based on our estimates of value of drivers' time in traffic.
B49: Speed-Vol., Cordon | C49: Presents mathematical relationships used in Motor Vs worksheet to translate changes in CBD traffic volumes due to tolling, into changes in traffic speeds within the CBD.
B50: Speed-Vol., non-Cordon | C50: Presents mathematical relationships used in Motor Vs worksheet to translate changes in non-CBD traffic volumes due to tolling, into changes in traffic speeds outside CBD.
B51: VMT | C51: Calculates and aggregates citywide reductions in vehicle miles traveled from new tolls and fares.
B52: Elasticities | C52: Compiles estimates of transit and motor vehicle "time" and "price" elasticities (i.e., measures of sensitivity of travel demand to travel times and prices) used in the model.
B53: Gini | C53: (Named for Italian economist Corrado Gini). Calculates extent to which time-based fare pricing flattens the uneven hour-by-hour profile of subway use.
B54: Cordon | C54: Estimates costs to build, operate and administer the cordon charging system. Also estimates lane-miles and public space "created" by reducing VMT within the CBD.
B55: Crashes | C55: Subdivides NYC crash data into geographical districts, and applies projected reductions in VMT for each to project reductions in fatalities and injuries.
B56: Emissions | C56: Calculates changes in emissions of CO2, Total Organic Gases, Carbon Monoxide, Nitrogen Oxides, and PM10 that are projected to result from toll and fare changes.
B57: EMFAC | C57: Displays outputs of EMFAC (Emission Factors model developed by the California Air Resources Board for a range of vehicle speeds and vehicle types.
B58: Speed-CO2 | C58: Calculates average CO2 emission rates as function of vehicle speed, based on empirical observations taken on freeways in California for range of traffic conditions.
B59: Fare Collection | C59: Estimates monetary savings from eliminating fares on NYC buses and subways.
B60: Parking | C60: Estimates baseline %'s of paid vs. free parking within CBD, for input into Motor Vs. Also estimates revenue gain from eliminating Manhattan residents' monthly-parking tax break.
B61: Parking Placards | C61: Estimates VMT and speed impacts of NYC's May 2017 decision to issue 50,000 new free-parking placards to teachers and other school staff.
B62: Hub-Bound | C62: Compiles data on motor vehicle entries into CBD on typical weekday, for use in Motor Vs and Traffic worksheets.
B63: Trip Price | C63: Calculates impact of cordon tolling on out-of-pocket cost for an average East River vehicle trip, and estimates resultant decrease in driving.
B64: H.I.S. | C64: (Household Interview Survey) Compiles data from NYMTC 1997-98 Household Interview Survey that informs some parameter estimates used in the model.
B65: Bridges | C65: Estimates before-and-after crossings at individual bridges and tunnels. Compiles other bridge/tunnel data used in other worksheets.
B66: Population & Employment | C66: Derives compound growth rates suitable for bringing 2004 travel data to 2007 baseline (not used currently).
B67: 40 Years On | C67: Makes 40-year revenue projections for congestion pricing plan selected in Results worksheet.
B68: Value of Time | C68: Derives our estimate of value of vehicle-hours saved in traffic through our proposed policies.
B69: Horses | C69: Specifies logistics of NYC's horse-drawn carriage industry, and parameters for estimating its impact on CBD traffic.
B70: Toll Rates | C70: Estimates effective toll rate for passenger car crossings each year. Also compiles annual employment data for Manhattan, for us in Regression worksheet.
B71: Constants | C71: Compiles several parameters that are used in more than one worksheet.
B72: FreshDirect | C72: Calculates delays to other road users due to use of highway, curb and street space by FreshDirect trucks delivering groceries to customers from its Long Island City depot.
B73: FreshDirect Bronx | C73: Calculates prospective delays to other road users due to use of highway, curb and street space by FreshDirect trucks delivering groceries from its proposed Harlem River Yards depot.
B74: New Ideas | C74: Policy/analytical exercises of possible interest that could be modeled with the BTA
B75: Regressions | C75: Displays results of earlier linear regression analysis by Komanoff that estimated price-elasticity of auto across East River.
B76: BTA 1.0 | C76: Summarizes this spreadsheet's predecessor: Version 1.0 of the Balanced Transportation Analyzer.

Sheet About
B1: About | H1: ='Title Page'!G2 -> 2017-06-05
B4: A. Sponsorship of the Balanced Transportation Analyzer
B6: Development of the BTA began in Sept. 2007 and continues today, under the auspices of The Nurture New York Foundation (NNF), a non-profit founded by Theodore (Ted) Kheel (May 9, 1914 - Nov. 12, 2010).
B8: to learn about Ted's illustrious career → | F8: http://bit.ly/z3pjUx
B9: to learn about Nurture NY's Nature → | F9: http://www.nnyn.org
B10: for Charles Komanoff's eulogy to Ted → | F10: http://bit.ly/cWuexa
B11: Lead developer of the BTA is Charles Komanoff → | F11: for information about Komanoff
B13: B. A prior version of the Balanced Transportation Analyzer (BTA 1.0) …
B15: supported NNYN's Jan. 2008 report, "Balancing Free Transit and Congestion Pricing in New York City":
B16: http://www.nnyn.org/kheelplan/Full%20Kheel%20Report%20for%20web%20_%2023%20Jan%202008.pdf
B17: Version 1.0 is superseded by this Version 1.1. The last worksheet tab of this spreadsheet has instructions to access BTA 1.0.
B19: C. BTA 1.1 improves upon Version 1.0 with these features:
B21: (i) time-of-day cordon pricing (seven different weekday time periods and tolls replace the confining one-price-fits-all assumption in BTA 1.0);
B23: (ii) time-of-day subway fares -- a possible means to improve capacity utilization and avoid worsened crowding from congestion pricing's conversion of some auto trips to transit trips;
B25: (iii) explicit treatment of weekends/holidays for autos, transit and taxis;
B26: (iv) explicit modeling of intra-CBD travel;
B27: (v) improved modeling of speed-volume relationships (which translate reduced vehicle volumes to improvements in motor vehicle speeds);
B29: (vi) ability to adjust baseline traffic volumes to reflect possible deviations from pre-toll traffic levels, including possible return to pre-recession levels;
B31: (vii) full specification of medallion taxicabs as an autonomous travel mode alongside autos and transit;
B32: (viii) separate "levers" to vary the three elements of medallion taxi fare: "drop," per-mile charge, and wait-time charge for crawling along in congested traffic;
B34: (ix) separate "levers" to vary truck tolls according to the number of axles.
B35: (x) feedback of traffic impacts into mode choice which then further affects traffic impacts;
B36: (xi) estimation of changes in the number of people (as opposed to vehicles) entering the CBD;
B37: (xii) approximation of a relationship between increased capital investment in transit and reduced transit trip times, allowing dedication of toll revenues to transit investment to be translated into increased transit use and revenue;
B39: (xiii) specification of relationship between toll increases and car occupancies (carpooling);
B40: (xiv) ability to model policy options involving (i) means-tested toll discounts and/or (ii) waiving the toll on each vehicle's first E-ZPass paid toll for CBD bound trips, that month;
B42: (xv) ability to test whether park-and-ride commuters will flood gateway neighborhoods to the CBD;
B44: D. Acknowledgments
B46: Much of the mathematics, programming, trouble-shooting and debugging of the BTA was performed by physicist Deena M. Patel, PhD, and computer scientist Will Fisher. Many key elements, including emissions calculations, delay estimation, and speed-volume relationships, are their handiwork. Urban planner Josef Szende quantified means-tested tolling impacts and costs and played a big part in analyzing transit upgrades. Other major contributions were made by transportation planner Ed Pike, mathematician Howard Shaw, PhD and programmer Michael J. Smith. Spreadsheet architect Charles Komanoff also gratefully acknowledges the intellectual contributions of Michael Brown, George Haikalis, Brodie Hefner, David Jordan, Brian Ketcham, Carolyn Konheim, Gary Roth, Sam Schwartz, Prof. Ken Small, PhD, Jane Kheel Stanley, Vince Taylor, PhD, and Jeff Zupan.
B54: E. Contact Info
B56: Please send suggestions, comments & questions to Charles Komanoff <komanoff@gmail.com>.

Sheet Why
B1: Why? | C1: The Logical Underpinnings of Congestion Pricing (a brief tutorial) | H1: ='Title Page'!G2 -> 2017-06-05
B4: The text imprinted in the graphic at right distills the essence of the traffic "problem": although drivers going to or through congested areas are quite cognizant of traffic's impact on the time their own trip will take, they're largely heedless of the extent to which their trips slow down traffic at large. Indeed, drivers have no need to ponder the "time costs" their trips impose on others, since they are not charged for them.
B8: When traffic is light or even moderate, those time costs are generally modest -- my trip hardly slows down traffic, and there are so few other vehicles that any delays caused by my driving can't amount to much. But in the heavy traffic conditions that typify congested NYC roads -- especially in the Manhattan Central Business District and on the approaches to it -- those costs can be substantial.
B12: =CONCATENATE("In another part of this spreadsheet, the 'Delay Costs' page (tab), we estimate that a typical round-trip into and out of the CBD, from a distance of around ",ROUND('Motor Vs'!I106,0)," miles, slows down other road users -- cars, trucks, cabs, buses -- by an aggregate total of ",ROUND(MIN('Delay Costs'!D90:D94),0), " to ",ROUND(MAX('Delay Costs'!D90:D94),0), " hours. Yet no 'price signal' compels the would-be driver contemplating that car trip to factor those prospective delays into her or his decision.") -> In another part of this spreadsheet, the 'Delay Costs' page (tab), we estimate that a typical round-trip into and out of the CBD, from a distance of around 18 miles, slows down other road users -- cars, trucks, cabs, buses -- by an aggregate total of 3 to 4 hours. Yet no 'price signal' compels the would-be driver contemplating that car trip to factor those prospective delays into her or his decision.
B16: =CONCATENATE("Congestion pricing, or 'traffic pricing' broadly, is a way to 'close this loop.' It does so through toll charges that incentivize prospective trip-takers to take into account the delays their trips will "&"impose on others. This 'cost-internalization' will lead some trip-takers -- just how many depends on the toll level -- to switch their trips to different modes (transit, carpool, bike), to other destinations, or to "&"other times of the day or week. The resulting thinning of the traffic stream will improve traffic flow significantly (provided the toll is more than a token dollar or two). We estimate that for the ",Results!I26,", average speeds of car travel within the Manhattan Central Business District on weekdays will increase by ",100*ROUNDDOWN(Results!B18,2), "-",100*ROUNDUP(Results!B18,2), "%. Though the percentage gains in speeds outside the CBD (on the approaches) will be smaller, traffic volumes there are so great that the aggregate hours saved on trips that use the approaches but don't cross into " & "the CBD (and thus won't pay the toll) may even exceed the total time savings on trips going into or through the CBD.") -> Congestion pricing, or 'traffic pricing' broadly, is a way to 'close this loop.' It does so through toll charges that incentivize prospective trip-takers to take into account the delays their trips will impose on others. This 'cost-internalization' will lead some trip-takers -- just how many depends on the toll level -- to switch their trips to different modes (transit, carpool, bike), to other destinations, or to other times of the day or week. The resulting thinning of the traffic stream will improve traffic flow significantly (provided the toll is more than a token dollar or two). We estimate that for the Move NY - Gridlock Sam Fair Plan (2015), average speeds of car travel within the Manhattan Central Business District on weekdays will increase by 17-18%. Though the percentage gains in speeds outside the CBD (on the approaches) will be smaller, traffic volumes there are so great that the aggregate hours saved on trips that use the approaches but don't cross into the CBD (and thus won't pay the toll) may even exceed the total time savings on trips going into or through the CBD.
B25: =CONCATENATE("To see those time savings, go to the 'Results' page (it's several pages 'down' from this one). Our model estimates that, over the course of a year, the ",Results!I26," will save CBD trip-takers a total of ",ROUND(Results!R122,0), " million hours they now spend sitting in traffic, while another ",ROUND(Results!R123,0), " million hours will be saved by drivers on trips that use the approaches but don't enter the CBD. The monetary value of this saved time is around ",ROUND((Results!Q122+Results!Q123)/1000,0), " billion dollars a year, as can be seen elsewhere on that page.") -> To see those time savings, go to the 'Results' page (it's several pages 'down' from this one). Our model estimates that, over the course of a year, the Move NY - Gridlock Sam Fair Plan (2015) will save CBD trip-takers a total of 41 million hours they now spend sitting in traffic, while another 51 million hours will be saved by drivers on trips that use the approaches but don't enter the CBD. The monetary value of this saved time is around 2 billion dollars a year, as can be seen elsewhere on that page. | J25: Sachs' book was published in 1984, in German; an English edition followed in 1992 (Univ. of California Press). It is available via this link: <http://www.ucpress.edu/book.php?isbn=9780520068780>. The full (English) title is: For Love of the Automobile: Looking Back Into the History of Our Desires. Of the hundreds of books I've read on transport, cities and "automobility," it remains my favorite. Click this link <http://bit.ly/M9fRUk> to access my review in Kokopelli Notes in 1993. For my meditation on Sachs and the American scholar-activist-organizer Richard Grossman, published in Streetsblog in 2012, click: <http://bit.ly/XWED4U> -- C. Komanoff
B29: =CONCATENATE("The other big plus from congestion pricing in New York City will be generation of a large and reliable revenue stream that can be used to improve the city and region's transportation infrastructure. "&"We estimate that after paying for toll collection and other system costs, the ",Results!I26," will be able to provide at least $",ROUNDDOWN(Results!C18/1000,1)," billion to invest *each year* in improved subways, buses, rail and roads. These expenditures will revitalize mass transit, saving transit users an estimated ",ROUND(Results!R124,0), " million hours in travel time annually and drawing even more car trips off of the roads and into transit (thus contributing to the travel time savings noted in the prior paragraph). The improvements to the roads will " & "generate further road travel time savings that we haven't quantified here.") -> The other big plus from congestion pricing in New York City will be generation of a large and reliable revenue stream that can be used to improve the city and region's transportation infrastructure. We estimate that after paying for toll collection and other system costs, the Move NY - Gridlock Sam Fair Plan (2015) will be able to provide at least $1.4 billion to invest *each year* in improved subways, buses, rail and roads. These expenditures will revitalize mass transit, saving transit users an estimated 73 million hours in travel time annually and drawing even more car trips off of the roads and into transit (thus contributing to the travel time savings noted in the prior paragraph). The improvements to the roads will generate further road travel time savings that we haven't quantified here.

Sheet Flowchart
B1: Flowchart | E1: ='Title Page'!G2 -> 2017-06-05
B5: This worksheet sketches the key relationships among the four travel modes -- car/truck, taxi, subway and bus -- that are modeled in the BTA. This is done graphically, at right, and schematically, below.
B8: Below, for each vehicle category, we itemize the "agent" impacting its use (e.g., the cordon toll, or travel time savings due to it) and specify the direction (positive or negative) of the impact and its approximate magnitude.
B11: "Strength of effect" is approximate. It is meant to reflect not only the elasticities (which are shown in the Elasticities worksheet), but also the magnitude of the agents (tolls, fares, etc.) assumed in both the 2011 Move NY Plan and the 2015 Move NY - Sam Schwartz Plan, as outlined in the Traffic Plans worksheet.
B15: Example: for car and truck trips, we assume a larger time-elasticity than price-elasticity; thus, a 10% reduction in travel time would generate a greater percentage increase in car trips than would a 10% reduction in trip cost. Nevertheless, the impact of tolls in almost any NYC cordon toll plan exceeds the "rebound effect" of faster travel; this is because the tolls would raise the average price of CBD-bound trips by a greater percent than the time savings would reduce the same trips' travel times.
B21: How Key Parameters (Agents) Affect Mode Choice and Magnitudes (Volumes) in the Balanced Transportation Analyzer
B24: Note: "Transit" denotes subway and bus service.
D25: Direction of effect (negative or positive) | E25: Strength of effect (large, medium or small)
B26: Dependent Variable (the quantity affected by the agent)
C27: Agent (operates on and affects the dependent variable) | F27: Interpretation/Explanation
B29: Car and truck trips to CBD | C29: Cordon toll on cars and trucks | D29: Negative | E29: Large | F29: CBD tolls have big impact on number of trips.
C30: Travel time savings because cordon toll has cut traffic | D30: Positive | E30: Medium | F30: Speed gains make car travel more attractive.
C31: Improved and/or cheaper transit service | D31: Negative | E31: Small-Medium | F31: Better transit attracts some trips from cars, but not a lot.
C32: More taxi medallions (yellow cabs) | D32: Negative | E32: Small | F32: More medallions add to CBD gridlock, making car travel less attractive.
B34: Yellow cab (taxi) trips | C34: Taxi fare surcharge | D34: Negative | E34: Small | F34: Taxi use is much less price-elastic than car use.
C35: Cordon toll on cars and trucks | D35: Positive | E35: Small | F35: Higher entrance fees for cars make taxis more attractive, but effect is small.
C36: Travel time savings because cordon toll has cut traffic | D36: Positive | E36: Medium | F36: Taxi users are time-sensitive; higher speeds from cordon tolls will result in more trips.
C37: Improved and/or cheaper transit service | D37: Negative | E37: Small | F37: Better transit attracts some trips from taxis, but not a lot.
C38: More taxi medallions (yellow cabs) | D38: Either | E38: Small | F38: More medallions cut "hail time" but also make taxi rides take longer; net impact depends on particulars, but is probably minor.
B40: Subway trips | C40: Fare reductions (financed by cordon toll and taxi surcharge) | D40: Positive | E40: Small | F40: Transit use isn't very price-elastic.
C41: Cordon toll on cars and trucks | D41: Positive | E41: Small | F41: Higher entrance fees for cars make transit more attractive, but effect is small.
C42: Travel time savings from subway service improvements | D42: Positive | E42: Medium | F42: Transit use is relatively time-sensitive; better service attracts trips.
C43: More taxi medallions (yellow cabs) | D43: Positive | E43: Small | F43: More medallions add to CBD gridlock, making car travel less attractive vis-à-vis subways.
B45: Bus trips | C45: Fare reductions (financed by cordon toll and taxi surcharge) | D45: Positive | E45: Small | F45: Transit use isn't very price-elastic.
C46: Cordon toll on cars and trucks | D46: Positive | E46: Small | F46: Higher entrance fees for cars make transit more attractive, but effect is small.
C47: Travel time savings from bus service improvements | D47: Positive | E47: Medium | F47: Transit use is relatively time-sensitive; better service attracts trips.
C48: More taxi medallions (yellow cabs) | D48: Negative | E48: Small | F48: More medallions add to CBD gridlock, making bus travel less attractive.
B50: Timing of car/truck trips to CBD | C50: Higher toll for one time period vis-à-vis prior or next period | D50: Negative | E50: Small | F50: Not many drivers will switch travel time to take advantage of a lower toll.
B52: Timing of subway trips to CBD | C52: Higher fare for one time period vis-à-vis prior or next period | D52: Negative | E52: Small | F52: Not many drivers will switch travel time to take advantage of a lower toll.

Sheet Assumptions
B1: Assumptions | I1: ='Title Page'!G2 -> 2017-06-05 | L1: =ROW() -> 1
L2: =ROW() -> 2
L3: =ROW() -> 3
B4: This worksheet collects key assumptions that drive the BTA. It was largely prepared in 2011 and hasn't been fully updated since. | L4: =ROW() -> 4
L5: =ROW() -> 5
B6: The assumptions here are linked from but not to the assumptions in the various worksheet tabs. Changing figures in this worksheet will not change the values of any calculations in or results from the BTA. | L6: =ROW() -> 6
L7: =ROW() -> 7
L8: =ROW() -> 8
B9: This list of assumptions follows the sequence of the worksheet tabs. Where worksheets have been skipped, either their key assumptions have been treated elsewhere in this sheet, or they were considered peripheral and were omitted. | L9: =ROW() -> 9
L10: =ROW() -> 10
L11: =ROW() -> 11
B12: =CONCATENATE("Rather than scroll through this long (",MAX(L1:L10100), " rows) worksheet, click on any link below to be taken directly to that section.") -> Rather than scroll through this long (789 rows) worksheet, click on any link below to be taken directly to that section. | L12: =ROW() -> 12
L13: =ROW() -> 13
B14: Results & User Inputs | L14: =ROW() -> 14
B15: Revenues | L15: =ROW() -> 15
B16: Cost-Benefit | L16: =ROW() -> 16
B17: Travel | L17: =ROW() -> 17
B18: Motor Vs & Motor Vs Weekends | L18: =ROW() -> 18
B19: Incidence | L19: =ROW() -> 19
B20: Trucks | L20: =ROW() -> 20
B21: Taxis | L21: =ROW() -> 21
B22: Transit | L22: =ROW() -> 22
B23: Subways | L23: =ROW() -> 23
B24: Subway vs. Bus | L24: =ROW() -> 24
B25: Buses | L25: =ROW() -> 25
B26: Weekday Hours & Weekend Hours | L26: =ROW() -> 26
B27: Weekends | L27: =ROW() -> 27
B28: Speed-Volume, Cordon | L28: =ROW() -> 28
B29: Speed-Volume, non-Cordon | L29: =ROW() -> 29
B30: VMT | L30: =ROW() -> 30
B31: Elasticities | L31: =ROW() -> 31
B32: Cordon | L32: =ROW() -> 32
B33: Emissions | L33: =ROW() -> 33
B34: Parking | L34: =ROW() -> 34
B35: Value of Time | L35: =ROW() -> 35
L36: =ROW() -> 36
B37: Results • User Inputs | L37: =ROW() -> 37
L38: =ROW() -> 38
B39: Assumptions that are inputted into the Results and User Inputs worksheet tabs are not shown here. Those "input assumptions" pertain to the particular traffic scenarios that we have pre-programmed into the model (which users are free to modify). Rather, the assumptions annotated here are those that take the input assumptions (tolls, transit fares, etc.) and calculate the changes in traffic, revenues and emissions that those inputs will bring about. | L39: =ROW() -> 39
L40: =ROW() -> 40
L41: =ROW() -> 41
L42: =ROW() -> 42
L43: =ROW() -> 43
B44: Revenues | L44: =ROW() -> 44
L45: =ROW() -> 45
B46: =CONCATENATE("Toll revenues for MTA bridges and tunnels are based on April 2015 projections prepared by the Authority's consultant, and are shown in Rows ",'MTA Crossings'!AL235, "-",'MTA Crossings'!AL280, " of 'MTA Crossings' tab, along with discounts specified in 'User Inputs', Rows ",'User Inputs'!O86, "-",'User Inputs'!O97, ".") -> Toll revenues for MTA bridges and tunnels are based on April 2015 projections prepared by the Authority's consultant, and are shown in Rows 235-280 of 'MTA Crossings' tab, along with discounts specified in 'User Inputs', Rows 86-97. | L46: =ROW() -> 46
L47: =ROW() -> 47
B48: =CONCATENATE("Toll impacts, including windfalls from incrs'd throughput if MTA bridge tolls are discounted, are shown in Rows ",'MTA Crossings'!AL283, "-",'MTA Crossings'!AL429, " of 'MTA Crossings' tab.") -> Toll impacts, including windfalls from incrs'd throughput if MTA bridge tolls are discounted, are shown in Rows 283-429 of 'MTA Crossings' tab. | L48: =ROW() -> 48
B49: Percentage of George Washington Bridge crossings and toll revenues that eventually enter CBD: | I49: =Revenues!N145 -> 0 | L49: =ROW() -> 49
B50: =CONCATENATE("Is given in Cell N",Revenues!Q145,". Affects estimate of PANYNJ lost revenues if cordon toll is additive to existing tolls (i.e., no rebate).") -> Is given in Cell N145. Affects estimate of PANYNJ lost revenues if cordon toll is additive to existing tolls (i.e., no rebate). | L50: =ROW() -> 50
L51: =ROW() -> 51
B52: Cost-Benefit | L52: =ROW() -> 52
L53: =ROW() -> 53 | N53: ='Cost-Benefit'!O785 -> 0
B54: =CONCATENATE("The Cost-Benefit worksheet, now ",MAX('Cost-Benefit'!O694,'Cost-Benefit'!O1504), " rows long, derives estimates of important social-cost indicators but is not essential to the architecture of the BTA. It is also exhaustively referenced. Accordingly, only a handful of key assumptions are shown here. ") -> The Cost-Benefit worksheet, now 694 rows long, derives estimates of important social-cost indicators but is not essential to the architecture of the BTA. It is also exhaustively referenced. Accordingly, only a handful of key assumptions are shown here. | L54: =ROW() -> 54
L55: =ROW() -> 55
L56: =ROW() -> 56
B57: Average value of a vehicle-hour saved in traffic (these values are used to monetize time savings from cordon tolls) | L57: =ROW() -> 57
B58: Weekdays, within CBD (derived via matrix of values est'd for autos, taxis, trucks, etc. in Value of Time wksht) | I58: ='Value of Time'!M90 -> 44.81038999 | L58: =ROW() -> 58
B59: Factors to adjust weekday time value to weekends, and in-CBD to outside-CBD (Komanoff assumptions) | L59: =ROW() -> 59
B60: Weekends vs. Weekdays | D60: =CONCATENATE("Shown in Cost-Ben tab, Row ",'Cost-Benefit'!O124, ".") -> Shown in Cost-Ben tab, Row 124. | I60: ='Cost-Benefit'!M124 -> 0.6 | L60: =ROW() -> 60
B61: Out-CBD hour vs. Inside | D61: =CONCATENATE("Shown in Cost-Ben tab, Row ",'Cost-Benefit'!O125, ".") -> Shown in Cost-Ben tab, Row 125. | I61: ='Cost-Benefit'!M125 -> 0.6666666667 | L61: =ROW() -> 61
B62: Out-CBD hr vs. In, for vans, trucks, rigs | E62: =CONCATENATE("From VOTime tab, Row ",'Value of Time'!O104, ".") -> From VOTime tab, Row 104. | I62: ='Value of Time'!D104 -> 0.9 | L62: =ROW() -> 62
B63: Weekends, within CBD | D63: =CONCATENATE("(Product of Rows ",L58, " and ",L60, ".)") -> (Product of Rows 58 and 60.) | I63: =I58*I60 -> 26.88623399 | L63: =ROW() -> 63
B64: Weekdays, approaches to CBD (same method as for Weekdays, above, though with different weighting of vehicles) | I64: ='Value of Time'!M126 -> 33.40991861 | L64: =ROW() -> 64
B65: Weekends, approaches to CBD (employs same approaches-to-CBD factor as for weekdays) | I65: =I64*I60 -> 20.04595117 | L65: =ROW() -> 65
L66: =ROW() -> 66
B67: Climate value of each metric ton of CO2 emissions averted through cordon toll | I67: 50 | L67: =ROW() -> 67
B68: Komanoff assumption. Note that U.S. gov't now uses value of $XX in cost-benefit analyses (citation TK). | L68: =ROW() -> 68
B69: Military and national-security cost reduction, per gallon of gasoline averted through toll | I69: ='Cost-Benefit'!L484/'Cost-Benefit'!L490 -> 0.174552359 | L69: =ROW() -> 69
B70: =CONCATENATE("Calculations are documented in 'Cost-Benefit' worksheet tab, Rows ",'Cost-Benefit'!O457, " through ",'Cost-Benefit'!O490, ".") -> Calculations are documented in 'Cost-Benefit' worksheet tab, Rows 457 through 490. | L70: =ROW() -> 70
B71: Air quality value of each metric ton PM10 emissions w/i CBD averted through cordon toll | I71: ='Cost-Benefit'!E546*'Cost-Benefit'!G546 -> 3588974.937 | L71: =ROW() -> 71
B72: =CONCATENATE("Calculations documented in 'Cost-Benefit' worksheet tab, Rows ",'Cost-Benefit'!O529, " through ",'Cost-Benefit'!O546, ". Is ",'Cost-Benefit'!G546, "x value assigned by Calif. Air Resources Board.") -> Calculations documented in 'Cost-Benefit' worksheet tab, Rows 529 through 546. Is 10x value assigned by Calif. Air Resources Board. | L72: =ROW() -> 72
B73: Gain in NYC bicycling's mode share (in % pts) that would be triggered by each 1% drop in traffic on city streeets | I73: =Bicycles!L213*(Bicycles!L211-Bicycles!L198) -> 0.001822117983 | L73: =ROW() -> 73
B74: =CONCATENATE("Calculations documented in 'Bicycles' worksheet tab, Rows ",Bicycles!O196, "-",Bicycles!O214, ". Underlying assumption is that eliminating NYC auto traffic on streets would cause cycling's mode share to rise to current urban levels in Germany, Denmark and Netherlands.") -> Calculations documented in 'Bicycles' worksheet tab, Rows 196-214. Underlying assumption is that eliminating NYC auto traffic on streets would cause cycling's mode share to rise to current urban levels in Germany, Denmark and Netherlands. | L74: =ROW() -> 74
L75: =ROW() -> 75
B76: Value of each life saved from reduced emissions or increased physical activity resulting from cordon toll | I76: =ROUND('Cost-Benefit'!I645*'Cost-Benefit'!I651,0) -> 4 | J76: million | L76: =ROW() -> 76
B77: =CONCATENATE("Derived in 'Cost-Benefit' tab, Rows ",'Cost-Benefit'!O645, " through ",'Cost-Benefit'!O653, ".") -> Derived in 'Cost-Benefit' tab, Rows 645 through 653. | L77: =ROW() -> 77
L78: =ROW() -> 78
B79: Travel | L79: =ROW() -> 79
L80: =ROW() -> 80
B81: Auto occupancies for trips to CBD | L81: =ROW() -> 81
B82: Work | I82: =Travel!G89 -> 1.15 | L82: =ROW() -> 82
B83: Non-work | I83: =Travel!G90 -> 1.5 | L83: =ROW() -> 83
B84: Through trips | I84: =Travel!G91 -> 1.294521293 | L84: =ROW() -> 84
B85: =CONCATENATE("First two figures are shown in Rows ",Travel!P89, "-",Travel!P90, ", but are taken from 'H.I.S.' worksheet, Row ",H.I.S.!Z127, ". Third is weighted avg of those two.") -> First two figures are shown in Rows 89-90, but are taken from 'H.I.S.' worksheet, Row 127. Third is weighted avg of those two. | L85: =ROW() -> 85
B86: Vehicle-occupancy elasticities (VOE) (a parameter used to translate increased trip costs into increased carpooling) | L86: =ROW() -> 86
B87: Work | C87: VOE was defined in a paper by Graham et al. cited in Travel worksheet. A value of negative 0.10 was used in a related paper co-authored by Graham and also cited there. We use that value for non-work trips but halve it for work trips to reflect greater difficulty of car-pooling for work trips. For through trips we take average of work and non-work trips. | I87: =Travel!G258 -> -0.05 | L87: =ROW() -> 87
B88: Non-work | I88: =Travel!H258 -> -0.1 | L88: =ROW() -> 88
B89: Through trips | I89: =Travel!I258 -> -0.075 | L89: =ROW() -> 89
L90: =ROW() -> 90
B91: Motor Vs • Motor Vs Weekends | E91: =CONCATENATE("(This section occupies the next ",L241 - L116+1, " rows.)") -> (This section occupies the next 126 rows.) | L91: =ROW() -> 91
L92: =ROW() -> 92
B93: There may be no more vital input parameter to the BTA than the number of car (and truck) trips into the Manhattan Central Business District (CBD) on weekdays. It is this figure (along with the toll charge itself) that will largely determine toll revenues from cordon pricing. (Note that the BTA counts medallion taxi crossings into the CBD separate from autos, since taxi entries may be subject to a different pricing form than the "straight" cordon charge.) | L93: =ROW() -> 93
L94: =ROW() -> 94
L95: =ROW() -> 95
L96: =ROW() -> 96
L97: =ROW() -> 97
B98: =CONCATENATE("In recent decades, a mantra that '800,000-850,000 cars enter the Manhattan CBD on weekdays' has entered the vocabulary of New Yorkers. The figure of ",INT(H124/1000), ",",H124-1000*INT(H124/1000), " appearing in Cell H",L124, " falls short of that iconic number by several hundred thousand. Here are three reasons why:") -> In recent decades, a mantra that '800,000-850,000 cars enter the Manhattan CBD on weekdays' has entered the vocabulary of New Yorkers. The figure of 562,300 appearing in Cell H124 falls short of that iconic number by several hundred thousand. Here are three reasons why: | L98: =ROW() -> 98
L99: =ROW() -> 99
L100: =ROW() -> 100
B101: =CONCATENATE("1. Many cordon-crossing trips -- an estimated ",INT('Motor Vs'!I72/1000), ",",ROUND('Motor Vs'!I72,0)-1000*INT('Motor Vs'!I72/1000), " on weekdays -- are the return legs of through-trips. While those trips are toll-eligible, the BTA treats them differently from ordinary cordon-crossing trips, due to different cost characteristics. Thus, the figure in Cell H",L124, " isn't directly comparable to the nominal 800-850 thousand vehicles entering the CBD.") -> 1. Many cordon-crossing trips -- an estimated 91,422 on weekdays -- are the return legs of through-trips. While those trips are toll-eligible, the BTA treats them differently from ordinary cordon-crossing trips, due to different cost characteristics. Thus, the figure in Cell H124 isn't directly comparable to the nominal 800-850 thousand vehicles entering the CBD. | L101: =ROW() -> 101
L102: =ROW() -> 102
L103: =ROW() -> 103
B104: =CONCATENATE("2. An estimated ",INT(H120/1000), ",000 trips are by medallion taxicabs. These too are treated separately from 'ordinary' vehicle crossings into the CBD.") -> 2. An estimated 68,000 trips are by medallion taxicabs. These too are treated separately from 'ordinary' vehicle crossings into the CBD. | L104: =ROW() -> 104
L105: =ROW() -> 105
B106: =CONCATENATE("3. Vehicle entries to the Manhattan CBD have fallen in recent years. The BTA is largely baselined to 2012-13; vehicle volumes in 2011 appear to have been roughly ",ROUND(2.5*INT(4*(E112-H112)/10000),0), ",000 less than in 2006, based on an analogous dataset of crossings into Manhattan maintained by NYCDOT shown in the box below (2012 data aren't yet available).") -> 3. Vehicle entries to the Manhattan CBD have fallen in recent years. The BTA is largely baselined to 2012-13; vehicle volumes in 2011 appear to have been roughly 48,000 less than in 2006, based on an analogous dataset of crossings into Manhattan maintained by NYCDOT shown in the box below (2012 data aren't yet available). | L106: =ROW() -> 106
L107: =ROW() -> 107
L108: =ROW() -> 108
E109: 2006 | F109: 2007 | G109: 2009 | H109: 2011 | I109: 2011 vs. 2006 | L109: =ROW() -> 109
B110: NYCDOT, "Manhattan River Crossings," 24-h volumes | D110: Inbound | E110: 955662 | F110: 956483 | G110: 923683 | H110: ='Weekday Hours'!C54 -> 903420 | L110: =ROW() -> 110
D111: Outbound | E111: 951456 | F111: 924335 | G111: 904382 | H111: ='Weekday Hours'!K54 -> 904827 | L111: =ROW() -> 111
D112: Avg, rounded | E112: =ROUND(AVERAGE(E110:E111),-2) -> 953600 | F112: =ROUND(AVERAGE(F110:F111),-2) -> 940400 | G112: =ROUND(AVERAGE(G110:G111),-2) -> 914000 | H112: =ROUND(AVERAGE(H110:H111),-2) -> 904100 | I112: =H112/E112-1 -> -0.05190855705 | L112: =ROW() -> 112
B113: =CONCATENATE("Taken together, the factors in Rows ",L101, "-",L108, " explain the lion's share of the discrepancy between the popular figure of 800,000-850,000 cars entering the Manhattan CBD on weekdays, and the BTA figure of ",INT(H124/1000), ",",H124-1000*INT(H124/1000), " appearing in Cell H",L124, ".") -> Taken together, the factors in Rows 101-108 explain the lion's share of the discrepancy between the popular figure of 800,000-850,000 cars entering the Manhattan CBD on weekdays, and the BTA figure of 562,300 appearing in Cell H124. | L113: =ROW() -> 113
L114: =ROW() -> 114
L115: =ROW() -> 115
B116: Daily vehicle trips into the Manhattan CBD (baseline, 2012) | H116: Weekdays | I116: Weekends | L116: =ROW() -> 116
B117: Auto trips for work that don't go through cordon | H117: =ROUND('Motor Vs'!I90,-2) -> 234500 | I117: =ROUND('Motor Vs Weekends'!I90,-2) -> 85400 | J117: =CONCATENATE("Note: These figures treat 'through-round-trips' -- trips that cross the CBD in connecting a non-CBD origin and destination, and then do the same on the return journey -- as one CBD trip, even though they will pay two tolls. See 'Motor Vehicles' tab, Rows ",'Motor Vs'!O42, "-",'Motor Vs'!O90, ".") -> Note: These figures treat 'through-round-trips' -- trips that cross the CBD in connecting a non-CBD origin and destination, and then do the same on the return journey -- as one CBD trip, even though they will pay two tolls. See 'Motor Vehicles' tab, Rows 42-90. | L117: =ROW() -> 117
B118: Same as above, not for work | D118: Figures reflect 2012 travel levels and are drawn primarily from NYMTC's "Hub-Bound Travel Report, 2012," with key data recorded in Hub-Bound worksheet. Some data are from H.I.S. and Taxi worksheets, and all were checked against Bruce Schaller's 2006 report for Transportation Alternatives, "Necessity or Choice? Why People Drive in Manhattan." | H118: =ROUND('Motor Vs'!J90,-2) -> 164900 | I118: =ROUND('Motor Vs Weekends'!J90,-2) -> 256100 | L118: =ROW() -> 118
B119: Thru trips by all vehicles | H119: =ROUND('Motor Vs'!K90,-2) -> 114300 | I119: =ROUND('Motor Vs Weekends'!K90,-2) -> 120000 | L119: =ROW() -> 119
B120: Taxicabs | H120: =ROUND('Motor Vs'!L90,-2) -> 68800 | I120: =ROUND('Motor Vs Weekends'!L90,-2) -> 69000 | L120: =ROW() -> 120
B121: Trucks | H121: =ROUND('Motor Vs'!M90,-2) -> 38200 | I121: =ROUND('Motor Vs Weekends'!M90,-2) -> 12700 | L121: =ROW() -> 121
B122: Buses | H122: =ROUND('Motor Vs'!N90,-2) -> 10400 | I122: =ROUND('Motor Vs Weekends'!N90,-1) -> 5200 | L122: =ROW() -> 122
B123: Total | D123: =CONCATENATE("Figures here are rounded from figures in both worksheets' Row ",'Motor Vs'!O90, ".") -> Figures here are rounded from figures in both worksheets' Row 90. | H123: =ROUND('Motor Vs'!H90,-2) -> 631100 | I123: =ROUND('Motor Vs Weekends'!H90,-2) -> 548400 | L123: =ROW() -> 123
B124: Total, less Taxicabs | H124: =H123-H120 -> 562300 | I124: =I123-I120 -> 479400 | L124: =ROW() -> 124
L125: =ROW() -> 125
B126: Percent of (non-taxi) auto trips to CBD on weekdays that are work trips: | I126: ='Motor Vs'!I58 -> 0.5870820187 | L126: =ROW() -> 126
B127: =CONCATENATE("Taken from 'Motor Vs' worksheet, Row ",'Motor Vs'!O58, ", but derived in H.I.S. worksheet, Row ",H.I.S.!Z130, ".") -> Taken from 'Motor Vs' worksheet, Row 58, but derived in H.I.S. worksheet, Row 130. | L127: =ROW() -> 127
B128: Percent of (non-taxi) auto trips to CBD on weekends that are work trips: | I128: ='Motor Vs Weekends'!I58 -> 0.25 | L128: =ROW() -> 128
B129: =CONCATENATE("Komanoff assumption entered in Row ",'Motor Vs Weekends'!O58, " of 'Motor Vs Weekends' tab.") -> Komanoff assumption entered in Row 58 of 'Motor Vs Weekends' tab. | L129: =ROW() -> 129
B130: Percent of car or truck thru-trips that return thru cordon (as opposed to bypassing CBD on return leg): | I130: ='Motor Vs'!I62 -> 0.8 | L130: =ROW() -> 130
B131: =CONCATENATE("Komanoff assumption entered in Row ",'Motor Vs'!O62, ", intended to capture 'toll-shopping' as well as presumed greater flexibility and range of through-trips.") -> Komanoff assumption entered in Row 62, intended to capture 'toll-shopping' as well as presumed greater flexibility and range of through-trips. | L131: =ROW() -> 131
B132: Ratio of trip mileage, CBD-through-trips to trips whose destination is CBD | I132: ='Motor Vs'!K100 -> 1.5 | L132: =ROW() -> 132
B133: =CONCATENATE("Komanoff assumption entered in Row ",'Motor Vs'!O100, ". See other columns, same row, for factors for trucks and buses.") -> Komanoff assumption entered in Row 100. See other columns, same row, for factors for trucks and buses. | L133: =ROW() -> 133
L134: =ROW() -> 134
B135: One-Way Trip Distances for trips into cordon (miles) | G135: Total Distance | H135: Non-CBD Part | I135: CBD Portion | L135: =ROW() -> 135
B136: Auto trips for work that don't go thru cordon | E136: =CONCATENATE("See 'Motor Vs' sheet, Rows ",'Motor Vs'!O98, "-", 'Motor Vs'!O106, ". Non-CBD Portions are derived in 'Distances' worksheet, by weighting auto-commuters to CBD (est'd in 2006 by B. Schaller) and driving distances from nearly 100 geographic entities.") -> See 'Motor Vs' sheet, Rows 98-106. Non-CBD Portions are derived in 'Distances' worksheet, by weighting auto-commuters to CBD (est'd in 2006 by B. Schaller) and driving distances from nearly 100 geographic entities. | G136: ='Motor Vs'!I106 -> 18.11418045 | H136: ='Motor Vs'!I98 -> 16.86418045 | I136: ='Motor Vs'!I104 -> 1.25 | L136: =ROW() -> 136
B137: Same as above, not for work | G137: ='Motor Vs'!J106 -> 18.11418045 | H137: ='Motor Vs'!J98 -> 16.86418045 | I137: ='Motor Vs'!J104 -> 1.25 | L137: =ROW() -> 137
B138: Thru trips by all vehicles | G138: ='Motor Vs'!K106 -> 26.89627068 | H138: ='Motor Vs'!K98 -> 25.29627068 | I138: ='Motor Vs'!K104 -> 1.6 | L138: =ROW() -> 138
B139: Taxicabs | G139: ='Motor Vs'!L106 -> 8 | H139: ='Motor Vs'!L98 -> 6 | I139: ='Motor Vs'!L104 -> 2 | L139: =ROW() -> 139
B140: Trucks | G140: ='Motor Vs'!M106 -> 15.4936206 | H140: ='Motor Vs'!M98 -> 12.4936206 | I140: ='Motor Vs'!M104 -> 3 | L140: =ROW() -> 140
B141: Buses | G141: ='Motor Vs'!N106 -> 19.32931094 | H141: ='Motor Vs'!N98 -> 17.32931094 | I141: ='Motor Vs'!N104 -> 2 | L141: =ROW() -> 141
B142: =CONCATENATE("CBD Portions for weekends are slightly higher than for wkdays for auto work + non-work trips. See factors in 'Motor Vs Weekends' tab, Row ",'Motor Vs Weekends'!O102, ".") -> CBD Portions for weekends are slightly higher than for wkdays for auto work + non-work trips. See factors in 'Motor Vs Weekends' tab, Row 102. | L142: =ROW() -> 142
L143: =ROW() -> 143
B144: Per-hour motor vehicle entries to Manhattan CBD (baseline = 2010) | L144: =ROW() -> 144
D145: Weekdays | L145: =ROW() -> 145
C146: Graveyard, 11 pm - 5 am | D146: ='Motor Vs'!G146 -> 9117.307716 | E146: =CONCATENATE("Figures here are derived through elaborate algorithms in 'Weekday Hours' and 'Weekend Hours' worksheets, with final calculations appearing in Row ",'Motor Vs'!O146, " of 'Motor Vs'. Sums, multiplied by hours, equal totals in Row ",L123, ".") -> Figures here are derived through elaborate algorithms in 'Weekday Hours' and 'Weekend Hours' worksheets, with final calculations appearing in Row 146 of 'Motor Vs'. Sums, multiplied by hours, equal totals in Row 123. | I146: Weekends | L146: =ROW() -> 146
C147: Morning pre-peak, 5 am - 6 am | D147: ='Motor Vs'!H146 -> 23421.68298 | H147: Graveyard, Midnight - 10 am | I147: ='Motor Vs Weekends'!G146 -> 13187.26314 | L147: =ROW() -> 147
C148: Morning peak, 6 am - 9 am | D148: ='Motor Vs'!I146 -> 43050.76493 | H148: Early Shoulder, 10 am - Noon | I148: ='Motor Vs Weekends'!H146 -> 24752.61617 | L148: =ROW() -> 148
C149: Morning post-peak, 9 am - 10 am | D149: ='Motor Vs'!J146 -> 39024.32382 | H149: Shoulder 1, Noon - 5 pm | I149: ='Motor Vs Weekends'!I146 -> 31723.80907 | L149: =ROW() -> 149
C150: Midday peak, 10 am - 2 pm | D150: ='Motor Vs'!K146 -> 29879.35589 | H150: Peak, 5 pm - 8 pm | I150: ='Motor Vs Weekends'!J146 -> 34375.42112 | L150: =ROW() -> 150
C151: P.M. peak, 2 pm - 8 pm | D151: ='Motor Vs'!L146 -> 33004.49873 | H151: Shoulder 2, 8 pm - 10 pm | I151: ='Motor Vs Weekends'!K146 -> 30252.84874 | L151: =ROW() -> 151
C152: P.M. post-peak, 8 pm - 11 pm | D152: ='Motor Vs'!M146 -> 22410.40466 | H152: Late Shoulder 2, 10 pm - Midnight | I152: ='Motor Vs Weekends'!L146 -> 22385.56501 | L152: =ROW() -> 152
L153: =ROW() -> 153
B154: Traffic-weighted avg speed for motor vehicles within Manhattan CBD, 6 am - 6 pm weekdays, mph | I154: ='Motor Vs'!K208 -> 8.999998694 | L154: =ROW() -> 154
B155: =CONCATENATE("Equals figure in 'Motor Vs' tab, Row ",'Motor Vs'!O208, ". See discussion in that worksheet, Rows ",'Motor Vs'!O198, " through ",'Motor Vs'!O211, ", which draws on 2009-10 NYCDOT data.") -> Equals figure in 'Motor Vs' tab, Row 208. See discussion in that worksheet, Rows 198 through 211, which draws on 2009-10 NYCDOT data. | L155: =ROW() -> 155
B156: Traffic-wghtd avg speed for motor veh's on approaches to Manhattan CBD, 6 am - 6 pm wkdays, mph | I156: ='Motor Vs'!K224 -> 18.22319786 | L156: =ROW() -> 156
B157: =CONCATENATE("Equals figure in 'Motor Vs' tab, Row ",'Motor Vs'!O224, ". See discussion in that worksheet, Rows ",'Motor Vs'!O216, " through ",'Motor Vs'!O226, ", which draws on data in 2007 PlaNYC report.") -> Equals figure in 'Motor Vs' tab, Row 224. See discussion in that worksheet, Rows 216 through 226, which draws on data in 2007 PlaNYC report. | L157: =ROW() -> 157
L158: =ROW() -> 158
B159: Average motor-vehicle speeds (baseline, 2009-10 for CBD, 2007 for Approaches) | L159: =ROW() -> 159
B160: Weekdays | F160: Weekends | L160: =ROW() -> 160
D161: CBD | E161: Approaches | L161: =ROW() -> 161
C162: Graveyard, 11 pm - 5 am | D162: ='Motor Vs'!G205 -> 20.90128601 | E162: ='Motor Vs'!G221 -> 55 | H162: CBD | I162: Approaches | L162: =ROW() -> 162
C163: Morning pre-peak, 5 am - 6 am | D163: ='Motor Vs'!H205 -> 19.83025414 | E163: ='Motor Vs'!H221 -> 41.71661413 | G163: Graveyard, Midnight - 10 am | H163: ='Motor Vs Weekends'!G205 -> 19.04037765 | I163: ='Motor Vs Weekends'!G221 -> 53.54914731 | L163: =ROW() -> 163
C164: Morning peak, 6 am - 9 am | D164: ='Motor Vs'!I205 -> 8.733627744 | E164: ='Motor Vs'!I221 -> 17.08277342 | G164: Early Shoulder, 10 am - Noon | H164: ='Motor Vs Weekends'!H205 -> 13.68496378 | I164: ='Motor Vs Weekends'!H221 -> 29.2870819 | L164: =ROW() -> 164
C165: Morning post-peak, 9 am - 10 am | D165: ='Motor Vs'!J205 -> 8.994870308 | E165: ='Motor Vs'!J221 -> 19.95891543 | G165: Shoulder 1, Noon - 5 pm | H165: ='Motor Vs Weekends'!I205 -> 9.996690852 | I165: ='Motor Vs Weekends'!I221 -> 21.10418867 | L165: =ROW() -> 165
C166: Midday peak, 10 am - 2 pm | D166: ='Motor Vs'!K205 -> 11.55979406 | E166: ='Motor Vs'!K221 -> 24.35628912 | G166: Peak, 5 pm - 8 pm | H166: ='Motor Vs Weekends'!J205 -> 8.694849563 | I166: ='Motor Vs Weekends'!J221 -> 19.17998539 | L166: =ROW() -> 166
C167: P.M. peak, 2 pm - 8 pm | D167: ='Motor Vs'!L205 -> 7.646184972 | E167: ='Motor Vs'!L221 -> 15.40951546 | G167: Shoulder 2, 8 pm - 10 pm | H167: ='Motor Vs Weekends'!K205 -> 11.01751113 | I167: ='Motor Vs Weekends'!K221 -> 25.30032892 | L167: =ROW() -> 167
C168: P.M. post-peak, 8 pm - 11 pm | D168: ='Motor Vs'!M205 -> 11.52990242 | E168: ='Motor Vs'!M221 -> 27.87252504 | G168: Late Shoulder 2, 10 pm - Midnight | H168: ='Motor Vs Weekends'!L205 -> 13.64221383 | I168: ='Motor Vs Weekends'!L221 -> 32.95566361 | L168: =ROW() -> 168
B169: =CONCATENATE("Weekday speeds in Rows ",L162, " through ",L168, " are calculated in 'Motor Vs' and 'Motor Vs Weekends' tabs so that (i) traffic-weighted average speeds equal averages in Rows ",L154, " and ",L156, ", and (ii) each period’s speed and traffic volume satisfy equations developed in 'Speed-Vol., Cordon and 'Speed-Vol., non-Cordon' tabs. Same applies to calculations of weekend speeds. Averages are harmonic, due to speed's inverse relationship to time.") -> Weekday speeds in Rows 162 through 168 are calculated in 'Motor Vs' and 'Motor Vs Weekends' tabs so that (i) traffic-weighted average speeds equal averages in Rows 154 and 156, and (ii) each period’s speed and traffic volume satisfy equations developed in 'Speed-Vol., Cordon and 'Speed-Vol., non-Cordon' tabs. Same applies to calculations of weekend speeds. Averages are harmonic, due to speed's inverse relationship to time. | L169: =ROW() -> 169
L170: =ROW() -> 170
L171: =ROW() -> 171
L172: =ROW() -> 172
L173: =ROW() -> 173
B174: Baseline costs for CBD-bound trips (round-trips, 2010-12) | L174: =ROW() -> 174
B175: Note: These costs, comprising fuel (gasoline) and parking, are the baseline relative to which proposed tolls will raise the total price of a CBD trip. The resulting percentage increases in the trip price will be "operated on" by the assumed price-elasticities to yield contractions (decreases) in the number of trips. The BTA specifies a set of 42 such costs -- one for each of 6 trip types in each of 7 trip periods -- for weekdays, and another 36 (6 x 6) for weekends. Below, we show the component costs for one trip type, work trips, for each of the 7 weekday periods. | L175: =ROW() -> 175
L176: =ROW() -> 176
L177: =ROW() -> 177
L178: =ROW() -> 178
L179: =ROW() -> 179
B180: Baseline Costs, Work Trips Only (weekdays) | L180: =ROW() -> 180
C181: ='Motor Vs'!P247 -> Graveyard | D181: ='Motor Vs'!Q247 -> A.M. Pre-peak | E181: ='Motor Vs'!R247 -> A.M. Peak | F181: ='Motor Vs'!S247 -> A.M. Post-peak | G181: ='Motor Vs'!T247 -> Midday Peak | H181: ='Motor Vs'!U247 -> P.M. Peak | I181: ='Motor Vs'!V247 -> P.M. Post-peak | L181: =ROW() -> 181
C182: ='Motor Vs'!P248 -> 11 p.m. - 5 a.m. | D182: ='Motor Vs'!Q248 -> 5 a.m. - 6 a.m. | E182: ='Motor Vs'!R248 -> 6 a.m. - 9 a.m. | F182: ='Motor Vs'!S248 -> 9 a.m. - 10 a.m. | G182: ='Motor Vs'!T248 -> 10 a.m. - 2 p.m. | H182: ='Motor Vs'!U248 -> 2 p.m. - 8 p.m. | I182: ='Motor Vs'!V248 -> 8 p.m. - 11 p.m. | L182: =ROW() -> 182
B183: Fuel | C183: ='Motor Vs'!P275 -> 4.905667736 | D183: ='Motor Vs'!Q275 -> 4.867359141 | E183: ='Motor Vs'!R275 -> 7.338622502 | F183: ='Motor Vs'!S275 -> 6.64990324 | G183: ='Motor Vs'!T275 -> 5.83675067 | H183: ='Motor Vs'!U275 -> 7.945545795 | I183: ='Motor Vs'!V275 -> 5.521785968 | L183: =ROW() -> 183
B184: Parking | C184: ='Motor Vs'!P276 -> 1.42 | D184: ='Motor Vs'!Q276 -> 4.24 | E184: ='Motor Vs'!R276 -> 14.92 | F184: ='Motor Vs'!S276 -> 18.78 | G184: ='Motor Vs'!T276 -> 17.32 | H184: ='Motor Vs'!U276 -> 10.89 | I184: ='Motor Vs'!V276 -> 6.34 | L184: =ROW() -> 184
B185: Existing Tolls | C185: ='Motor Vs'!P277 -> 2.381083173 | D185: ='Motor Vs'!Q277 -> 2.381083173 | E185: ='Motor Vs'!R277 -> 2.619299028 | F185: ='Motor Vs'!S277 -> 2.381083173 | G185: ='Motor Vs'!T277 -> 2.381083173 | H185: ='Motor Vs'!U277 -> 2.500191101 | I185: ='Motor Vs'!V277 -> 2.381083173 | L185: =ROW() -> 185
B186: Other* | C186: ='Motor Vs'!P278 -> 1.449134436 | D186: ='Motor Vs'!Q278 -> 2.898268872 | E186: ='Motor Vs'!R278 -> 2.898268872 | F186: ='Motor Vs'!S278 -> 2.898268872 | G186: ='Motor Vs'!T278 -> 2.898268872 | H186: ='Motor Vs'!U278 -> 2.898268872 | I186: ='Motor Vs'!V278 -> 2.898268872 | L186: =ROW() -> 186
B187: Total | C187: ='Motor Vs'!P274 -> 10.15588535 | D187: ='Motor Vs'!Q274 -> 14.38671119 | E187: ='Motor Vs'!R274 -> 27.7761904 | F187: ='Motor Vs'!S274 -> 30.70925529 | G187: ='Motor Vs'!T274 -> 28.43610272 | H187: ='Motor Vs'!U274 -> 24.23400577 | I187: ='Motor Vs'!V274 -> 17.14113801 | L187: =ROW() -> 187
B188: *Perceived cost of possible traffic or parking tickets, incremental maintenance, crash costs, etc. | L188: =ROW() -> 188
B189: =CONCATENATE("Each figure in matrix is product of calculations on subsidiary assumptions which may be traced via Rows ",'Motor Vs'!O240, " through ",'Motor Vs'!O278, " of 'Motor Vs' tab. Fuel costs vary by time of day due to differences in travel speeds which affect fuel economy. Slight variation in existing tolls reflects PANYNJ time-of-day tolls. Most critical item, parking, has its own eponymous worksheet tab.") -> Each figure in matrix is product of calculations on subsidiary assumptions which may be traced via Rows 240 through 278 of 'Motor Vs' tab. Fuel costs vary by time of day due to differences in travel speeds which affect fuel economy. Slight variation in existing tolls reflects PANYNJ time-of-day tolls. Most critical item, parking, has its own eponymous worksheet tab. | L189: =ROW() -> 189
L190: =ROW() -> 190
L191: =ROW() -> 191
L192: =ROW() -> 192
B193: Means-Tested Tolling's Impact (Reduxn) on Avg Cordon Toll (if applicable) | I193: ='Motor Vs'!B316 -> 0 | L193: =ROW() -> 193
B194: This figure reflects two assumptions: (i) that 12% of CBD-bound auto trips will qualify for means-tested discount from cordon toll, and (ii) that the discount will be set at 50%. First assumption reflects detailed geographic analysis by urban planner Josef Szende under supervision of C. Komanoff, predicated on discount being extended only to households with income no greater than $45,000 a year and located more than 1/4 mile from rail or express bus stop to CBD. Second assumption is by Komanoff. | L194: =ROW() -> 194
L195: =ROW() -> 195
L196: =ROW() -> 196
L197: =ROW() -> 197
L198: =ROW() -> 198
B199: Share of cordon-crossing trips assumed to be exempt from cordon toll | I199: ='Motor Vs'!J365 -> 0.025 | L199: =ROW() -> 199
B200: Komanoff assumption, intended to reflect disability, emergency personnel, and similar categories that might be exempted in enabling legislation. | L200: =ROW() -> 200
... 589 more rows

Sheet Traffic Plans
B1: Traffic Plans | N1: ='Title Page'!G2 -> 2017-06-05
B4: This page summarizes major traffic-transit policy proposals modeled in this spreadsheet ― the Balanced Transportation Analyzer (BTA).
B6: Note: Roman numerals used to designate these plans (I, II, etc.) do not correspond to sequence used in Results worksheeet tab.
B8: Click here for links to blog posts, press coverage and other commentary on some of the plans outlined here (and earlier plans advanced by Ted Kheel and Charles Komanoff).
B10: Plans outlined here (and pre-programmed in the Results worksheet tab): | AM10: $ values below are from User Inputs worksheet.
B11: I. Move NY Plan — conceived by former NYC DOT deputy commissioner Sam Schwartz ("Gridlock Sam")
B12: II. Move NY Plan, with Variable Toll Rates — same as I, except CBD tolls vary by time of day and week
B13: III. Bloomberg Plan (as modified by NYS Traffic Congestion Mitigation Commission), 2008
B14: IV. Baseline — not a plan, but a replica of current conditions, intended to ensure BTA is properly calibrated.
B15: V. Baseline w/ transit fare hikes paying for subway upgrades in MTA Capital Plan
B17: Sam Schwartz, former chief engineer and deputy commissioner of the NYC Dept of Transportation, and a champion of rational tolling for decades, has developed and is advocating this plan, with logistical support from the Move NY Campaign and analytical support from BTA creator Charles Komanoff. This plan has been referred to as the Move NY Plan since late 2012. The Move NY Plan envisions a constant $11.08 round-trip toll on E-ZPass-equipped automobiles entering the Manhattan Central Business District, charged every hour of the year. (The actual toll would be $5.54, charged in both directions, i.e., $5.54 entering and $5.54 leaving, for an effective round-trip cost of $11.08. Since the BTA architecture is organized around a cordon-fee, however, we model this as a $11.08 inbound toll.) A key feature of the Schwartz/Move NY Plan is its $5.00 round-trip discount on tolls currently charged on the MTA's four major bridges (and $2.00 discounts on the three "minor" bridges). The rationale is two-fold. First, none of those bridges feed directly into the Manhattan Central Business District; accordingly, their tolls should be less than tolls on crossings via tunnels, bridges and thoroughfares that funnel vehicles into the CBD and contribute greatly to costly traffic congestion (and that have serviceable transit alternatives). Second, offering reduced tolls on trips in car-dependent areas outside of Manhattan (i.e., in the "outer boroughs" and suburbs) may help win legislative support. Sam and Move NY are committed to including a significant medallion-taxi fare surcharge. This will ensure that the charging for congestion-causing trips encompasses yellow cab trips, which account for an estimated 40% of CBD traffic; and also that Manhattan residents, who account for an estimated 70% of medallion taxi users, pay a fair share of the increased driving charges. See next panel for details. | L17: I. Move NY Plan (a/k/a Fair Transportation Plan), developed by noted transportation engineer "Gridlock" Sam Schwartz | P17: Key Plan Policies | AK17: S | AL17: ='User Inputs'!E170 -> 2.75 | AM17: ='User Inputs'!F170 -> 2.75 | AN17: ='User Inputs'!G170 -> 2.75 | AO17: ='User Inputs'!H170 -> 2.75 | AP17: ='User Inputs'!I170 -> 2.75 | AQ17: ='User Inputs'!J170 -> 2.75
P18: • Cordon-Entry Auto Tolls: constant $11.08 round-trip ($15 cash) • Outer-Borough Bridge Tolls: reduced by $5.00 (round-trip) on major crossings • Medallion Taxis: Exempt from cordon toll but pay per-trip surcharge levied on "drop," per-mile and wait time charges • Truck tolls: Ramped up for >2 axles at TBTA rate • Transit Fares: $1 off express bus fares; extension of LIRR/Metro-North "City Ticket" discount for intracity fares to weekdays. | AL18: ='User Inputs'!E170 -> 2.75 | AM18: ='User Inputs'!F170 -> 2.75 | AN18: ='User Inputs'!G170 -> 2.75 | AO18: ='User Inputs'!H170 -> 2.75 | AP18: ='User Inputs'!I170 -> 2.75 | AQ18: ='User Inputs'!J170 -> 2.75
AK19: U | AL19: ='User Inputs'!E170 -> 2.75 | AM19: ='User Inputs'!F170 -> 2.75 | AN19: ='User Inputs'!G170 -> 2.75 | AO19: ='User Inputs'!H170 -> 2.75 | AP19: ='User Inputs'!I170 -> 2.75 | AQ19: ='User Inputs'!J170 -> 2.75
AL20: ='User Inputs'!E170 -> 2.75 | AM20: ='User Inputs'!F170 -> 2.75 | AN20: ='User Inputs'!G170 -> 2.75 | AO20: ='User Inputs'!H170 -> 2.75 | AP20: ='User Inputs'!I170 -> 2.75 | AQ20: ='User Inputs'!J170 -> 2.75
AK21: B | AL21: ='User Inputs'!E170 -> 2.75 | AM21: ='User Inputs'!F170 -> 2.75 | AN21: ='User Inputs'!G170 -> 2.75 | AO21: ='User Inputs'!H170 -> 2.75 | AP21: ='User Inputs'!I170 -> 2.75 | AQ21: ='User Inputs'!J170 -> 2.75
AL22: ='User Inputs'!E171 -> 2.75 | AM22: ='User Inputs'!F171 -> 2.75 | AN22: ='User Inputs'!G171 -> 2.75 | AO22: ='User Inputs'!H171 -> 2.75 | AP22: ='User Inputs'!I171 -> 2.75 | AQ22: ='User Inputs'!J171 -> 2.75
AK23: W | AL23: ='User Inputs'!E172 -> 2.75 | AM23: ='User Inputs'!F172 -> 2.75 | AN23: ='User Inputs'!G172 -> 2.75 | AO23: ='User Inputs'!H172 -> 2.75 | AP23: ='User Inputs'!I172 -> 2.75 | AQ23: ='User Inputs'!J172 -> 2.75
AL24: ='User Inputs'!E173 -> 2.75 | AM24: ='User Inputs'!F173 -> 2.75 | AN24: ='User Inputs'!G173 -> 2.75 | AO24: ='User Inputs'!H173 -> 2.75 | AP24: ='User Inputs'!I173 -> 2.75 | AQ24: ='User Inputs'!J173 -> 2.75
AK25: A | AL25: ='User Inputs'!E175 -> 2.75 | AM25: ='User Inputs'!F175 -> 2.75 | AN25: ='User Inputs'!G175 -> 2.75 | AO25: ='User Inputs'!H175 -> 2.75 | AP25: ='User Inputs'!I175 -> 2.75 | AQ25: ='User Inputs'!J175 -> 2.75
AL26: ='User Inputs'!E174 -> 2.75 | AM26: ='User Inputs'!F174 -> 2.75 | AN26: ='User Inputs'!G174 -> 2.75 | AO26: ='User Inputs'!H174 -> 2.75 | AP26: ='User Inputs'!I174 -> 2.75 | AQ26: ='User Inputs'!J174 -> 2.75
AK27: Y | AL27: ='User Inputs'!E172 -> 2.75 | AM27: ='User Inputs'!F172 -> 2.75 | AN27: ='User Inputs'!G172 -> 2.75 | AO27: ='User Inputs'!H172 -> 2.75 | AP27: ='User Inputs'!I172 -> 2.75 | AQ27: ='User Inputs'!J172 -> 2.75
AL28: ='User Inputs'!E172 -> 2.75 | AM28: ='User Inputs'!F172 -> 2.75 | AN28: ='User Inputs'!G172 -> 2.75 | AO28: ='User Inputs'!H172 -> 2.75 | AP28: ='User Inputs'!I172 -> 2.75 | AQ28: ='User Inputs'!J172 -> 2.75
L29: =CONCATENATE("To activate this plan in the BTA, go to 'Results' worksheet tab and enter '4' in Cell I",Results!$M$26, ".") -> To activate this plan in the BTA, go to 'Results' worksheet tab and enter '4' in Cell I26. | AL29: ='User Inputs'!E172 -> 2.75 | AM29: ='User Inputs'!F172 -> 2.75 | AN29: ='User Inputs'!G172 -> 2.75 | AO29: ='User Inputs'!H172 -> 2.75 | AP29: ='User Inputs'!I172 -> 2.75 | AQ29: ='User Inputs'!J172 -> 2.75
AK30: W | AL30: ='User Inputs'!E172 -> 2.75 | AM30: ='User Inputs'!F172 -> 2.75 | AN30: ='User Inputs'!G172 -> 2.75 | AO30: ='User Inputs'!H172 -> 2.75 | AP30: ='User Inputs'!I172 -> 2.75 | AQ30: ='User Inputs'!J172 -> 2.75
AL31: ='User Inputs'!E172 -> 2.75 | AM31: ='User Inputs'!F172 -> 2.75 | AN31: ='User Inputs'!G172 -> 2.75 | AO31: ='User Inputs'!H172 -> 2.75 | AP31: ='User Inputs'!I172 -> 2.75 | AQ31: ='User Inputs'!J172 -> 2.75
AK32: K | AL32: ='User Inputs'!E172 -> 2.75 | AM32: ='User Inputs'!F172 -> 2.75 | AN32: ='User Inputs'!G172 -> 2.75 | AO32: ='User Inputs'!H172 -> 2.75 | AP32: ='User Inputs'!I172 -> 2.75 | AQ32: ='User Inputs'!J172 -> 2.75
AL33: ='User Inputs'!E173 -> 2.75 | AM33: ='User Inputs'!F173 -> 2.75 | AN33: ='User Inputs'!G173 -> 2.75 | AO33: ='User Inputs'!H173 -> 2.75 | AP33: ='User Inputs'!I173 -> 2.75 | AQ33: ='User Inputs'!J173 -> 2.75
AK34: D | AL34: ='User Inputs'!E175 -> 2.75 | AM34: ='User Inputs'!F175 -> 2.75 | AN34: ='User Inputs'!G175 -> 2.75 | AO34: ='User Inputs'!H175 -> 2.75 | AP34: ='User Inputs'!I175 -> 2.75 | AQ34: ='User Inputs'!J175 -> 2.75
AL35: ='User Inputs'!E174 -> 2.75 | AM35: ='User Inputs'!F174 -> 2.75 | AN35: ='User Inputs'!G174 -> 2.75 | AO35: ='User Inputs'!H174 -> 2.75 | AP35: ='User Inputs'!I174 -> 2.75 | AQ35: ='User Inputs'!J174 -> 2.75
B36: The Sam Schwartz - Move NY plan outlined above assumes a uniform toll rate 24-7-365. This is dictated by two needs: to minimize "narrative complexity" as policymakers and the public learn of and react to the plan, and to match the (constant) toll structure for the two MTA tunnels that serve the CBD. As people acclimate to the plan, they tend to agree that it makes little sense to charge the same toll for a trip into the CBD at 3 a.m. as for one at 3 p.m. Aiming for a time when the Move NY Plan can be discussed in a more nuanced way, we have calculated time-varied CBD toll schedules that would raise the same net revenue as the constant $10.66 round-trip toll assumed above. One such schedule is shown in the graphs at right. We now use the rest of this space to discuss the medallion-taxi fare surcharges we have penciled in to the Move NY Plan (the same charges are assumed in both variants). These are: * 50¢ increase in "drop" charge, charged once per taxi trip (25¢ on weekends) * 20% increase in "wait time" charge (10% on weekends; charged only for time traveled south of 96th St.) * 15% increase in "per mile" charge (7.5% on weekends; charged only for miles traveled south of 96th St.) (Note that a greater wait time surcharge than per mile surcharge helps the taxi surcharge act as a "proxy" for a true congestion charge.) Under this arrangement, medallion taxis and other for-hire vehicles with GPS billing capability would not be charged a CBD entry (or exit) fee — the only vehicle class to be exempted. | L36: II. Move NY / "Gridlock" Sam Plan, with time-varied cordon tolls | P36: Key Plan Policies | AK36: A | AL36: ='User Inputs'!E172 -> 2.75 | AM36: ='User Inputs'!F172 -> 2.75 | AN36: ='User Inputs'!G172 -> 2.75 | AO36: ='User Inputs'!H172 -> 2.75 | AP36: ='User Inputs'!I172 -> 2.75 | AQ36: ='User Inputs'!J172 -> 2.75
P37: Same as shown above for Move NY Plan, except that cordon-entry toll is varied by time of day and between weekday and weekend. Tolls shown here were chosen to yield same approximate annual gross and net revenues as constant toll in Move NY Plan above. | AL37: ='User Inputs'!E171 -> 2.75 | AM37: ='User Inputs'!F171 -> 2.75 | AN37: ='User Inputs'!G171 -> 2.75 | AO37: ='User Inputs'!H171 -> 2.75 | AP37: ='User Inputs'!I171 -> 2.75 | AQ37: ='User Inputs'!J171 -> 2.75
AK38: Y | AL38: ='User Inputs'!E171 -> 2.75 | AM38: ='User Inputs'!F171 -> 2.75 | AN38: ='User Inputs'!G171 -> 2.75 | AO38: ='User Inputs'!H171 -> 2.75 | AP38: ='User Inputs'!I171 -> 2.75 | AQ38: ='User Inputs'!J171 -> 2.75
AL39: ='User Inputs'!E171 -> 2.75 | AM39: ='User Inputs'!F171 -> 2.75 | AN39: ='User Inputs'!G171 -> 2.75 | AO39: ='User Inputs'!H171 -> 2.75 | AP39: ='User Inputs'!I171 -> 2.75 | AQ39: ='User Inputs'!J171 -> 2.75
AK40: S | AL40: ='User Inputs'!E170 -> 2.75 | AM40: ='User Inputs'!F170 -> 2.75 | AN40: ='User Inputs'!G170 -> 2.75 | AO40: ='User Inputs'!H170 -> 2.75 | AP40: ='User Inputs'!I170 -> 2.75 | AQ40: ='User Inputs'!J170 -> 2.75
AK44: A | AL44: ='User Inputs'!E25 -> 0 | AM44: ='User Inputs'!F25 -> 0 | AN44: ='User Inputs'!G25 -> 5.5 | AO44: ='User Inputs'!H25 -> 11.08 | AP44: ='User Inputs'!I25 -> 5 | AQ44: ='User Inputs'!J25 -> 11.08
AL45: ='User Inputs'!E25 -> 0 | AM45: ='User Inputs'!F25 -> 0 | AN45: ='User Inputs'!G25 -> 5.5 | AO45: ='User Inputs'!H25 -> 11.08 | AP45: ='User Inputs'!I25 -> 5 | AQ45: ='User Inputs'!J25 -> 11.08
AK46: U | AL46: ='User Inputs'!E25 -> 0 | AM46: ='User Inputs'!F25 -> 0 | AN46: ='User Inputs'!G25 -> 5.5 | AO46: ='User Inputs'!H25 -> 11.08 | AP46: ='User Inputs'!I25 -> 5 | AQ46: ='User Inputs'!J25 -> 11.08
AL47: ='User Inputs'!E25 -> 0 | AM47: ='User Inputs'!F25 -> 0 | AN47: ='User Inputs'!G25 -> 5.5 | AO47: ='User Inputs'!H25 -> 11.08 | AP47: ='User Inputs'!I25 -> 5 | AQ47: ='User Inputs'!J25 -> 11.08
L48: =CONCATENATE("To activate this plan in the BTA, go to 'Results' worksheet tab and enter '5' in Cell I",Results!$M$26, ".") -> To activate this plan in the BTA, go to 'Results' worksheet tab and enter '5' in Cell I26. | AK48: T | AL48: ='User Inputs'!E25 -> 0 | AM48: ='User Inputs'!F25 -> 0 | AN48: ='User Inputs'!G25 -> 5.5 | AO48: ='User Inputs'!H25 -> 11.08 | AP48: ='User Inputs'!I25 -> 5 | AQ48: ='User Inputs'!J25 -> 11.08
AL49: ='User Inputs'!E25 -> 0 | AM49: ='User Inputs'!F25 -> 0 | AN49: ='User Inputs'!G25 -> 5.5 | AO49: ='User Inputs'!H25 -> 11.08 | AP49: ='User Inputs'!I25 -> 5 | AQ49: ='User Inputs'!J25 -> 11.08
AK50: O | AL50: ='User Inputs'!E26 -> 0 | AM50: ='User Inputs'!F26 -> 0 | AN50: ='User Inputs'!G26 -> 5.5 | AO50: ='User Inputs'!H26 -> 11.08 | AP50: ='User Inputs'!I26 -> 5 | AQ50: ='User Inputs'!J26 -> 11.08
AL51: ='User Inputs'!E29 -> 0 | AM51: ='User Inputs'!F29 -> 0 | AN51: ='User Inputs'!G29 -> 5.5 | AO51: ='User Inputs'!H29 -> 11.08 | AP51: ='User Inputs'!I29 -> 15 | AQ51: ='User Inputs'!J29 -> 11.08
AL52: ='User Inputs'!E29 -> 0 | AM52: ='User Inputs'!F29 -> 0 | AN52: ='User Inputs'!G29 -> 5.5 | AO52: ='User Inputs'!H29 -> 11.08 | AP52: ='User Inputs'!I29 -> 15 | AQ52: ='User Inputs'!J29 -> 11.08
AK53: W | AL53: ='User Inputs'!E29 -> 0 | AM53: ='User Inputs'!F29 -> 0 | AN53: ='User Inputs'!G29 -> 5.5 | AO53: ='User Inputs'!H29 -> 11.08 | AP53: ='User Inputs'!I29 -> 15 | AQ53: ='User Inputs'!J29 -> 11.08
AL54: ='User Inputs'!E28 -> 0 | AM54: ='User Inputs'!F28 -> 0 | AN54: ='User Inputs'!G28 -> 5.5 | AO54: ='User Inputs'!H28 -> 11.08 | AP54: ='User Inputs'!I28 -> 15 | AQ54: ='User Inputs'!J28 -> 11.08
B55: This is the plan devised and proposed by the state commission appointed by then-Gov. Eliot Spitzer in 2007, to review and modify the original traffic congestion plan advanced by NYC Mayor Michael Bloomberg in April 2007 as part of PlaNYC. This plan, released in Jan. 2008, modified the Bloomberg proposal in several important respects, most notably moving the northern boundary of the toll cordon to 60th Street (the northern boundary of the Manhattan Central Business District), from 86th Street. The plan's most salient revenue features were (i) a flat $8.00 auto toll charged 6am-6pm weekdays, with no toll at any other time; (ii) a $21.00 toll for trucks, although this was heavily discounted, to $7.00, for trucks meeting a clean-fuel standard; (iii) entry-toll exemptions for medallion cabs, but a $1.00 surcharge paid on the estimated 80% of yellow taxi trips that begin or end within the Manhattan CBD, but only on trips during the 6am-6pm weekday toll period. Vehicles entering the CBD via any PANYNJ or MTA tunnel would have their tolls capped at $8.00, effectively exempting cross-Hudson tunnel traffic and conferring a substantial discount pm vehicles entering via the Queens-Midtown or Brooklyn Battery Tunnels. The TCMC Plan would have qualified the MTA to receive $350 million in federal funds, under a USDOT program intended to motivate cities to begin implementing congestion pricing. This revenue infusion, though welcome, would have been a "one shot," and we ignore its benefits here. We assume that one-half of toll net revenues would have been applied to transit capital investment, with a resulting improvement in transit on-time performance that would have attracted additional trips (beyond those priced off the roads) from cars to transit. The other one-half would have been applied to NYC bridge maintenance or general revenues. | L55: III. Bloomberg Plan (Modified by NYS Traffic-Congestion Commission), 2008 | P55: Key Plan Policies | AK55: E | AL55: ='User Inputs'!E27 -> 0 | AM55: ='User Inputs'!F27 -> 0 | AN55: ='User Inputs'!G27 -> 5.5 | AO55: ='User Inputs'!H27 -> 11.08 | AP55: ='User Inputs'!I27 -> 15 | AQ55: ='User Inputs'!J27 -> 11.08
P56: • Cordon-Entry Auto Tolls: $8 constant toll, charged 12 hours a day, 5 days a week (see charts below) • Outer-Borough Bridge Tolls: no change • Other Auto Discount: none • Medallion Taxis: No cordon toll; $1 surcharge on trips during cordon-toll hours and within CBD • Truck tolls: $21, though discounted to $7 for "clean vehicles" • Bus-Subway Fares: no change from present • Express Bus fares: no change • In-City Commuter Rail trips: no change | AL56: ='User Inputs'!E27 -> 0 | AM56: ='User Inputs'!F27 -> 0 | AN56: ='User Inputs'!G27 -> 5.5 | AO56: ='User Inputs'!H27 -> 11.08 | AP56: ='User Inputs'!I27 -> 15 | AQ56: ='User Inputs'!J27 -> 11.08
AK57: E | AL57: ='User Inputs'!E27 -> 0 | AM57: ='User Inputs'!F27 -> 0 | AN57: ='User Inputs'!G27 -> 5.5 | AO57: ='User Inputs'!H27 -> 11.08 | AP57: ='User Inputs'!I27 -> 15 | AQ57: ='User Inputs'!J27 -> 11.08
AL58: ='User Inputs'!E27 -> 0 | AM58: ='User Inputs'!F27 -> 0 | AN58: ='User Inputs'!G27 -> 5.5 | AO58: ='User Inputs'!H27 -> 11.08 | AP58: ='User Inputs'!I27 -> 15 | AQ58: ='User Inputs'!J27 -> 11.08
AK59: K | AL59: ='User Inputs'!E28 -> 0 | AM59: ='User Inputs'!F28 -> 0 | AN59: ='User Inputs'!G28 -> 5.5 | AO59: ='User Inputs'!H28 -> 11.08 | AP59: ='User Inputs'!I28 -> 15 | AQ59: ='User Inputs'!J28 -> 11.08
AL60: ='User Inputs'!E28 -> 0 | AM60: ='User Inputs'!F28 -> 0 | AN60: ='User Inputs'!G28 -> 5.5 | AO60: ='User Inputs'!H28 -> 11.08 | AP60: ='User Inputs'!I28 -> 15 | AQ60: ='User Inputs'!J28 -> 11.08
AK61: D | AL61: ='User Inputs'!E28 -> 0 | AM61: ='User Inputs'!F28 -> 0 | AN61: ='User Inputs'!G28 -> 5.5 | AO61: ='User Inputs'!H28 -> 11.08 | AP61: ='User Inputs'!I28 -> 15 | AQ61: ='User Inputs'!J28 -> 11.08
AL62: ='User Inputs'!E28 -> 0 | AM62: ='User Inputs'!F28 -> 0 | AN62: ='User Inputs'!G28 -> 5.5 | AO62: ='User Inputs'!H28 -> 11.08 | AP62: ='User Inputs'!I28 -> 15 | AQ62: ='User Inputs'!J28 -> 11.08
AK63: A | AL63: ='User Inputs'!E28 -> 0 | AM63: ='User Inputs'!F28 -> 0 | AN63: ='User Inputs'!G28 -> 5.5 | AO63: ='User Inputs'!H28 -> 11.08 | AP63: ='User Inputs'!I28 -> 15 | AQ63: ='User Inputs'!J28 -> 11.08
AL64: ='User Inputs'!E28 -> 0 | AM64: ='User Inputs'!F28 -> 0 | AN64: ='User Inputs'!G28 -> 5.5 | AO64: ='User Inputs'!H28 -> 11.08 | AP64: ='User Inputs'!I28 -> 15 | AQ64: ='User Inputs'!J28 -> 11.08
AK65: Y | AL65: ='User Inputs'!E26 -> 0 | AM65: ='User Inputs'!F26 -> 0 | AN65: ='User Inputs'!G26 -> 5.5 | AO65: ='User Inputs'!H26 -> 11.08 | AP65: ='User Inputs'!I26 -> 5 | AQ65: ='User Inputs'!J26 -> 11.08
AL66: ='User Inputs'!E26 -> 0 | AM66: ='User Inputs'!F26 -> 0 | AN66: ='User Inputs'!G26 -> 5.5 | AO66: ='User Inputs'!H26 -> 11.08 | AP66: ='User Inputs'!I26 -> 5 | AQ66: ='User Inputs'!J26 -> 11.08
L67: =CONCATENATE("To activate this plan in the BTA, go to 'Results' worksheet tab and enter '2' in Cell I",Results!$M$26, ".") -> To activate this plan in the BTA, go to 'Results' worksheet tab and enter '2' in Cell I26. | AK67: S | AL67: ='User Inputs'!E26 -> 0 | AM67: ='User Inputs'!F26 -> 0 | AN67: ='User Inputs'!G26 -> 5.5 | AO67: ='User Inputs'!H26 -> 11.08 | AP67: ='User Inputs'!I26 -> 5 | AQ67: ='User Inputs'!J26 -> 11.08
AK69: A | AL69: ='User Inputs'!E32 -> 0 | AM69: ='User Inputs'!F32 -> 0 | AN69: ='User Inputs'!G32 -> 5.5 | AO69: ='User Inputs'!H32 -> 11.08 | AP69: ='User Inputs'!I32 -> 5 | AQ69: ='User Inputs'!J32 -> 11.08
AL70: ='User Inputs'!E32 -> 0 | AM70: ='User Inputs'!F32 -> 0 | AN70: ='User Inputs'!G32 -> 5.5 | AO70: ='User Inputs'!H32 -> 11.08 | AP70: ='User Inputs'!I32 -> 5 | AQ70: ='User Inputs'!J32 -> 11.08
AK71: U | AL71: ='User Inputs'!E32 -> 0 | AM71: ='User Inputs'!F32 -> 0 | AN71: ='User Inputs'!G32 -> 5.5 | AO71: ='User Inputs'!H32 -> 11.08 | AP71: ='User Inputs'!I32 -> 5 | AQ71: ='User Inputs'!J32 -> 11.08
AL72: ='User Inputs'!E32 -> 0 | AM72: ='User Inputs'!F32 -> 0 | AN72: ='User Inputs'!G32 -> 5.5 | AO72: ='User Inputs'!H32 -> 11.08 | AP72: ='User Inputs'!I32 -> 5 | AQ72: ='User Inputs'!J32 -> 11.08
AK73: T | AL73: ='User Inputs'!E32 -> 0 | AM73: ='User Inputs'!F32 -> 0 | AN73: ='User Inputs'!G32 -> 5.5 | AO73: ='User Inputs'!H32 -> 11.08 | AP73: ='User Inputs'!I32 -> 5 | AQ73: ='User Inputs'!J32 -> 11.08
B74: The BTA includes two baseline "plans." In the first, tolls and transit fares have been assigned actual 2015 conditions. Its inclusion in the BTA helps ensure the model is correctly calibrated; If the Baseline Plan 'returns' zero results (e.g., zero net revenue, zero changes in traffic speeds), that is a positive indication that the model will produce reasonable results when it is given tolls and fares that differ from current levels. The Baseline Plan is also useful for testing non-cordon toll policies that would depart from the current norm, e.g., removing CBD lanes and streets from vehicular circulation, changing parking policy,etc. In the second, baseline (i.e., current 2015) tolls apply, but subway and bus fares have been increased to the levels that would be required to generate $850 million a year in increased net revenue. This is the approximate amount that would be spent on subway upgrades if the 2015-2019 MTA capital plan were to be fully funded. The required fare hike is calculated using the BTA's feedback loops (e.g., higher fares lead to reduced patronage, which leads to increased driving into the CBD, which then worsens driving speeds and engenders a rebound in subway usage, etc.) | L74: IV & V. Baseline Plans | AL74: ='User Inputs'!E32 -> 0 | AM74: ='User Inputs'!F32 -> 0 | AN74: ='User Inputs'!G32 -> 5.5 | AO74: ='User Inputs'!H32 -> 11.08 | AP74: ='User Inputs'!I32 -> 5 | AQ74: ='User Inputs'!J32 -> 11.08
AK75: O | AL75: ='User Inputs'!E32 -> 0 | AM75: ='User Inputs'!F32 -> 0 | AN75: ='User Inputs'!G32 -> 5.5 | AO75: ='User Inputs'!H32 -> 11.08 | AP75: ='User Inputs'!I32 -> 5 | AQ75: ='User Inputs'!J32 -> 11.08
AL76: ='User Inputs'!E32 -> 0 | AM76: ='User Inputs'!F32 -> 0 | AN76: ='User Inputs'!G32 -> 5.5 | AO76: ='User Inputs'!H32 -> 11.08 | AP76: ='User Inputs'!I32 -> 5 | AQ76: ='User Inputs'!J32 -> 11.08
AL77: ='User Inputs'!E32 -> 0 | AM77: ='User Inputs'!F32 -> 0 | AN77: ='User Inputs'!G32 -> 5.5 | AO77: ='User Inputs'!H32 -> 11.08 | AP77: ='User Inputs'!I32 -> 5 | AQ77: ='User Inputs'!J32 -> 11.08
AK78: W | AL78: ='User Inputs'!E32 -> 0 | AM78: ='User Inputs'!F32 -> 0 | AN78: ='User Inputs'!G32 -> 5.5 | AO78: ='User Inputs'!H32 -> 11.08 | AP78: ='User Inputs'!I32 -> 5 | AQ78: ='User Inputs'!J32 -> 11.08
AL79: ='User Inputs'!E33 -> 0 | AM79: ='User Inputs'!F33 -> 0 | AN79: ='User Inputs'!G33 -> 5.5 | AO79: ='User Inputs'!H33 -> 11.08 | AP79: ='User Inputs'!I33 -> 5 | AQ79: ='User Inputs'!J33 -> 11.08
AK80: E | AL80: ='User Inputs'!E33 -> 0 | AM80: ='User Inputs'!F33 -> 0 | AN80: ='User Inputs'!G33 -> 5.5 | AO80: ='User Inputs'!H33 -> 11.08 | AP80: ='User Inputs'!I33 -> 5 | AQ80: ='User Inputs'!J33 -> 11.08
L81: To activate this plan in the BTA, go to 'Results' worksheet tab and enter '1' in Cell I25. | AL81: ='User Inputs'!E34 -> 0 | AM81: ='User Inputs'!F34 -> 0 | AN81: ='User Inputs'!G34 -> 5.5 | AO81: ='User Inputs'!H34 -> 11.08 | AP81: ='User Inputs'!I34 -> 9 | AQ81: ='User Inputs'!J34 -> 11.08
AK82: E | AL82: ='User Inputs'!E34 -> 0 | AM82: ='User Inputs'!F34 -> 0 | AN82: ='User Inputs'!G34 -> 5.5 | AO82: ='User Inputs'!H34 -> 11.08 | AP82: ='User Inputs'!I34 -> 9 | AQ82: ='User Inputs'!J34 -> 11.08
AL83: ='User Inputs'!E34 -> 0 | AM83: ='User Inputs'!F34 -> 0 | AN83: ='User Inputs'!G34 -> 5.5 | AO83: ='User Inputs'!H34 -> 11.08 | AP83: ='User Inputs'!I34 -> 9 | AQ83: ='User Inputs'!J34 -> 11.08
AK84: K | AL84: ='User Inputs'!E34 -> 0 | AM84: ='User Inputs'!F34 -> 0 | AN84: ='User Inputs'!G34 -> 5.5 | AO84: ='User Inputs'!H34 -> 11.08 | AP84: ='User Inputs'!I34 -> 9 | AQ84: ='User Inputs'!J34 -> 11.08
AL85: ='User Inputs'!E34 -> 0 | AM85: ='User Inputs'!F34 -> 0 | AN85: ='User Inputs'!G34 -> 5.5 | AO85: ='User Inputs'!H34 -> 11.08 | AP85: ='User Inputs'!I34 -> 9 | AQ85: ='User Inputs'!J34 -> 11.08
AK86: E | AL86: ='User Inputs'!E35 -> 0 | AM86: ='User Inputs'!F35 -> 0 | AN86: ='User Inputs'!G35 -> 5.5 | AO86: ='User Inputs'!H35 -> 11.08 | AP86: ='User Inputs'!I35 -> 9 | AQ86: ='User Inputs'!J35 -> 11.08
AL87: ='User Inputs'!E35 -> 0 | AM87: ='User Inputs'!F35 -> 0 | AN87: ='User Inputs'!G35 -> 5.5 | AO87: ='User Inputs'!H35 -> 11.08 | AP87: ='User Inputs'!I35 -> 9 | AQ87: ='User Inputs'!J35 -> 11.08
B88: Streetsblog posts about the Move NY Plan | I88: Posts are by C. Komanoff except where noted | AK88: N | AL88: ='User Inputs'!E35 -> 0 | AM88: ='User Inputs'!F35 -> 0 | AN88: ='User Inputs'!G35 -> 5.5 | AO88: ='User Inputs'!H35 -> 11.08 | AP88: ='User Inputs'!I35 -> 9 | AQ88: ='User Inputs'!J35 -> 11.08
AL89: ='User Inputs'!E34 -> 0 | AM89: ='User Inputs'!F34 -> 0 | AN89: ='User Inputs'!G34 -> 5.5 | AO89: ='User Inputs'!H34 -> 11.08 | AP89: ='User Inputs'!I34 -> 9 | AQ89: ='User Inputs'!J34 -> 11.08
B90: May 12, 2015: | C90: How Much Will Fares Rise Without Closing the MTA Capital Plan Gap? Try 25% | AK90: D | AL90: ='User Inputs'!E34 -> 0 | AM90: ='User Inputs'!F34 -> 0 | AN90: ='User Inputs'!G34 -> 5.5 | AO90: ='User Inputs'!H34 -> 11.08 | AP90: ='User Inputs'!I34 -> 9 | AQ90: ='User Inputs'!J34 -> 11.08
AL91: ='User Inputs'!E33 -> 0 | AM91: ='User Inputs'!F33 -> 0 | AN91: ='User Inputs'!G33 -> 5.5 | AO91: ='User Inputs'!H33 -> 11.08 | AP91: ='User Inputs'!I33 -> 5 | AQ91: ='User Inputs'!J33 -> 11.08
B92: April 22, 2015: | C92: 13 State and City Elected Officials Sign On to Move NY Toll Reform | I92: by Stephen Miller
B94: Feb 17, 2015: | C94: The Complete Guide to the Final Move NY Plan | I94: by Stephen Miller
B96: Feb 17, 2015: | C96: The Politics of NYC Toll Reform -- What's Different This Time | I96: by Stephen Miller
B98: Oct 7, 2014: | C98: Fair Tolls: Fixing NYC’s Gridlock and Transit Shortfall in One Fell Swoop | AK98: S | AL98: ='User Inputs'!E33 -> 0 | AM98: ='User Inputs'!F33 -> 0 | AN98: ='User Inputs'!G33 -> 5.5 | AO98: ='User Inputs'!H33 -> 11.08 | AP98: ='User Inputs'!I33 -> 5 | AQ98: ='User Inputs'!J33 -> 11.08
B99: Toll fairness is key to solving mass transit's chronic funding woes and cutting down on lethal traffic congestion.
B101: May 16, 2012: | C101: Traffic-Pricing is Evolving … Can Its Opponents? | I101: by C. Komanoff
B102: An appeal to an influential former legislator to rethink his opposition to traffic pricing and support the Move NY - Sam Schwartz toll-rebalancing plan.
B104: May 3, 2012: | C104: Why Gridlock Sam’s Traffic Plan Could Go the Distance | I104: by C. Komanoff
B105: Deconstructs the extensive (and overwhelmingly favorable) press coverage of Sam Schwartz and his traffic-toll plan in March-April 2012. Has links to profiles of Sam and his plan by Bill Keller (NY Times former top editor), Crain's NY, Wall Street Journal, NY Observer, and other major outlets.
B108: March 26, 2012: | C108: The Greater Good of Bike Tolls | I108: by C. Komanoff
B109: A look at a controversial (if peripheral) element of the Move NY - Sam Schwartz Plan, and a "greater good" appeal to cycle advocates and others.
B111: Other plans advanced by C. Komanoff during 2008-2010 included the Kheel-Komanoff Plan, the Kheel Plan, Kheel Plan II, and an MTA Rescue Plan. These plans are no longer fully supported by the BTA, because of changes in key baseline conditions (traffic levels, transit fares, toll levels). They did, however, generate media interest and were also described in articles and reports by C. Komanoff. Here's a fairly complete list:
B115: Links pertaining to the Kheel-Komanoff Plan (all are from 2009)
B116: for a March fact sheet on the plan: <http://nnyn.org/kheelplan/Free%20Transit%20Plan%20Fact%20Sheet%20_%20March%202009.pdf>
B117: for a March 13 Newsday article: <http://www.newsday.com/news/opinion/oped/ny-opkhe136067115mar13,0,4278279.story>
B118: for a March 10 Streetsblog article: <http://www.streetsblog.org/2009/03/10/beyond-ravitch-still-time-for-a-bolder-plan/>
B119: for a Feb. Gotham Gazette article: <http://www.gothamgazette.com/article/fea/20090209/202/2821>
B120: for a Jan. Grist article: <http://gristmill.grist.org/story/2009/1/6/134612/6720>
B121: for the NNYN Web page summarizing the plan: <http://www.nnyn.org/kheelplan/kheel_komanoff_plan.html>
B123: Links pertaining to the original Kheel Plan
B124: for the "Bolder Plan" report: <http://www.nnyn.org/kheelplan/Full%20Kheel%20Report%20for%20web%20_%2023%20Jan%202008.pdf>
B125: for a Feb. 2008 article in Grist about the plan: <http://gristmill.grist.org/story/2008/2/11/64835/1733>
B126: for the BTA 1.0 spreadsheet: <http://www.nnyn.org/BTA%20_%2024%20Jan%202008.xls>
B127: for the NNYN Web page with these and other links: <http://www.nnyn.org/kheelplan/kheel_plan1.html>
B129: Links pertaining to the Kheel II Plan
B130: for the NNYN press release announcing the Kheel II Plan: <http://www.nnyn.org/kheelplan/kheel_plan_release.html>
B131: for the NNYN Web page summarizing the plan: <http://www.nnyn.org/kheelplan/kheel_plan2.html>
B133: Links pertaining to the MTA Rescue Plan (both are from 2009)
B134: a May 7 Streetsblog article: <http://www.streetsblog.org/2009/05/07/albanys-choice-or-ours/>
B135: an April 16, 2009 Streetsblog article: <http://www.streetsblog.org/2009/04/16/needed-a-better-way-to-sweeten-the-ravitch-plan/>

Sheet Results
B1: Results | I1: ='Title Page'!G2 -> 2017-06-05 | M1: =ROW() -> 1
M2: =ROW() -> 2
B3: =CONCATENATE("This tab reports key impacts (traffic volumes and speeds, revenues, time lost in traffic, transit use, etc.) of the pricing plan selected by the user via the pull-down menu in Cell I",M26, ".") -> This tab reports key impacts (traffic volumes and speeds, revenues, time lost in traffic, transit use, etc.) of the pricing plan selected by the user via the pull-down menu in Cell I26. | M3: =ROW() -> 3
M4: =ROW() -> 4
B5: It's divided into six sections. (The links will take you straight to each; just click.) | I5: Always hit F9 (recalc) key several times after changing scenarios or inputs, so spreadsheet can iterate and reach equilibrium. | M5: =ROW() -> 5
B6: 1. Key impacts, and menu to choose among our six pre-set plans | M6: =ROW() -> 6
B7: 2. Revenues and expenditures | M7: =ROW() -> 7
B8: 3. Revenues and Expenditures Graphs | M8: =ROW() -> 8
B9: 4. Tax Alternatives to Traffic-Pricing (rises in other taxes, if toll plan is rejected) | M9: =ROW() -> 9
B10: 5. Travel Results (speeds, time savings, people entering CBD, transit usage, taxi trips, etc.) | M10: =ROW() -> 10
B11: 6. Incidence (Who Pays?) | M11: =ROW() -> 11
M12: =ROW() -> 12
B13: 1. Key impacts from pricing plan, and menu to change among our six different pre-set plans | M13: =ROW() -> 13
M14: =ROW() -> 14
B15: These are the three most important results. For more results, use other links above, or Page Down. | M15: =ROW() -> 15
B16: Predicted change in avg vehicle speed in CBD (6am-6pm), 5 years out (when transit investments have borne fruit) | C16: Predicted net revenue available to improve travel | E16: Predicted net income (net revenue less expenditure allocations) | G16: =CONCATENATE("Pricing plans below are tailored to make figure at left (Cell E",M18, ") small or zero. A negative would indicate that the selected plan is spending more money than it's raising." & " A large positive means the plan isn't investing all available revenues.") -> Pricing plans below are tailored to make figure at left (Cell E18) small or zero. A negative would indicate that the selected plan is spending more money than it's raising. A large positive means the plan isn't investing all available revenues. | K16: All plans shown here reflect MTA toll and fare hikes that took effect on March 22, 2015. | M16: =ROW() -> 16
M17: =ROW() -> 17
B18: =F122 -> 0.1743140153 | C18: =I67 -> 1460 | D18: million / yr | E18: =J77 -> 20 | F18: million / yr | M18: =ROW() -> 18
M19: =ROW() -> 19
B20: =CONCATENATE("(From Cell F",M122,")") -> (From Cell F122) | C20: =CONCATENATE("(From Cell I",M67, ")") -> (From Cell I67) | E20: =CONCATENATE("(From Cell J",M77, ")") -> (From Cell J77) | M20: =ROW() -> 20
M21: =ROW() -> 21
B22: =CONCATENATE("Click on Cell I",M26," for pull-down menu letting you select among six plans shown. Baseline plan (#1) has been pre-set to represent 2015 conditions.") -> Click on Cell I26 for pull-down menu letting you select among six plans shown. Baseline plan (#1) has been pre-set to represent 2015 conditions. | M22: =ROW() -> 22
M23: =ROW() -> 23
M24: =ROW() -> 24
B25: You may choose among 6 Plans: | C25: 1 | D25: 2 | E25: 3 | F25: 4 | G25: 5 | H25: 6 | I25: Choose | J25: Click anywhere on black cell at left. A small triangle should appear. Click it, and a "drop-down menu" will appear. Use it to select among Plans 1-6. | M25: =ROW() -> 25
B26: =CONCATENATE("Click on cell I",M26," to choose among plans shown. To create your own plan, change the settings in *User Inputs* worksheet.") -> Click on cell I26 to choose among plans shown. To create your own plan, change the settings in *User Inputs* worksheet. | C26: Baseline | D26: Fare Hikes pay for Subway Upgrades | E26: Fare Toll (CBD toll = Subway Fare) | F26: Move NY - Gridlock Sam Fair Plan (2015) | G26: Move NY - Sam Plan w Variable Tolls (2015) | H26: East River Bridge Tolls only (2015) | I26: Move NY - Gridlock Sam Fair Plan (2015) | M26: =ROW() -> 26
M27: =ROW() -> 27
M28: =ROW() -> 28
M29: =ROW() -> 29
E30: This plan can be implemented by NYC w/o Albany approval, per legal analysis by NYU Law Prof. Roderick Hills, Jr | M30: =ROW() -> 30
B31: 2. Revenues and Expenditures | M31: =ROW() -> 31
I32: Revenue (income) | J32: Expenditures (outflow) | M32: =ROW() -> 32 | O32: Worksheet in which $$ calc'd
B33: Inflow and Outflow Summary (all $$ are annual) | M33: =ROW() -> 33
M34: =ROW() -> 34
B35: Inflows | C35: Description | I35: Figures are in millions of dollars, are rounded and are annual | M35: =ROW() -> 35
B36: CBD Toll | M36: =ROW() -> 36
B37: New CBD Toll Revenue | C37: Gross change in revenue from tolling motor vehicle trips into and out of Manhattan Central Business District. | I37: =0.5*ROUND(2*Revenues!G86,-1) -> 1670 | K37: All figures are in millions of dollars, are rounded to nearest $5 million and are annual (recurring). | M37: =ROW() -> 37 | O37: Results
B38: CBD Toll Administration Costs | C38: Toll collection operating costs + annualized capital cost. | I38: =IF('Weekday Hours'!H6>0,-0.5*(ROUND(2*Cordon!H219/1000000,-1)),0) -> -160 | M38: =ROW() -> 38 | O38: Cordon
B39: CBD Toll Revenue, Net of Admin Costs | C39: =CONCATENATE("Sum of figures in Rows ",M37, "-",M38, ".") -> Sum of figures in Rows 37-38. | I39: =I37+I38 -> 1510 | M39: =ROW() -> 39 | O39: Results
B40: MTA (TBTA) bridges discounts (if applicable) | M40: =ROW() -> 40
B41: MTA gross revenue impact from bridges discounts | C41: MTA loss from discounting "outer-borough" (e.g., Verrazano, Throgs, Whitestone, Triboro, 3 others) tolls. | I41: =0.5*ROUND(2*'MTA Crossings'!R280,-1) -> -660 | M41: =ROW() -> 41 | O41: MTA Crossings
B42: MTA windfall from bridges discounts | C42: Potential MTA gain from increased volume if discount "outer-borough" tolls. | I42: =0.5*ROUND(2*'MTA Crossings'!Q316/1000000,-1) -> 85 | M42: =ROW() -> 42 | O42: MTA Crossings
B43: MTA net revenue impact from bridges discounts | C43: =CONCATENATE("Sum of Rows ",M41, " and ",M42, ".") -> Sum of Rows 41 and 42. | I43: =I41+I42 -> -575 | M43: =ROW() -> 43
B44: Taxi Surcharges | M44: =ROW() -> 44
B45: New Surcharge(s) on Medallion Taxis | C45: Revenue from "new" taxi surcharge (if any). | I45: =0.5*ROUND(2*Revenues!M86,-1) -> 270 | M45: =ROW() -> 45 | O45: Revenues
B46: Change in "Ravitch" Taxi Surcharge | C46: Change (if any) in revenue from "Ravitch" surcharge. | I46: =0.5*ROUND(2*Revenues!P86,-1) -> 5 | M46: =ROW() -> 46 | O46: Revenues
B47: Portion Set Aside for Cab Drivers' Health Fund | C47: Assigning a fixed % of the revenues to drivers and/or owners may help win their acceptance. | J47: =0.5*ROUND(2*'User Inputs'!K139*Results!I45,-1) -> 0 | M47: =ROW() -> 47
B48: NYC Transit Windfalls | M48: =ROW() -> 48
B49: Subway Farebox Windfall | C49: Revenue gain from plan measures that lead to increased ridership on NYC Transit subways. | I49: =0.5*(ROUND(2*Revenues!G60*'User Inputs'!$K$145,-1)) -> 230 | M49: =ROW() -> 49 | O49: Revenues
B50: Bus Farebox Windfall | C50: Revenue gain from plan measures that lead to increased ridership on NYC Transit buses. | I50: =0.5*(ROUND(2*Revenues!J60*'User Inputs'!$K$145,-1)) -> 10 | M50: =ROW() -> 50 | O50: Revenues
B51: Fare Administration Savings | C51: Reflects any savings from eliminating or reducing fare collection machinery. | I51: =0.5*ROUND(2*'Fare Collection'!J136/1000000,-1) -> 0 | M51: =ROW() -> 51 | O51: Fare Collection
B52: Total NYC Transit Windfall + Savings | C52: =CONCATENATE("Sum of figures in Rows ",M49, "-",M51, ".") -> Sum of figures in Rows 49-51. | I52: =SUM(I49:I51) -> 240 | M52: =ROW() -> 52
B53: NYC Transit Fare Adjustments | M53: =ROW() -> 53
B54: $1.00 NYC Bus Fares (in "subway deserts") | C54: Revenue loss if selected plan offers $1.00 fare for buses serving residents > 1/3-mile from subway | J54: =IF('User Inputs'!K207="YES",Buses!J319,0) -> 0 | M54: =ROW() -> 54 | O54: Buses
B55: Other Bus Fare Discounts | C55: Revenue loss if selected plan discounts some bus fares (other than via directly preceding element) | J55: 0 | K55: These cells are zero'd out, pending possible (unlikely) discount offer. | M55: =ROW() -> 55 | O55: Revenues
B56: Subway Fare Discounts | C56: Revenue loss if selected plan discounts some subway fares | J56: 0 | M56: =ROW() -> 56 | O56: Revenues
B57: Total NYC Transit Fare Adjustments | C57: =CONCATENATE("Sum of figures in Rows ",M54, "-",M56, ".") -> Sum of figures in Rows 54-56. | J57: =SUM(J54:J56) -> 0 | M57: =ROW() -> 57
B58: Other Transit Fare Adjustments | K58: All figures are in millions of dollars, are rounded to nearest $5 million and are annual (recurring). | M58: =ROW() -> 58
B59: Commuter Rail Farebox: Blanket Discounts | C59: Revenue loss if selected plan discounts all Metro-North and LIRR Commuter Rail Road fares | J59: =0.5*ROUND(2*Revenues!J226/1000000,-1) -> 0 | M59: =ROW() -> 59 | O59: Revenues
B60: Commuter Rail Farebox: Intra-City Trip Discounts | C60: Revenue loss if selected plan expands/extends "City Ticket" discounts on M-N and LIRR intra-city rides | J60: =0.5*ROUND(2*Revenues!M365/1000000,-1) -> 30 | M60: =ROW() -> 60 | O60: Revenues
B61: Express Bus Farebox: Blanket Discounts | C61: Revenue loss if selected plan reduces fares on MTA Express Buses | J61: =0.5*ROUND(2*Revenues!I204/1000000,-1) -> 20 | M61: =ROW() -> 61 | O61: Revenues
B62: Total Other Transit Fare Adjustments | C62: =CONCATENATE("Sum of figures in Rows ",M59, "-",M61, ".") -> Sum of figures in Rows 59-61. | J62: =SUM(J59:J61) -> 50 | M62: =ROW() -> 62
B63: Revenue Adjustments and Allocations | M63: =ROW() -> 63
B64: Tax $ from zeroing Manhattanites' parking break | C64: Sales tax gain from eliminating surtax exemption granted to qualifying Manhattan monthly parkers | I64: =0.5*ROUND(2*Parking!I484/1000000,-1)*IF('User Inputs'!K103="YES",1,0) -> 10 | M64: =ROW() -> 64 | O64: Parking
B65: Payment to PANYNJ to Offset Reduced Tolls | C65: If NYC and/or MTA compensate PA for lost revenue due to lesser use of GWB or other crossings. | J65: =IF('User Inputs'!K72="YES",-0.5*ROUND(2*Revenues!P161/1000000,-1),0) -> 0 | M65: =ROW() -> 65 | O65: Revenues
B66: CBD Toll Revenue Appropriated by NYC (if any) | C66: =CONCATENATE("Product of (i) Row ",M39, ", (ii) Cell I",Approaches!O222, " in 'Approaches' tab, and (iii) Cell K",'User Inputs'!O83, " in 'User Inputs' tab.") -> Product of (i) Row 39, (ii) Cell I222 in 'Approaches' tab, and (iii) Cell K83 in 'User Inputs' tab. | J66: =0.5*ROUND(2*'User Inputs'!K83*Approaches!I222*I39,-1) -> 0 | M66: =ROW() -> 66 | O66: Results&Approach.
B67: Total Net Income (Revenue) | F67: Cell at right is sum of yellow-colored cells in Col. I, less yellow-colored cells in Col. J. | I67: =I39+I43+I45+I46+I52+I64-J65-J66 -> 1460 | M67: =ROW() -> 67
M68: =ROW() -> 68
B69: Outflows | M69: =ROW() -> 69
B70: Spending and Allocations | M70: =ROW() -> 70
B71: Revenues Invested in System Improvements (Capital) | C71: Portion of annual revenue stream dedicated to transit capital plan. | J71: ='User Inputs'!K148 -> 980 | M71: =ROW() -> 71 | O71: User Inputs
B72: Revenues Spent on Service Enhancements (Operating) | C72: Portion of annual revenue stream spent on expanding transit service w/o capital investment. | J72: ='User Inputs'!K152 -> 60 | M72: =ROW() -> 72 | O72: User Inputs
B73: Revenues Spent on Roads and Bridges | C73: Portion of annual revenue stream spent on maintaining and improving NY-area roads and bridges. | J73: ='User Inputs'!K157 -> 350 | M73: =ROW() -> 73 | O73: User Inputs
B74: Revenues Spent on Fare Support (discounts) | C74: Portion of annual revenue stream spent on discounts to certain fares. | J74: =J57+J62 -> 50 | M74: =ROW() -> 74 | O74: Revenues
B75: Total Spending and Allocations | I75: Cell at right is sum of light blue-colored cells in Col. J. | J75: =J47+SUM(J71:J74) -> 1440 | M75: =ROW() -> 75
M76: =ROW() -> 76
B77: Net Income (Revenues Less Expenditures) | I77: In case of deficit (indicated by red), user must reduce road and/or transit expenditures, in "User Inputs" tab. | J77: =I67-J75 -> 20 | M77: =ROW() -> 77
M78: =ROW() -> 78
B79: 3. Revenues and Expenditures Graphs | M79: =ROW() -> 79
M80: =ROW() -> 80
M81: =ROW() -> 81
M82: =ROW() -> 82
M83: =ROW() -> 83
M84: =ROW() -> 84
M85: =ROW() -> 85
M86: =ROW() -> 86
M87: =ROW() -> 87
M88: =ROW() -> 88
M89: =ROW() -> 89
M90: =ROW() -> 90
M91: =ROW() -> 91
M92: =ROW() -> 92
M93: =ROW() -> 93
M94: =ROW() -> 94
M95: =ROW() -> 95
M96: =ROW() -> 96
M97: =ROW() -> 97
M98: =ROW() -> 98
M99: =ROW() -> 99
M100: =ROW() -> 100
M101: =ROW() -> 101
M102: =ROW() -> 102
M103: =ROW() -> 103
B104: =CONCATENATE("4. Alternative Taxes ─ amounts by which other taxes must rise throughout 12-county MTA region if revenue isn't generated through ",Select_Plan_Box, ".") -> 4. Alternative Taxes ─ amounts by which other taxes must rise throughout 12-county MTA region if revenue isn't generated through Move NY - Gridlock Sam Fair Plan (2015). | M104: =ROW() -> 104
M105: =ROW() -> 105
M106: =ROW() -> 106
B107: Incremental sales tax increase to yield net revenue projected from selected plan: | E107: ='Taxes Instead'!J87 -> 0.006641465489 | F107: =CONCATENATE("This figure is shown in Row ",'Taxes Instead'!L87, " of 'Taxes Instead' wksheet and is derived there.") -> This figure is shown in Row 87 of 'Taxes Instead' wksheet and is derived there. | M107: =ROW() -> 107
B108: or | M108: =ROW() -> 108
B109: Incremental increase in motor fuels tax to yield net revenue projected from that plan: | E109: ='Taxes Instead'!J136 -> 0.508356546 | F109: =CONCATENATE("This figure is shown in Row ",'Taxes Instead'!L136, " of 'Taxes Instead' worksheet and is derived in that tab." ) -> This figure is shown in Row 136 of 'Taxes Instead' worksheet and is derived in that tab. | M109: =ROW() -> 109
B110: or | M110: =ROW() -> 110
B111: Incremental increase in Payroll Mobility Tax to yield net revenue projected from the plan: | E111: ='Taxes Instead'!J151 -> 0.003949399316 | F111: =CONCATENATE("This figure is shown in Row ",'Taxes Instead'!L151, " of 'Taxes Instead' worksheet and is derived in that tab." ) -> This figure is shown in Row 151 of 'Taxes Instead' worksheet and is derived in that tab. | M111: =ROW() -> 111
B112: or | M112: =ROW() -> 112
B113: Incremental increase in annual auto-registration charge (this item applies only to NYC): | E113: ='Taxes Instead'!J162 -> 787.8475062 | F113: =CONCATENATE("This figure is shown in Row ",'Taxes Instead'!L162, " of 'Taxes Instead' worksheet and is derived in that tab." ) -> This figure is shown in Row 162 of 'Taxes Instead' worksheet and is derived in that tab. | M113: =ROW() -> 113
B114: or | M114: =ROW() -> 114
B115: Subway fare hike to pay debt service on Albany's unfunded capital plan obligation: | E115: ='Taxes Instead'!J273 -> 0.08349080723 | F115: =CONCATENATE("This figure is shown in Row ",'Taxes Instead'!L273, " of 'Taxes Instead' worksheet and is derived there. It does NOT nearly cover replaced Move NY funds -- only the debt service on Albany's capital plan obligation." ) -> This figure is shown in Row 273 of 'Taxes Instead' worksheet and is derived there. It does NOT nearly cover replaced Move NY funds -- only the debt service on Albany's capital plan obligation. | M115: =ROW() -> 115
M116: =ROW() -> 116
B117: 5. Travel Results (speeds, time savings, people entering CBD, transit usage, taxi trips, etc.) | F117: "CBD" denotes all of Manhattan south of 60th St.) | G117: Click for table of VMT changes in specific districts | M117: =ROW() -> 117
B118: (all figures are 5 years out, when transit investments have borne fruit) | M118: =ROW() -> 118
C119: Worksheet where calc'd | M119: =ROW() -> 119
G120: Roads to and from CBD | M120: =ROW() -> 120 | O120: Revenues | P120: Spending | Q120: Time $ | R120: Hours/106
B121: Weekday Traffic Speeds & VMT | C121: Motor Vs | D121: Note: "VMT" (Vehicle Miles Traveled) measures the amount of driving. | F121: within CBD | M121: =ROW() -> 121 | O121: Graph inputs. Do not disturb!
B122: Speed gain, 6am - 6pm | E122: Change: | F122: ='Motor Vs'!G1023-1 -> 0.1743140153 | G122: ='Motor Vs'!G1028-1 -> 0.06098904858 | M122: =ROW() -> 122 | O122: =I37 -> 1670 | P122: =-I38 -> 160 | Q122: =F130 -> 1180 | R122: ='Cost-Benefit'!K233*Travel!H92/1000000 -> 41.06940323 | S122: Driver + Passenger time savings include buses, but counted only at avg auto occupancies from Travel worksheet (betw 1-1.5) rather than actual ~20. Thus, bus inclusion causes only a minor overestimate of total hour saved.
B123: Speed gain, 24-hour | E123: Change: | F123: ='Motor Vs'!H1023-1 -> 0.159663137 | G123: ='Motor Vs'!H1028-1 -> 0.05658965557 | M123: =ROW() -> 123 | O123: =I41 -> -660 | P123: =J47 -> 0 | Q123: =G130 -> 1070 | R123: ='Cost-Benefit'!K247*Travel!H92/1000000 -> 51.21752093
B124: VMT change, 6am - 6pm | E124: Change: | F124: ='Motor Vs'!G1036-1 -> -0.06956537867 | G124: =('Motor Vs'!G1040-1)*Approaches!$F$22 -> -0.06453474811 | M124: =ROW() -> 124 | O124: =I42 -> 85 | P124: =J71 -> 980 | Q124: =ROUND('Cost-Benefit'!K58,-1) -> 1170 | R124: =('Cost-Benefit'!K135+'Cost-Benefit'!K164+'Cost-Benefit'!I198)/1000000 -> 73.32289152
B125: VMT change, annual average (24x365) | E125: Change: | F125: =VMT!K45 -> -0.08308127459 | G125: =('Motor Vs'!H1040-1)*Approaches!$F$22 -> -0.06950186684 | M125: =ROW() -> 125 | O125: =I49+I50 -> 240 | P125: =J72 -> 60 | Q125: =SUM(Q122:Q124) -> 3420 | R125: =SUM(R122:R124) -> 165.6098157
B126: Number of CBD entries, change, 6am - 6pm | E126: Change: | F126: ='Motor Vs'!N980 -> -0.1392184984 | G126: NA | M126: =ROW() -> 126 | O126: =I46+I45 -> 275 | P126: =J73 -> 350
B127: Number of CBD entries, change, 24 hours | E127: Change: | F127: ='Motor Vs'!N979 -> -0.1616604871 | G127: NA | M127: =ROW() -> 127 | O127: =I64 -> 10 | P127: =J56 -> 0
F128: Trips that make some use of CBD | G128: Trips that make zero use of CBD | M128: =ROW() -> 128 | O128: =SUM(O122:O127) -> 1620 | P128: =J55+J54 -> 0
B129: Time Savings | C129: Cost-Benefit | M129: =ROW() -> 129 | P129: =J60 -> 30
B130: Time Savings to Drivers (vehicle users), millions per year | F130: =ROUND('Cost-Benefit'!H63,-1) -> 1180 | G130: =ROUND('Cost-Benefit'!H64,-1) -> 1070 | M130: =ROW() -> 130 | P130: =J61 -> 20
B131: Extra Savings to Bus Riders if zero fare (saving from faster traffic is subsumed in prior row) | F131: ='Cost-Benefit'!I204 -> 0 | M131: =ROW() -> 131 | P131: =J65 -> 0
B132: Total Time Savings | F132: =SUM(F130:G131) -> 2250 | M132: =ROW() -> 132 | P132: =J77 -> 20
D133: Before | E133: After | F133: Change | G133: Change, % | M133: =ROW() -> 133 | P133: =SUM(P122:P132) -> 1620
B134: Number of Persons Traveling to CBD on a Typical Weekday | D134: =Travel!G162 -> 3535000 | E134: =Travel!H162 -> 3646000 | F134: =Travel!I162 -> 111000 | G134: =Travel!J162 -> 0.03140028289 | M134: =ROW() -> 134
B135: (via subway, bus and auto combined; excludes commuter rail, medallion taxi, bike, walk, ferry) | D135: Click here to go to tab where these figures are calculated. | M135: =ROW() -> 135
M136: =ROW() -> 136
C137: Worksheet where calc'd | M137: =ROW() -> 137
M138: =ROW() -> 138
B139: Total Driving in NYC (vehicle miles traveled) | C139: VMT | D139: (excludes proj'd VMT ∆ on MTA bridges) | F139: Change: | G139: =VMT!I22 -> -0.03906141441 | M139: =ROW() -> 139
M140: =ROW() -> 140
B141: Subway Usage | M141: =ROW() -> 141
B142: 365-day increase (weekdays + weekends/holidays) | C142: Subways | F142: Change: | G142: =Subways!AN398 -> 0.07454607667 | M142: =ROW() -> 142
B143: Weekday increase, 24h | F143: Change: | G143: =Subways!M512 -> 0.07246663475 | M143: =ROW() -> 143
B144: Weekday increase, a.m. peak (8-9) | F144: Change: | G144: =Subways!X398 -> 0.06026894609 | M144: =ROW() -> 144
B145: Weekday increase, p.m. peak (5-6) | F145: Change: | G145: =Subways!AG398 -> 0.06399558395 | M145: =ROW() -> 145
B146: Wkday incrs, 22h (all except am + pm peaks) | F146: Change: | G146: =Subways!AN400 -> 0.07792397338 | M146: =ROW() -> 146
B147: Peaks and valleys of M-F subway use (Gini coefficient) | C147: Gini | D147: Negative figure denotes peak-leveling. | F147: Change: | G147: =Gini!C81 -> -0.01544458703 | M147: =ROW() -> 147
M148: =ROW() -> 148
B149: Subway Speeds | C149: Subway v. Bus | F149: Avg Change, after 5 yrs (includes wait time): | G149: ='Cost-Benefit'!K162 -> 0.09093673864 | M149: =ROW() -> 149
M150: =ROW() -> 150
B151: Bus Usage | C151: Buses | D151: (all days, i.e., 365 days/yr) | F151: Change: | G151: =Buses!H125 -> 0.008759472304 | M151: =ROW() -> 151
M152: =ROW() -> 152
B153: NYC Transit Fares | C153: Subways, Buses | D153: Subways | F153: Buses | M153: =ROW() -> 153
D154: Fare | E154: Change | F154: Fare | G154: Change | M154: =ROW() -> 154
B155: Current (2016) actual average fare | C155: Subways, Buses | D155: =Subways!R513 -> 1.902693518 | F155: =Buses!H63 -> 1.847197961 | M155: =ROW() -> 155
B156: New fare (with pricing), weekdays | D156: =Subways!R514 -> 1.896459471 | E156: =D156/D$155-1 -> -0.003276432949 | F156: =Buses!I185 -> 1.847197961 | G156: =F156/F$155-1 -> 0 | M156: =ROW() -> 156
B157: New fare (with pricing), 365 days | D157: =Subways!R518 -> 1.897600774 | E157: =D157/D$155-1 -> -0.002676597411 | F157: =Buses!H185 -> 1.847197961 | G157: =F157/F$155-1 -> 0 | M157: =ROW() -> 157
M158: =ROW() -> 158
B159: Medallion Taxicab Usage (# fare trips, 365 days) | C159: Taxis | F159: Change: | G159: =Taxis!M358 -> 0.04770993369 | M159: =ROW() -> 159
M160: =ROW() -> 160
B161: 6. Incidence (Who Pays?) | C161: Incidence | D161: Results here include all changes, e.g., CBD toll, applicable taxi surcharges, MTA bridge discounts. Existing tolls that aren't changed are not included. | M161: =ROW() -> 161
C162: Click link above to go to that tab | M162: =ROW() -> 162
B163: Within NYC | G163: Programming note: Most cells in column to left employ "IF" statement to avoid dividing by zero if user has selected "baseline" (no toll) scenario. | M163: =ROW() -> 163
B164: 5-borough residents' share of the new revenues | F164: =IF($I$26="Baseline","NA",Incidence!$L$387) -> 0.622 | M164: =ROW() -> 164
B165: Borough or County whose residents will bear the highest share of the new tolls | F165: =IF($I$26="Baseline","NA",HLOOKUP(F166,Incidence!$G$387:'Incidence'!$K$393,7,FALSE)) -> Manhattan | M165: =ROW() -> 165
B166: Share of new toll payments to be borne by residents of that (#1 incidence) borough | F166: =IF($I$26="Baseline","NA",MAX(Incidence!$G$387:$K$387)) -> 0.223 | M166: =ROW() -> 166
B167: Borough or County whose residents will bear the second highest share of the new tolls | F167: =IF($I$26="Baseline","NA",HLOOKUP(F168,Incidence!$G$387:'Incidence'!$K$393,7,FALSE)) -> Queens | M167: =ROW() -> 167
B168: Share of new toll payments to be borne by residents of that (#2 incidence) borough | F168: =IF($I$26="Baseline","NA",LARGE(Incidence!$G$387:$K$387,2)) -> 0.159 | M168: =ROW() -> 168
B169: =CONCATENATE("Percentage points by which toll payment share for ",F165," will exceed that for ",F167,"") -> Percentage points by which toll payment share for Manhattan will exceed that for Queens | F169: =IF($I$26="Baseline","NA",F166-F168) -> 0.064 | M169: =ROW() -> 169
B170: Manhattan residents' new toll payments as a percentage of all of New York City's | F170: =IF($I$26="Baseline","NA",Incidence!I378/F164) -> 0.3504823151 | M170: =ROW() -> 170
B171: Outside NYC | M171: =ROW() -> 171
B172: Share of new toll payments borne by residents of 7 counties in MTA region outside NYC | F172: =IF($I$26="Baseline","NA",Incidence!T378-Incidence!L378) -> 0.1996785938 | M172: =ROW() -> 172
B173: County outside NYC whose residents will bear the highest share of the new tolls | F173: =IF($I$26="Baseline","NA",HLOOKUP(F174,Incidence!$M$387:'Incidence'!$S$393,7,FALSE)) -> Westchester | M173: =ROW() -> 173
B174: Share of new toll payments to be borne by residents of that borough | F174: =IF($I$26="Baseline","NA",MAX(Incidence!$M$387:$S$387)) -> 0.053 | M174: =ROW() -> 174
B175: Share of new toll payments borne by residents of New Jersey | F175: =IF($I$26="Baseline","NA",Incidence!$U$387) -> 0.135 | M175: =ROW() -> 175
B176: Share of new toll payments not borne by residents of MTA region or NJ (CT, PA, further states, tourists) | F176: =IF($I$26="Baseline","NA",1-F164-F172-F175) -> 0.04332140618 | M176: =ROW() -> 176
M177: =ROW() -> 177
B178: *********************************************************************************************************************************************************************************************************************************************************************** | M178: =ROW() -> 178
B180: =CONCATENATE("7. Time Costs and Savings: ",I26, " vs. Bridgegate") -> 7. Time Costs and Savings: Move NY - Gridlock Sam Fair Plan (2015) vs. Bridgegate
B182: =CONCATENATE("A. Time Savings from ",I26," on a typical weekday") -> A. Time Savings from Move NY - Gridlock Sam Fair Plan (2015) on a typical weekday
E183: Motor vehicle hours | F183: Motor vehicle person-hours
B184: Motor Vehicle Users
B185: Daily motor vehicle hours saved within the Manhattan CBD | E185: ='Cost-Benefit'!I226 -> 44686.56253 | F185: =E185*Travel!$G$93 -> 57846.9454 | G185: =CONCATENATE("Conversion of m.v. hours to m.v. person-hours uses an average vehicle occupany rate of ",ROUND(Travel!G93,3), ", which is derived in the BTA's 'Travel' tab, based on data in NYMTC's 'Hub-Bound' reports.") -> Conversion of m.v. hours to m.v. person-hours uses an average vehicle occupany rate of 1.295, which is derived in the BTA's 'Travel' tab, based on data in NYMTC's 'Hub-Bound' reports.
B186: =CONCATENATE("Copied from 'Cost-Benefit' tab, Cell I",'Cost-Benefit'!O226, ", but derived in 'Motor Vs' tab, Row ",'Motor Vs'!O1051, ".") -> Copied from 'Cost-Benefit' tab, Cell I226, but derived in 'Motor Vs' tab, Row 1051.
B187: Daily m.v. veh hours saved outside Manhattan CBD, in trips where CBD was origin or destination | E187: ='Cost-Benefit'!I228 -> 46403.92142 | F187: =E187*Travel!$G$93 -> 60070.07379
B188: =CONCATENATE("Copied from 'Cost-Benefit' tab, Cell I",'Cost-Benefit'!O228, ", derived there as product of non-CBD saved m.v. hours derived in 'Motor Vs' tab, Row ",'Motor Vs'!O1057, " and the complement of the percentage of those hours that are saved on trips not bound for or starting from CBD.") -> Copied from 'Cost-Benefit' tab, Cell I228, derived there as product of non-CBD saved m.v. hours derived in 'Motor Vs' tab, Row 1057 and the complement of the percentage of those hours that are saved on trips not bound for or starting from CBD.
B190: Daily m.v. hours saved outside Manhattan CBD, in trips where CBD was *not* origin or destination | E190: ='Cost-Benefit'!I245 -> 114394.9061 | F190: =E190*Travel!$G$93 -> 148084.6928
B191: =CONCATENATE("Copied from 'Cost-Benefit' tab, Cell I",'Cost-Benefit'!O228, ", derived there as product of non-CBD saved m.v. hours derived in 'Motor Vs' tab, Row ",'Motor Vs'!O1057, " and the percentage of those hours that are saved on trips not bound for or starting from CBD.") -> Copied from 'Cost-Benefit' tab, Cell I228, derived there as product of non-CBD saved m.v. hours derived in 'Motor Vs' tab, Row 1057 and the percentage of those hours that are saved on trips not bound for or starting from CBD.
B193: Total Motor Vehicle Hours saved on a typical weekday | E193: =E185+E187+E190 -> 205485.39 | F193: =F185+F187+F190 -> 266001.712
D194: Two different ways of parsing (separating) the above total
D195: Inside CBD vs. Outside CBD
D196: Inside | E196: =E185 -> 44686.56253 | F196: =F185 -> 57846.9454
D197: Outside | E197: =E187+E190 -> 160798.8275 | F197: =F187+F190 -> 208154.7666
D198: Combined | E198: =E196+E197 -> 205485.39 | F198: =F196+F197 -> 266001.712
D199: Trips starting or ending in CBD, vs. Trips having nothing to do w/ CBD
D200: CBD | E200: =E185+E187 -> 91090.48395 | F200: =F185+F187 -> 117917.0192
D201: No CBD | E201: =E190 -> 114394.9061 | F201: =F190 -> 148084.6928
D202: Combined | E202: =E200+E201 -> 205485.39 | F202: =F200+F201 -> 266001.712
B204: Transit Users | E204: Transit User Hrs | F204: Transit User Hrs
B205: Subway riders' hours saved | E205: ='Cost-Benefit'!I164/weekday_per_yr -> 216822.7839 | F205: =E205 -> 216822.7839
... 87 more rows

Sheet User Inputs
B1: User Inputs | K1: ='Title Page'!G2 -> 2017-06-05 | O1: =ROW() -> 1
O2: =ROW() -> 2
O3: =ROW() -> 3
O4: =ROW() -> 4
B5: RESULTS SNAPSHOT (for full results, click link:) | E5: Link to Results Page | I5: =CONCATENATE("Values in Columns F through J correspond to various proposed NYC toll plans. The 'Switch' that enables you to select from among these plans is located in Cell I",Results!M26, " of 'Results' worksheet tab.") -> Values in Columns F through J correspond to various proposed NYC toll plans. The 'Switch' that enables you to select from among these plans is located in Cell I26 of 'Results' worksheet tab. | O5: =ROW() -> 5
O6: =ROW() -> 6
B7: Selected Plan: | F7: =Results!I26 -> Move NY - Gridlock Sam Fair Plan (2015) | O7: =ROW() -> 7
I8: You can use this worksheet to test different toll and fare scenarios | O8: =ROW() -> 8
B9: Average CBD speed gain, 8 a.m. - 6 p.m.: | F9: =Results!$B$18 -> 0.1743140153 | I9: Feel free to alter those plans (Plans 3 - 6). Simply change the pertinent setting(s) in those columns. If you wish to save the BTA with your settings, we suggest you use a different filename. That way, you can reload the model w/o your changes. (Of course, you can always re-download the BTA, via link: http://www.nnyn.org/kheelplan/BTA_1.1.xls.) | O9: =ROW() -> 9
O10: =ROW() -> 10
B11: Annual net revenue (after netting tolling administration, toll discounts (if any), etc.): | F11: =Results!C18 -> 1460 | O11: =ROW() -> 11
F12: million / yr | I12: Values in blue font in "Baseline" Column E have been set to duplicate 2015 traffic and transit status quo. If that scenario has been selected, all results (changes in revenue, traffic, transit use, etc.) should equal zero, indicating that the model results accurately reflect current conditions (i.e., the model is correctly "initialized.") | O12: =ROW() -> 12
O13: =ROW() -> 13
B14: For complete results, click:) | E14: Link to Results Page | O14: =ROW() -> 14
O15: =ROW() -> 15
D16: Plan | O16: =ROW() -> 16
D17: =CONCATENATE("Calculations operate off plan chosen in 'Results' worksheet, Cell I",Results!M26, ".") -> Calculations operate off plan chosen in 'Results' worksheet, Cell I26. | O17: =ROW() -> 17
D18: Model copies values from selected column to Column K, from which they enter the "bloodstream" of the model. | O18: =ROW() -> 18
B19: Input Parameters | D19: Some details about parameter values | E19: 1. Baseline (replicates 2015 tolls and fares) | F19: 2. Baseline but w Fare Hike paying 4 Sub Cap Invest | G19: 3. Fare Toll (CBD toll = Subway Fare) | H19: 4. Move NY - Gridlock Sam Fair Plan (2015) | I19: 5. Move NY - Sam Plan w Variable Tolls (2015) | J19: 6. East River Bridge Tolls only (2015) | K19: Figures in this column automatically assume values of plan selected in 'Results' tab. | L19: Worksht where parameter featured | M19: Location within that worksheet | N19: What This 'Parameter' Is or Does | O19: =ROW() -> 19
O20: =ROW() -> 20
O21: =ROW() -> 21
O22: =ROW() -> 22
E23: Toll intervals are pre-set and can't be changed. However, you may vary toll amounts. | O23: =ROW() -> 23
B24: 1 | C24: Weekday Cordon Tolls (apply to Round Trip) | D24: Weekday Toll Intervals | L24: Weekday Hour | M24: Box, "Weekday Toll Levels," near top of Cols. G & H | N24: BTA can handle 7 weekday cordon toll levels (which we've collapsed into 5). While tolls can be any amount, we've tried to steer clear of complex toll structures. | O24: =ROW() -> 24
D25: 11 pm - 5 am (6 hrs) | E25: 0 | F25: 0 | G25: =2*$G$173 -> 5.5 | H25: =2*MTA_1Way_EZPass_2015 -> 11.08 | I25: 5 | J25: =2*MTA_1Way_EZPass_2015 -> 11.08 | K25: =MAX(0.00001,IF(Results!$I$26="Baseline",E25,IF(Results!$I$26="Fare Hikes pay for Subway Upgrades",F25,IF(Results!$I$26="Fare Toll (CBD toll = Subway Fare)",G25,IF(Results!$I$26="Move NY - Gridlock Sam Fair Plan (2015)",H25,IF(Results!$I$26="Move NY - Sam Plan w Variable Tolls (2015)",I25,J25)))))) -> 11.08 | O25: =ROW() -> 25
C26: =CONCATENATE("Note: values shown here may be reduced, in practice, by 'downstream' provisions in Items ",$B$68," & ",$B$80, ", or increased by Items ",$B$75," or ",$B$77,".") -> Note: values shown here may be reduced, in practice, by 'downstream' provisions in Items 11 & 15, or increased by Items 13 or 14. | D26: 5-6 am + 8-11 pm (4 hrs) | E26: 0 | F26: 0 | G26: =2*$G$173 -> 5.5 | H26: =2*MTA_1Way_EZPass_2015 -> 11.08 | I26: 5 | J26: =2*MTA_1Way_EZPass_2015 -> 11.08 | K26: =MAX(0.00001,IF(Results!$I$26="Baseline",E26,IF(Results!$I$26="Fare Hikes pay for Subway Upgrades",F26,IF(Results!$I$26="Fare Toll (CBD toll = Subway Fare)",G26,IF(Results!$I$26="Move NY - Gridlock Sam Fair Plan (2015)",H26,IF(Results!$I$26="Move NY - Sam Plan w Variable Tolls (2015)",I26,J26)))))) -> 11.08 | O26: =ROW() -> 26
D27: 10 am - 2 pm (4 hrs) | E27: 0 | F27: 0 | G27: =2*$G$173 -> 5.5 | H27: =2*MTA_1Way_EZPass_2015 -> 11.08 | I27: 15 | J27: =2*MTA_1Way_EZPass_2015 -> 11.08 | K27: =MAX(0.00001,IF(Results!$I$26="Baseline",E27,IF(Results!$I$26="Fare Hikes pay for Subway Upgrades",F27,IF(Results!$I$26="Fare Toll (CBD toll = Subway Fare)",G27,IF(Results!$I$26="Move NY - Gridlock Sam Fair Plan (2015)",H27,IF(Results!$I$26="Move NY - Sam Plan w Variable Tolls (2015)",I27,J27)))))) -> 11.08 | O27: =ROW() -> 27
D28: 9-10 am + 2-8 pm (7 hrs) | E28: 0 | F28: 0 | G28: =2*$G$173 -> 5.5 | H28: =2*MTA_1Way_EZPass_2015 -> 11.08 | I28: 15 | J28: =2*MTA_1Way_EZPass_2015 -> 11.08 | K28: =MAX(0.00001,IF(Results!$I$26="Baseline",E28,IF(Results!$I$26="Fare Hikes pay for Subway Upgrades",F28,IF(Results!$I$26="Fare Toll (CBD toll = Subway Fare)",G28,IF(Results!$I$26="Move NY - Gridlock Sam Fair Plan (2015)",H28,IF(Results!$I$26="Move NY - Sam Plan w Variable Tolls (2015)",I28,J28)))))) -> 11.08 | N28: Weekday Hours worksheet shows hours of day that make up each toll interval. | O28: =ROW() -> 28
D29: 6-9 am (3 hrs) | E29: 0 | F29: 0 | G29: =2*$G$173 -> 5.5 | H29: =2*MTA_1Way_EZPass_2015 -> 11.08 | I29: 15 | J29: =2*MTA_1Way_EZPass_2015 -> 11.08 | K29: =MAX(0.00001,IF(Results!$I$26="Baseline",E29,IF(Results!$I$26="Fare Hikes pay for Subway Upgrades",F29,IF(Results!$I$26="Fare Toll (CBD toll = Subway Fare)",G29,IF(Results!$I$26="Move NY - Gridlock Sam Fair Plan (2015)",H29,IF(Results!$I$26="Move NY - Sam Plan w Variable Tolls (2015)",I29,J29)))))) -> 11.08 | O29: =ROW() -> 29
E30: =CONCATENATE("Note: Formulas for Cells K",O25, "-K",O36, " use 'max' algorithm to ensure toll is non-zero (i.e., at least $0.001) to prevent instability in 'Incidence' tab.") -> Note: Formulas for Cells K25-K36 use 'max' algorithm to ensure toll is non-zero (i.e., at least $0.001) to prevent instability in 'Incidence' tab. | O30: =ROW() -> 30
B31: =B24+1 -> 2 | C31: Weekend Cordon Tolls (apply to Round Trip) | D31: Weekend Toll Intervals | L31: Weekend Hour | M31: Box, "Weekend Toll Levels," near top of Cols. AD & AE | N31: BTA can handle 5 weekend cordon toll levels (which we've collapsed into 4). While tolls can be any amount, we've tried to steer clear of complex toll structures. | O31: =ROW() -> 31
D32: Midnight - 10 am (10 hrs) | E32: 0 | F32: 0 | G32: =2*$G$173 -> 5.5 | H32: =2*MTA_1Way_EZPass_2015 -> 11.08 | I32: 5 | J32: =2*MTA_1Way_EZPass_2015 -> 11.08 | K32: =MAX(0.00001,IF(Results!$I$26="Baseline",E32,IF(Results!$I$26="Fare Hikes pay for Subway Upgrades",F32,IF(Results!$I$26="Fare Toll (CBD toll = Subway Fare)",G32,IF(Results!$I$26="Move NY - Gridlock Sam Fair Plan (2015)",H32,IF(Results!$I$26="Move NY - Sam Plan w Variable Tolls (2015)",I32,J32)))))) -> 11.08 | O32: =ROW() -> 32
C33: =CONCATENATE("Note: values shown here may be reduced, in practice, by 'downstream' provisions in Items ",$B$68," & ",$B$80, ", or increased by Items ",$B$75," or ",$B$77,".") -> Note: values shown here may be reduced, in practice, by 'downstream' provisions in Items 11 & 15, or increased by Items 13 or 14. | D33: 10-12 am + 10-12 pm (4 h) | E33: 0 | F33: 0 | G33: =2*$G$173 -> 5.5 | H33: =2*MTA_1Way_EZPass_2015 -> 11.08 | I33: 5 | J33: =2*MTA_1Way_EZPass_2015 -> 11.08 | K33: =MAX(0.00001,IF(Results!$I$26="Baseline",E33,IF(Results!$I$26="Fare Hikes pay for Subway Upgrades",F33,IF(Results!$I$26="Fare Toll (CBD toll = Subway Fare)",G33,IF(Results!$I$26="Move NY - Gridlock Sam Fair Plan (2015)",H33,IF(Results!$I$26="Move NY - Sam Plan w Variable Tolls (2015)",I33,J33)))))) -> 11.08 | O33: =ROW() -> 33
D34: Noon-5 pm + 8-10 pm (7 h) | E34: 0 | F34: 0 | G34: =2*$G$173 -> 5.5 | H34: =2*MTA_1Way_EZPass_2015 -> 11.08 | I34: 9 | J34: =2*MTA_1Way_EZPass_2015 -> 11.08 | K34: =MAX(0.00001,IF(Results!$I$26="Baseline",E34,IF(Results!$I$26="Fare Hikes pay for Subway Upgrades",F34,IF(Results!$I$26="Fare Toll (CBD toll = Subway Fare)",G34,IF(Results!$I$26="Move NY - Gridlock Sam Fair Plan (2015)",H34,IF(Results!$I$26="Move NY - Sam Plan w Variable Tolls (2015)",I34,J34)))))) -> 11.08 | O34: =ROW() -> 34
D35: 5-8 pm (3 hrs) | E35: 0 | F35: 0 | G35: =2*$G$173 -> 5.5 | H35: =2*MTA_1Way_EZPass_2015 -> 11.08 | I35: 9 | J35: =2*MTA_1Way_EZPass_2015 -> 11.08 | K35: =MAX(0.00001,IF(Results!$I$26="Baseline",E35,IF(Results!$I$26="Fare Hikes pay for Subway Upgrades",F35,IF(Results!$I$26="Fare Toll (CBD toll = Subway Fare)",G35,IF(Results!$I$26="Move NY - Gridlock Sam Fair Plan (2015)",H35,IF(Results!$I$26="Move NY - Sam Plan w Variable Tolls (2015)",I35,J35)))))) -> 11.08 | N35: Weekend Hours worksheet shows hours of day that make up each toll interval. | O35: =ROW() -> 35
E36: NA | F36: NA | G36: NA | H36: NA | I36: NA | J36: NA | K36: =MAX(0.00001,IF(Results!$I$26="Baseline",E36,IF(Results!$I$26="Fare Hikes pay for Subway Upgrades",F36,IF(Results!$I$26="Fare Toll (CBD toll = Subway Fare)",G36,IF(Results!$I$26="Move NY - Gridlock Sam Fair Plan (2015)",H36,IF(Results!$I$26="Move NY - Sam Plan w Variable Tolls (2015)",I36,J36)))))) -> 1e-05 | O36: =ROW() -> 36
O37: =ROW() -> 37
B38: =B31+1 -> 3 | C38: Toll One Direction or Two? | E38: 1 | F38: 1 | G38: 2 | H38: 2 | I38: 2 | J38: 2 | K38: =IF(Results!$I$26="Baseline",E38,IF(Results!$I$26="Fare Hikes pay for Subway Upgrades",F38,IF(Results!$I$26="Fare Toll (CBD toll = Subway Fare)",G38,IF(Results!$I$26="Move NY - Gridlock Sam Fair Plan (2015)",H38,IF(Results!$I$26="Move NY - Sam Plan w Variable Tolls (2015)",I38,J38))))) -> 2 | L38: Cordon | N38: This parameter ensures that toll admin costs est'd in Cordon worksheet reflect actual number of trips subjected to tolling. | O38: =ROW() -> 38
E39: Tolls shown in foregoing rows are round-trip amounts, in all cases. | O39: =ROW() -> 39
O40: =ROW() -> 40
B41: =B38+1 -> 4 | C41: Toll Entire Cordon, or just the Free Bridges? | D41: Values: | E41: CORDON | F41: CORDON | G41: CORDON | H41: CORDON | I41: CORDON | J41: EAST | K41: =IF(Results!$I$26="Baseline",E41,IF(Results!$I$26="Fare Hikes pay for Subway Upgrades",F41,IF(Results!$I$26="Fare Toll (CBD toll = Subway Fare)",G41,IF(Results!$I$26="Move NY - Gridlock Sam Fair Plan (2015)",H41,IF(Results!$I$26="Move NY - Sam Plan w Variable Tolls (2015)",I41,J41))))) -> CORDON | L41: Motor V's | N41: BTA is designed to model cordon tolls "(CORDON") but can also approximate effects of only tolling East and Harlem River bridges ("BRIDGES"), as Ravitch Commission proposed in 2008-09, or East River bridges only ("EAST"). | O41: =ROW() -> 41 | P41: CORDON
D42: CORDON | E42: =CONCATENATE("Note: BTA assumes tolls are charged in-bound only. To model bridge tolls charged in each direction, rather than one-way-only cordon toll, user should double intended each-way toll amount in arrays in Rows ",O25, "-",O36,".") -> Note: BTA assumes tolls are charged in-bound only. To model bridge tolls charged in each direction, rather than one-way-only cordon toll, user should double intended each-way toll amount in arrays in Rows 25-36. | O42: =ROW() -> 42
D43: BRIDGES | O43: =ROW() -> 43
D44: EAST | O44: =ROW() -> 44
O45: =ROW() -> 45
B46: =B41+1 -> 5 | C46: Toll Level for Harlem Riv bridges, % E Riv bridges | D46: Values: | E46: 0.5 | F46: 0.5 | G46: 0.5 | H46: 0.5 | I46: 0 | J46: 0 | K46: =MAX(0.00001,IF(Results!$I$26="Baseline",E46,IF(Results!$I$26="Fare Hikes pay for Subway Upgrades",F46,IF(Results!$I$26="Fare Toll (CBD toll = Subway Fare)",G46,IF(Results!$I$26="Move NY - Gridlock Sam Fair Plan (2015)",H46,IF(Results!$I$26="Move NY - Sam Plan w Variable Tolls (2015)",I46,J46)))))) -> 0.5 | L46: Bridges | N46: Applies only to "BRIDGES" scenario in which CBD cordon is not tolled, and East and Harlem River bridges are tolled instead. | O46: =ROW() -> 46 | P46: 0.5
D47: Percent | E47: =CONCATENATE("Above percents apply only if BRIDGES is selected in Row ",O41,". Otherwise, applicable % = zero.") -> Above percents apply only if BRIDGES is selected in Row 41. Otherwise, applicable % = zero. | O47: =ROW() -> 47
O48: =ROW() -> 48
B49: =B46+1 -> 6 | C49: Cordon Toll for Lincoln & Holland Tunnel Trips? If so, "Full" Toll or "Delta"? | D49: Values: | E49: NO | F49: NO | G49: NO | H49: NO | I49: NO | J49: NO | K49: =IF(Results!$I$26="Baseline",E49,IF(Results!$I$26="Fare Hikes pay for Subway Upgrades",F49,IF(Results!$I$26="Fare Toll (CBD toll = Subway Fare)",G49,IF(Results!$I$26="Move NY - Gridlock Sam Fair Plan (2015)",H49,IF(Results!$I$26="Move NY - Sam Plan w Variable Tolls (2015)",I49,J49))))) -> NO | O49: =ROW() -> 49 | P49: NO
D50: NO, DELTA or FULL | O50: =ROW() -> 50
O51: =ROW() -> 51
O52: =ROW() -> 52
B53: =B49+1 -> 7 | C53: Cordon Toll for Q-Midtown & Bklyn-Batt Tunnel Trips on Top of MTA Toll? | D53: Values: | E53: NO | F53: NO | G53: NO | H53: NO | I53: NO | J53: NO | K53: =IF(Results!$I$26="Baseline",E53,IF(Results!$I$26="Fare Hikes pay for Subway Upgrades",F53,IF(Results!$I$26="Fare Toll (CBD toll = Subway Fare)",G53,IF(Results!$I$26="Move NY - Gridlock Sam Fair Plan (2015)",H53,IF(Results!$I$26="Move NY - Sam Plan w Variable Tolls (2015)",I53,J53))))) -> NO | O53: =ROW() -> 53 | P53: NO
D54: YES | O54: =ROW() -> 54
D55: NO | O55: =ROW() -> 55
O56: =ROW() -> 56
B57: =B53+1 -> 8 | C57: Toll Trips Entering Manhattan via QBB Upper Roadway? If So, What $$? | D57: Values: | E57: ZERO | F57: ZERO | G57: PARTIAL | H57: PARTIAL | I57: PARTIAL | J57: PARTIAL | K57: =IF(Results!$I$26="Baseline",E57,IF(Results!$I$26="Fare Hikes pay for Subway Upgrades",F57,IF(Results!$I$26="Fare Toll (CBD toll = Subway Fare)",G57,IF(Results!$I$26="Move NY - Gridlock Sam Fair Plan (2015)",H57,IF(Results!$I$26="Move NY - Sam Plan w Variable Tolls (2015)",I57,J57))))) -> PARTIAL | O57: =ROW() -> 57 | P57: FULL
D58: ZERO, PARTIAL or FULL | O58: =ROW() -> 58
O59: =ROW() -> 59
O60: =ROW() -> 60
B61: =B57+1 -> 9 | C61: Is cordon toll "means-tested"? | D61: Values: | E61: NO | F61: NO | G61: NO | H61: NO | I61: NO | J61: NO | K61: =IF(Results!$I$26="Baseline",E61,IF(Results!$I$26="Fare Hikes pay for Subway Upgrades",F61,IF(Results!$I$26="Fare Toll (CBD toll = Subway Fare)",G61,IF(Results!$I$26="Move NY - Gridlock Sam Fair Plan (2015)",H61,IF(Results!$I$26="Move NY - Sam Plan w Variable Tolls (2015)",I61,J61))))) -> NO | L61: Motor V's | M61: Temporarily inactive | N61: Offers toll discounts for drivers who are both low-income and transit-underserved. | O61: =ROW() -> 61 | P61: NO
D62: YES or NO | E62: [This parameter was hard-wired to "NO" value in early 2013.] | O62: =ROW() -> 62
O63: =ROW() -> 63
B64: =B61+1 -> 10 | C64: Waive cordon toll for first trip of month by E-ZPass holders w/i MTA counties? | D64: Values: | E64: NO | F64: NO | G64: NO | H64: NO | I64: NO | J64: NO | K64: =IF(Results!$I$26="Baseline",E64,IF(Results!$I$26="Fare Hikes pay for Subway Upgrades",F64,IF(Results!$I$26="Fare Toll (CBD toll = Subway Fare)",G64,IF(Results!$I$26="Move NY - Gridlock Sam Fair Plan (2015)",H64,IF(Results!$I$26="Move NY - Sam Plan w Variable Tolls (2015)",I64,J64))))) -> NO | L64: Motor V's | M64: =CONCATENATE("Row ",'Motor Vs'!O331,"") -> Row 331 | N64: This feature zeroes out, from each E-ZPass account on autos registered within the MTA 12-county region, the toll for the auto's first trip into or through the cordon, in each month. | O64: =ROW() -> 64 | P64: NO
D65: YES or NO | O65: =ROW() -> 65
O66: =ROW() -> 66
O67: =ROW() -> 67
B68: =B64+1 -> 11 | C68: Non-Revenue Vehicles, % of Traffic Entering CBD | E68: 0 | F68: 0 | G68: 0.025 | H68: 0.025 | I68: 0.025 | J68: 0.025 | K68: =IF(Results!$I$26="Baseline",E68,IF(Results!$I$26="Fare Hikes pay for Subway Upgrades",F68,IF(Results!$I$26="Fare Toll (CBD toll = Subway Fare)",G68,IF(Results!$I$26="Move NY - Gridlock Sam Fair Plan (2015)",H68,IF(Results!$I$26="Move NY - Sam Plan w Variable Tolls (2015)",I68,J68))))) -> 0.025 | L68: Motor V's | M68: =CONCATENATE("Row ",'Motor Vs'!O365, " Col. K") -> Row 365 Col. K | N68: Exemptions for police, fire, disabled (maybe) + fare-beaters. Set at 2x QMT, BBT and Triboro Br. (except "Bloomberg" scenario, which offered extensive rebates for upstream toll payments). | O68: =ROW() -> 68 | P68: 0.2
O69: =ROW() -> 69
O70: =ROW() -> 70
O71: =ROW() -> 71
B72: =B68+1 -> 12 | C72: Compensate PANYNJ for reduced GWB toll rev? | D72: Values: | E72: NO | F72: NO | G72: NO | H72: NO | I72: NO | J72: NO | K72: =IF(Results!$I$26="Baseline",E72,IF(Results!$I$26="Fare Hikes pay for Subway Upgrades",F72,IF(Results!$I$26="Fare Toll (CBD toll = Subway Fare)",G72,IF(Results!$I$26="Move NY - Gridlock Sam Fair Plan (2015)",H72,IF(Results!$I$26="Move NY - Sam Plan w Variable Tolls (2015)",I72,J72))))) -> NO | L72: Revenues | M72: =CONCATENATE("Cell P",Revenues!Q161,"") -> Cell P161 | N72: Provides option to "buy out" Port Authority by compensating it for revenue lost as cordon toll reduces use of GW Bridge. | O72: =ROW() -> 72 | P72: NO
D73: YES or NO | O73: =ROW() -> 73
O74: =ROW() -> 74
B75: =B72+1 -> 13 | C75: Surcharge if Pay w/ Cash | E75: 0 | F75: 0 | G75: =2*1.25 -> 2.5 | H75: =2*(MTA_1Way_Cash_2015-MTA_1Way_EZPass_2015) -> 4.92 | I75: =2*(MTA_1Way_Cash_2015-MTA_1Way_EZPass_2015) -> 4.92 | J75: =2*(MTA_1Way_Cash_2015-MTA_1Way_EZPass_2015) -> 4.92 | K75: =IF(Results!$I$26="Baseline",E75,IF(Results!$I$26="Fare Hikes pay for Subway Upgrades",F75,IF(Results!$I$26="Fare Toll (CBD toll = Subway Fare)",G75,IF(Results!$I$26="Move NY - Gridlock Sam Fair Plan (2015)",H75,IF(Results!$I$26="Move NY - Sam Plan w Variable Tolls (2015)",I75,J75))))) -> 4.92 | L75: Motor V's | M75: =CONCATENATE("Row ",'Motor Vs'!O307,"") -> Row 307 | N75: Per round-trip. Captures admin costs when E-ZPass not used. | O75: =ROW() -> 75 | P75: 0
O76: =ROW() -> 76
B77: =B75+1 -> 14 | C77: Truck cordon toll (average ratio to auto toll) | E77: =Trucks!E133 -> 2.148527132 | F77: =Trucks!E133 -> 2.148527132 | G77: =H77 -> 2.192185375 | H77: =Trucks!H133 -> 2.192185375 | I77: =Trucks!I133 -> 2.192185375 | J77: =Trucks!J133 -> 2.192185375 | K77: =IF(Results!$I$26="Baseline",E77,IF(Results!$I$26="Fare Hikes pay for Subway Upgrades",F77,IF(Results!$I$26="Fare Toll (CBD toll = Subway Fare)",G77,IF(Results!$I$26="Move NY - Gridlock Sam Fair Plan (2015)",H77,IF(Results!$I$26="Move NY - Sam Plan w Variable Tolls (2015)",I77,J77))))) -> 2.192185375 | L77: Motor V's | M77: =CONCATENATE("Column AZ, Row ",'Motor Vs'!O286,"") -> Column AZ, Row 286 | N77: =CONCATENATE("BTA 'graduates' truck tolls based on # of axles. Value is developed in 'Trucks' worksheet, at Row ",Trucks!U138, ". Figure is rounded.") -> BTA 'graduates' truck tolls based on # of axles. Value is developed in 'Trucks' worksheet, at Row 138. Figure is rounded. | O77: =ROW() -> 77 | P77: =Trucks!P133 -> 0
O78: =ROW() -> 78
O79: =ROW() -> 79
B80: =B77+1 -> 15 | C80: Discount for day's 2nd trip to CBD (comm. veh. only) | E80: 0 | F80: 0 | G80: 1 | H80: 1 | I80: 1 | J80: 1 | K80: =IF(Results!$I$26="Baseline",E80,IF(Results!$I$26="Fare Hikes pay for Subway Upgrades",F80,IF(Results!$I$26="Fare Toll (CBD toll = Subway Fare)",G80,IF(Results!$I$26="Move NY - Gridlock Sam Fair Plan (2015)",H80,IF(Results!$I$26="Move NY - Sam Plan w Variable Tolls (2015)",I80,J80))))) -> 1 | L80: Motor V's | M80: =CONCATENATE("Column BG, Row ",'Motor Vs'!O302,"") -> Column BG, Row 302 | N80: Applies to second or more trips into cordon zone on same day, by any vehicle with commercial plates. | O80: =ROW() -> 80 | P80: 0
O81: =ROW() -> 81
O82: =ROW() -> 82
B83: =B80+1 -> 16 | C83: Share of 60th St net toll revenues taken by NYC | E83: 0 | F83: 0 | G83: 0 | H83: 0 | I83: 0 | J83: 0 | K83: =IF(Results!$I$26="Baseline",E83,IF(Results!$I$26="Fare Hikes pay for Subway Upgrades",F83,IF(Results!$I$26="Fare Toll (CBD toll = Subway Fare)",G83,IF(Results!$I$26="Move NY - Gridlock Sam Fair Plan (2015)",H83,IF(Results!$I$26="Move NY - Sam Plan w Variable Tolls (2015)",I83,J83))))) -> 0 | N83: Is zero except for "MTA Inputs" scenario. | O83: =ROW() -> 83 | P83: 0
O84: =ROW() -> 84
O85: =ROW() -> 85
B86: =B83+1 -> 17 | C86: Reduce tolls on MTA/TBTA bridges? | D86: %'s are illustrative only | E86: 0 | F86: 0 | G86: 0 | H86: ='MTA Crossings'!$T$276 -> -0.4382306074 | I86: ='MTA Crossings'!$T$276 -> -0.4382306074 | J86: ='MTA Crossings'!$T$276 -> -0.4382306074 | K86: =IF(Results!$I$26="Baseline",E86,IF(Results!$I$26="Fare Hikes pay for Subway Upgrades",F86,IF(Results!$I$26="Fare Toll (CBD toll = Subway Fare)",G86,IF(Results!$I$26="Move NY - Gridlock Sam Fair Plan (2015)",H86,IF(Results!$I$26="Move NY - Sam Plan w Variable Tolls (2015)",I86,J86))))) -> -0.4382306074 | L86: MTA Crossings | M86: Section C | O86: =ROW() -> 86 | P86: 0
O87: =ROW() -> 87
C88: Verrazano Bridge | D88: $ change, each way (discount is doubled for Verrazano, since its toll is charged in only one direction, whereas other MTA crossings charge in both directions) | E88: 0 | F88: 0 | G88: =G$86*MTA_1Way_EZPass_2015 -> 0 | H88: -2.5 | I88: -2.5 | J88: 0 | K88: =IF(Results!$I$26="Baseline",E88,IF(Results!$I$26="Fare Hikes pay for Subway Upgrades",F88,IF(Results!$I$26="Fare Toll (CBD toll = Subway Fare)",G88,IF(Results!$I$26="Move NY - Gridlock Sam Fair Plan (2015)",H88,IF(Results!$I$26="Move NY - Sam Plan w Variable Tolls (2015)",I88,J88))))) -> -2.5 | O88: =ROW() -> 88 | P88: 0
C89: Triborough Br (Manhattan) | E89: 0 | F89: 0 | G89: =G$86*MTA_1Way_EZPass_2015 -> 0 | H89: -2.5 | I89: -2.5 | J89: 0 | K89: =IF(Results!$I$26="Baseline",E89,IF(Results!$I$26="Fare Hikes pay for Subway Upgrades",F89,IF(Results!$I$26="Fare Toll (CBD toll = Subway Fare)",G89,IF(Results!$I$26="Move NY - Gridlock Sam Fair Plan (2015)",H89,IF(Results!$I$26="Move NY - Sam Plan w Variable Tolls (2015)",I89,J89))))) -> -2.5 | O89: =ROW() -> 89 | P89: 0
C90: Triborough Bridge (Bronx) | E90: 0 | F90: 0 | G90: =G$86*MTA_1Way_EZPass_2015 -> 0 | H90: -2.5 | I90: -2.5 | J90: 0 | K90: =IF(Results!$I$26="Baseline",E90,IF(Results!$I$26="Fare Hikes pay for Subway Upgrades",F90,IF(Results!$I$26="Fare Toll (CBD toll = Subway Fare)",G90,IF(Results!$I$26="Move NY - Gridlock Sam Fair Plan (2015)",H90,IF(Results!$I$26="Move NY - Sam Plan w Variable Tolls (2015)",I90,J90))))) -> -2.5 | O90: =ROW() -> 90 | P90: 0
C91: Bronx Whitestone Bridge | E91: 0 | F91: 0 | G91: =G$86*MTA_1Way_EZPass_2015 -> 0 | H91: -2.5 | I91: -2.5 | J91: 0 | K91: =IF(Results!$I$26="Baseline",E91,IF(Results!$I$26="Fare Hikes pay for Subway Upgrades",F91,IF(Results!$I$26="Fare Toll (CBD toll = Subway Fare)",G91,IF(Results!$I$26="Move NY - Gridlock Sam Fair Plan (2015)",H91,IF(Results!$I$26="Move NY - Sam Plan w Variable Tolls (2015)",I91,J91))))) -> -2.5 | O91: =ROW() -> 91 | P91: 0
C92: Throgs Neck Bridge | E92: 0 | F92: 0 | G92: =G$86*MTA_1Way_EZPass_2015 -> 0 | H92: -2.5 | I92: -2.5 | J92: 0 | K92: =IF(Results!$I$26="Baseline",E92,IF(Results!$I$26="Fare Hikes pay for Subway Upgrades",F92,IF(Results!$I$26="Fare Toll (CBD toll = Subway Fare)",G92,IF(Results!$I$26="Move NY - Gridlock Sam Fair Plan (2015)",H92,IF(Results!$I$26="Move NY - Sam Plan w Variable Tolls (2015)",I92,J92))))) -> -2.5 | O92: =ROW() -> 92 | P92: 0
C93: Brooklyn Battery Tunnel | E93: 0 | F93: 0 | G93: 0 | H93: 0 | I93: 0 | J93: 0 | K93: =IF(Results!$I$26="Baseline",E93,IF(Results!$I$26="Fare Hikes pay for Subway Upgrades",F93,IF(Results!$I$26="Fare Toll (CBD toll = Subway Fare)",G93,IF(Results!$I$26="Move NY - Gridlock Sam Fair Plan (2015)",H93,IF(Results!$I$26="Move NY - Sam Plan w Variable Tolls (2015)",I93,J93))))) -> 0 | O93: =ROW() -> 93 | P93: 0
C94: Queens Midtown Tunnel | E94: 0 | F94: 0 | G94: 0 | H94: 0 | I94: 0 | J94: 0 | K94: =IF(Results!$I$26="Baseline",E94,IF(Results!$I$26="Fare Hikes pay for Subway Upgrades",F94,IF(Results!$I$26="Fare Toll (CBD toll = Subway Fare)",G94,IF(Results!$I$26="Move NY - Gridlock Sam Fair Plan (2015)",H94,IF(Results!$I$26="Move NY - Sam Plan w Variable Tolls (2015)",I94,J94))))) -> 0 | O94: =ROW() -> 94 | P94: 0
C95: Henry Hudson Bridge | E95: 0 | F95: 0 | G95: 0 | H95: -1 | I95: -1 | J95: 0 | K95: =IF(Results!$I$26="Baseline",E95,IF(Results!$I$26="Fare Hikes pay for Subway Upgrades",F95,IF(Results!$I$26="Fare Toll (CBD toll = Subway Fare)",G95,IF(Results!$I$26="Move NY - Gridlock Sam Fair Plan (2015)",H95,IF(Results!$I$26="Move NY - Sam Plan w Variable Tolls (2015)",I95,J95))))) -> -1 | O95: =ROW() -> 95 | P95: 0
C96: Marine Parkway Bridge | E96: 0 | F96: 0 | G96: =G$86*Bridges!$G$83 -> 0 | H96: -1 | I96: -1 | J96: 0 | K96: =IF(Results!$I$26="Baseline",E96,IF(Results!$I$26="Fare Hikes pay for Subway Upgrades",F96,IF(Results!$I$26="Fare Toll (CBD toll = Subway Fare)",G96,IF(Results!$I$26="Move NY - Gridlock Sam Fair Plan (2015)",H96,IF(Results!$I$26="Move NY - Sam Plan w Variable Tolls (2015)",I96,J96))))) -> -1 | O96: =ROW() -> 96 | P96: 0
C97: Cross Bay Bridge | E97: 0 | F97: 0 | G97: =G$86*Bridges!$G$83 -> 0 | H97: -1 | I97: -1 | J97: 0 | K97: =IF(Results!$I$26="Baseline",E97,IF(Results!$I$26="Fare Hikes pay for Subway Upgrades",F97,IF(Results!$I$26="Fare Toll (CBD toll = Subway Fare)",G97,IF(Results!$I$26="Move NY - Gridlock Sam Fair Plan (2015)",H97,IF(Results!$I$26="Move NY - Sam Plan w Variable Tolls (2015)",I97,J97))))) -> -1 | O97: =ROW() -> 97 | P97: 0
O98: =ROW() -> 98
B99: =B86+1 -> 18 | C99: Allow toll exemption for upstream/downstream trips on MTA bridges? | D99: Values: | E99: NO | F99: NO | G99: NO | H99: NO | I99: NO | J99: NO | K99: =IF(Results!$I$26="Baseline",E99,IF(Results!$I$26="Fare Hikes pay for Subway Upgrades",F99,IF(Results!$I$26="Fare Toll (CBD toll = Subway Fare)",G99,IF(Results!$I$26="Move NY - Gridlock Sam Fair Plan (2015)",H99,IF(Results!$I$26="Move NY - Sam Plan w Variable Tolls (2015)",I99,J99))))) -> NO | N99: This 'switch' allows user to invoke a policy option to deduct tolls on MTA bridges from CBD tolls paid on same day, provided former is less than latter and E-ZPass is used. | O99: =ROW() -> 99 | P99: NO
D100: 'YES' or 'NO' | O100: =ROW() -> 100
O101: =ROW() -> 101
O102: =ROW() -> 102
B103: =B99+1 -> 19 | C103: Eliminate sales tax break for Manhattan residents' monthly parking? | D103: Values: | E103: NO | F103: NO | G103: YES | H103: YES | I103: YES | J103: NO | K103: =IF(Results!$I$26="Baseline",E103,IF(Results!$I$26="Fare Hikes pay for Subway Upgrades",F103,IF(Results!$I$26="Fare Toll (CBD toll = Subway Fare)",G103,IF(Results!$I$26="Move NY - Gridlock Sam Fair Plan (2015)",H103,IF(Results!$I$26="Move NY - Sam Plan w Variable Tolls (2015)",I103,J103))))) -> YES | L103: Parking | M103: Section 6 | N103: =CONCATENATE("NYC sales tax charges 18.375% for parking, but Manhattanites who park monthly qualify for 8% rate. Ending the 10.375% break would raise revenue est'd in 'Parking' tab, Cell I",Parking!O484, ".") -> NYC sales tax charges 18.375% for parking, but Manhattanites who park monthly qualify for 8% rate. Ending the 10.375% break would raise revenue est'd in 'Parking' tab, Cell I484. | O103: =ROW() -> 103 | P103: NO
D104: 'YES' or 'NO' | O104: =ROW() -> 104
O105: =ROW() -> 105
O106: =ROW() -> 106
B107: =B103+1 -> 20 | C107: Charge cordon toll to yellows and Ubers? | D107: Values: | E107: NO | F107: NO | G107: NO | H107: NO | I107: NO | J107: NO | K107: =IF(Results!$I$26="Baseline",E107,IF(Results!$I$26="Fare Hikes pay for Subway Upgrades",F107,IF(Results!$I$26="Fare Toll (CBD toll = Subway Fare)",G107,IF(Results!$I$26="Move NY - Gridlock Sam Fair Plan (2015)",H107,IF(Results!$I$26="Move NY - Sam Plan w Variable Tolls (2015)",I107,J107))))) -> NO | O107: =ROW() -> 107 | P107: NO
D108: 'YES' or 'NO' | O108: =ROW() -> 108
O109: =ROW() -> 109
B110: =B107+1 -> 21 | C110: Surcharge yellow cabs and Ubers w/ $ and ¢ per distance and wait time w/i CBD? | O110: =ROW() -> 110
D111: Values: | E111: NO | F111: NO | G111: YES | H111: YES | I111: YES | J111: YES | K111: =IF(Results!$I$26="Baseline",E111,IF(Results!$I$26="Fare Hikes pay for Subway Upgrades",F111,IF(Results!$I$26="Fare Toll (CBD toll = Subway Fare)",G111,IF(Results!$I$26="Move NY - Gridlock Sam Fair Plan (2015)",H111,IF(Results!$I$26="Move NY - Sam Plan w Variable Tolls (2015)",I111,J111))))) -> YES | N111: =CONCATENATE("One but not both of the entries in Rows ",O111, " and ",O123, " should be YES while the other should be NO. A YES value in Row ",O111, " means that the taxi-FHV surcharge will be calculated and applied on a $ per mile and $ per wait-time basis. A YES value in Row ",O123, " means that the surcharge will be calculated and applied as a percent adder to the base fare. Note that if YES is selected for both entries, " & "the YES in Row ",O111," overrides the YES in Row ",O123, ".") -> One but not both of the entries in Rows 111 and 123 should be YES while the other should be NO. A YES value in Row 111 means that the taxi-FHV surcharge will be calculated and applied on a $ per mile and $ per wait-time basis. A YES value in Row 123 means that the surcharge will be calculated and applied as a percent adder to the base fare. Note that if YES is selected for both entries, the YES in Row 111 overrides the YES in Row 123. | O111: =ROW() -> 111 | P111: NO
D112: 'YES' or 'NO' | O112: =ROW() -> 112
E113: =CONCATENATE("Rates apply if and only if value in Cell K",O111, " is YES.") -> Rates apply if and only if value in Cell K111 is YES. | O113: =ROW() -> 113
B114: =B110+1 -> 22 | C114: $ and ¢ surchrgs, wkdays | O114: =ROW() -> 114
C115: A. Per-Mile Rate ($ Incrs) | E115: 0 | F115: 0 | G115: =4/5*H115 -> 0.48 | H115: 0.6 | I115: 0.6 | J115: 0.6 | K115: =IF(Results!$I$26="Baseline",E115,IF(Results!$I$26="Fare Hikes pay for Subway Upgrades",F115,IF(Results!$I$26="Fare Toll (CBD toll = Subway Fare)",G115,IF(Results!$I$26="Move NY - Gridlock Sam Fair Plan (2015)",H115,IF(Results!$I$26="Move NY - Sam Plan w Variable Tolls (2015)",I115,J115))))) -> 0.6 | O115: =ROW() -> 115 | P115: NA
C116: B. Wait Time Rate ($ Incrs) | E116: 0 | F116: 0 | G116: =4/5*H116 -> 0.16 | H116: 0.2 | I116: 0.2 | J116: 0.2 | K116: =IF(Results!$I$26="Baseline",E116,IF(Results!$I$26="Fare Hikes pay for Subway Upgrades",F116,IF(Results!$I$26="Fare Toll (CBD toll = Subway Fare)",G116,IF(Results!$I$26="Move NY - Gridlock Sam Fair Plan (2015)",H116,IF(Results!$I$26="Move NY - Sam Plan w Variable Tolls (2015)",I116,J116))))) -> 0.2 | O116: =ROW() -> 116 | P116: NA
O117: =ROW() -> 117
B118: =B114+1 -> 23 | C118: $ and ¢ surchrgs, wkends | O118: =ROW() -> 118
C119: A. Per-Mile Rate ($ Incrs) | E119: =0.5*E115 -> 0 | F119: 0 | G119: =4/5*H119 -> 0.24 | H119: =0.5*H115 -> 0.3 | I119: 0.3 | J119: =0.5*J115 -> 0.3 | K119: =IF(Results!$I$26="Baseline",E119,IF(Results!$I$26="Fare Hikes pay for Subway Upgrades",F119,IF(Results!$I$26="Fare Toll (CBD toll = Subway Fare)",G119,IF(Results!$I$26="Move NY - Gridlock Sam Fair Plan (2015)",H119,IF(Results!$I$26="Move NY - Sam Plan w Variable Tolls (2015)",I119,J119))))) -> 0.3 | O119: =ROW() -> 119 | P119: NA
C120: B. Wait Time Rate ($ Incrs) | E120: 0 | F120: =0.5*F116 -> 0 | G120: =4/5*H120 -> 0.08 | H120: 0.1 | I120: 0.1 | J120: =0.5*J116 -> 0.1 | K120: =IF(Results!$I$26="Baseline",E120,IF(Results!$I$26="Fare Hikes pay for Subway Upgrades",F120,IF(Results!$I$26="Fare Toll (CBD toll = Subway Fare)",G120,IF(Results!$I$26="Move NY - Gridlock Sam Fair Plan (2015)",H120,IF(Results!$I$26="Move NY - Sam Plan w Variable Tolls (2015)",I120,J120))))) -> 0.1 | O120: =ROW() -> 120 | P120: NA
O121: =ROW() -> 121
B122: =B118+1 -> 24 | C122: Surcharge yellow cabs and Ubers as % of distance and wait time charges w/i CBD? | O122: =ROW() -> 122
D123: Values: | E123: YES | F123: NO | G123: NO | H123: NO | I123: NO | J123: NO | K123: =IF(Results!$I$26="Baseline",E123,IF(Results!$I$26="Fare Hikes pay for Subway Upgrades",F123,IF(Results!$I$26="Fare Toll (CBD toll = Subway Fare)",G123,IF(Results!$I$26="Move NY - Gridlock Sam Fair Plan (2015)",H123,IF(Results!$I$26="Move NY - Sam Plan w Variable Tolls (2015)",I123,J123))))) -> NO | O123: =ROW() -> 123 | P123: YES
D124: 'YES' or 'NO' | O124: =ROW() -> 124
E125: =CONCATENATE("Rates apply if and only if value in Cell K",O123, " is YES.") -> Rates apply if and only if value in Cell K123 is YES. | O125: =ROW() -> 125
B126: =B122+1 -> 25 | C126: Taxi Surcharge, Weekdays | N126: High values raise more revenue and dampen possible boomlet in taxi use in response to improved CBD travel speeds (which also reduce effective fare rise by trimming taxi wait time). In future, we may vary surcharge by time of day to reflect congestion. | O126: =ROW() -> 126
C127: A. Drop ($ Increase) | E127: 0 | F127: 0 | G127: =4/5*H127 -> 0.4 | H127: 0.5 | I127: 0.5 | J127: 0.5 | K127: =IF(Results!$I$26="Baseline",E127,IF(Results!$I$26="Fare Hikes pay for Subway Upgrades",F127,IF(Results!$I$26="Fare Toll (CBD toll = Subway Fare)",G127,IF(Results!$I$26="Move NY - Gridlock Sam Fair Plan (2015)",H127,IF(Results!$I$26="Move NY - Sam Plan w Variable Tolls (2015)",I127,J127))))) -> 0.5 | L127: Taxis | M127: =CONCATENATE("Rows ",Taxis!O$549," to ",Taxis!O$608,"") -> Rows 549 to 608 | O127: =ROW() -> 127
C128: B. Per-Mile Rate (% Incrs) | E128: 0 | F128: 0 | G128: =4/5*H128 -> 0.12 | H128: 0.15 | I128: 0.15 | J128: 0.15 | K128: =IF(Results!$I$26="Baseline",E128,IF(Results!$I$26="Fare Hikes pay for Subway Upgrades",F128,IF(Results!$I$26="Fare Toll (CBD toll = Subway Fare)",G128,IF(Results!$I$26="Move NY - Gridlock Sam Fair Plan (2015)",H128,IF(Results!$I$26="Move NY - Sam Plan w Variable Tolls (2015)",I128,J128))))) -> 0.15 | O128: =ROW() -> 128
C129: C. Wait Time Rate (% Incrs) | E129: 0 | F129: 0 | G129: =4/5*H129 -> 0.16 | H129: 0.2 | I129: 0.2 | J129: 0.2 | K129: =IF(Results!$I$26="Baseline",E129,IF(Results!$I$26="Fare Hikes pay for Subway Upgrades",F129,IF(Results!$I$26="Fare Toll (CBD toll = Subway Fare)",G129,IF(Results!$I$26="Move NY - Gridlock Sam Fair Plan (2015)",H129,IF(Results!$I$26="Move NY - Sam Plan w Variable Tolls (2015)",I129,J129))))) -> 0.2 | O129: =ROW() -> 129
O130: =ROW() -> 130
B131: =B126+1 -> 26 | C131: Taxi Surcharge, Weekends | O131: =ROW() -> 131
C132: A. Drop ($ Increase) | E132: 0 | F132: 0 | G132: =4/5*H132 -> 0.2 | H132: =1/4 -> 0.25 | I132: =1/4 -> 0.25 | J132: =1/4 -> 0.25 | K132: =IF(Results!$I$26="Baseline",E132,IF(Results!$I$26="Fare Hikes pay for Subway Upgrades",F132,IF(Results!$I$26="Fare Toll (CBD toll = Subway Fare)",G132,IF(Results!$I$26="Move NY - Gridlock Sam Fair Plan (2015)",H132,IF(Results!$I$26="Move NY - Sam Plan w Variable Tolls (2015)",I132,J132))))) -> 0.25 | L132: Taxis | M132: =CONCATENATE("Rows ",Taxis!O$549," to ",Taxis!O$608,"") -> Rows 549 to 608 | N132: =CONCATENATE("(See notes for Weekday Surcharge, Row ",O126, ".)") -> (See notes for Weekday Surcharge, Row 126.) | O132: =ROW() -> 132
C133: B. Per-Mile Rate (% Incrs) | E133: 0 | F133: 0 | G133: =4/5*H133 -> 0.06 | H133: 0.075 | I133: 0.075 | J133: 0.075 | K133: =IF(Results!$I$26="Baseline",E133,IF(Results!$I$26="Fare Hikes pay for Subway Upgrades",F133,IF(Results!$I$26="Fare Toll (CBD toll = Subway Fare)",G133,IF(Results!$I$26="Move NY - Gridlock Sam Fair Plan (2015)",H133,IF(Results!$I$26="Move NY - Sam Plan w Variable Tolls (2015)",I133,J133))))) -> 0.075 | O133: =ROW() -> 133
C134: C. Wait Time Rate (% Incrs) | E134: 0 | F134: 0 | G134: =4/5*H134 -> 0.08 | H134: 0.1 | I134: 0.1 | J134: 0.1 | K134: =IF(Results!$I$26="Baseline",E134,IF(Results!$I$26="Fare Hikes pay for Subway Upgrades",F134,IF(Results!$I$26="Fare Toll (CBD toll = Subway Fare)",G134,IF(Results!$I$26="Move NY - Gridlock Sam Fair Plan (2015)",H134,IF(Results!$I$26="Move NY - Sam Plan w Variable Tolls (2015)",I134,J134))))) -> 0.1 | O134: =ROW() -> 134
O135: =ROW() -> 135
B136: =B131+1 -> 27 | C136: Boundary of zone in which taxi surcharges apply | D136: Values: | E136: NONE | F136: NONE | G136: 96 | H136: 96 | I136: 96 | J136: 96 | K136: =IF(Results!$I$26="Baseline",E136,IF(Results!$I$26="Fare Hikes pay for Subway Upgrades",F136,IF(Results!$I$26="Fare Toll (CBD toll = Subway Fare)",G136,IF(Results!$I$26="Move NY - Gridlock Sam Fair Plan (2015)",H136,IF(Results!$I$26="Move NY - Sam Plan w Variable Tolls (2015)",I136,J136))))) -> 96 | L136: Taxis | N136: Entries at left are shorthand. Entry other than 'NONE' (e.g., 60 St) means surchrg applies only in Manhattan S of street shown. | O136: =ROW() -> 136
D137: '96' or '60' or 'NONE' | O137: =ROW() -> 137
O138: =ROW() -> 138
B139: =B136+1 -> 28 | C139: % Taxi Srchrg Revenue Reserved for Drivers | E139: 0 | F139: 0 | G139: 0 | H139: 0 | I139: 0 | J139: 0 | K139: =IF(Results!$I$26="Baseline",E139,IF(Results!$I$26="Fare Hikes pay for Subway Upgrades",F139,IF(Results!$I$26="Fare Toll (CBD toll = Subway Fare)",G139,IF(Results!$I$26="Move NY - Gridlock Sam Fair Plan (2015)",H139,IF(Results!$I$26="Move NY - Sam Plan w Variable Tolls (2015)",I139,J139))))) -> 0 | L139: Taxis | N139: Allocating a share of surcharge revenues to taxi drivers is good policy both ethically and politically. | O139: =ROW() -> 139
O140: =ROW() -> 140
O141: =ROW() -> 141
B142: =B139+1 -> 29 | C142: Street Space Repurposed from autos | E142: 0 | F142: 0 | G142: 0 | H142: 0 | I142: 0 | J142: 0 | K142: =IF(Results!$I$26="Baseline",E142,IF(Results!$I$26="Fare Hikes pay for Subway Upgrades",F142,IF(Results!$I$26="Fare Toll (CBD toll = Subway Fare)",G142,IF(Results!$I$26="Move NY - Gridlock Sam Fair Plan (2015)",H142,IF(Results!$I$26="Move NY - Sam Plan w Variable Tolls (2015)",I142,J142))))) -> 0 | L142: Motor V's | M142: =CONCATENATE("Row ",'Motor Vs'!O473,) -> Row 473 | N142: Anticipated drop in traffic w/ cordon toll could allow NYC to "repurpose" some of the CBD's est'd 907 lane-miles of streets. Note that 1 lane-mile = 1.4 acres. (See Cordon worksheet.) | O142: =ROW() -> 142
E143: (lane-miles) | F143: (lane-miles) | G143: (lane-miles) | H143: (lane-miles) | I143: (lane-miles) | J143: (lane-miles) | K143: (lane-miles) | O143: =ROW() -> 143
O144: =ROW() -> 144
B145: =B142+1 -> 30 | C145: Share of Transit Windfall $ booked as Net Revenue | E145: 1 | F145: 0 | G145: 1 | H145: 1 | I145: 1 | J145: 1 | K145: =IF(Results!$I$26="Baseline",E145,IF(Results!$I$26="Fare Hikes pay for Subway Upgrades",F145,IF(Results!$I$26="Fare Toll (CBD toll = Subway Fare)",G145,IF(Results!$I$26="Move NY - Gridlock Sam Fair Plan (2015)",H145,IF(Results!$I$26="Move NY - Sam Plan w Variable Tolls (2015)",I145,J145))))) -> 1 | N145: A number less than 100% would reflect perceived need to reflect additional operating costs from increased ridership whose farebox revenues would otherwise be credited to revenue pot. | O145: =ROW() -> 145
O146: =ROW() -> 146
O147: =ROW() -> 147
B148: =B145+1 -> 31 | C148: Annual Investment in Transit System Upgrades & Expansions | E148: 0 | F148: ='Taxes Instead'!J235/1000000 -> 308 | G148: 600 | H148: 980 | I148: 980 | J148: 660 | K148: =IF(Results!$I$26="Baseline",E148,IF(Results!$I$26="Fare Hikes pay for Subway Upgrades",F148,IF(Results!$I$26="Fare Toll (CBD toll = Subway Fare)",G148,IF(Results!$I$26="Move NY - Gridlock Sam Fair Plan (2015)",H148,IF(Results!$I$26="Move NY - Sam Plan w Variable Tolls (2015)",I148,J148))))) -> 980 | L148: Transit | M148: =CONCATENATE("Row ",Transit!O208,) -> Row 208 | N148: =CONCATENATE("Toll revs invested in transit capital spending to keep transit in state of good repair + expedite/enable new service. Scenario #3 is " & "set to debt service to fund NYC Transit part of cap plan and is derived in 'Taxes Instead' tab beginning at Row ",'Taxes Instead'!L248, ".") -> Toll revs invested in transit capital spending to keep transit in state of good repair + expedite/enable new service. Scenario #3 is set to debt service to fund NYC Transit part of cap plan and is derived in 'Taxes Instead' tab beginning at Row 248. | O148: =ROW() -> 148
E149: million/year | F149: million/year | G149: million/year | H149: million/year | I149: million/year | J149: million/year | K149: million/year | O149: =ROW() -> 149
O150: =ROW() -> 150
O151: =ROW() -> 151
B152: =B148+1 -> 32 | C152: =CONCATENATE("Annual Transit Spending other than for Discounts already captured in Items ",B195, ", ",B198, ", ",B201, " or ",B204, "") -> Annual Transit Spending other than for Discounts already captured in Items 43, 44, 45 or 46 | E152: 0 | F152: 0 | G152: 60 | H152: 60 | I152: 60 | J152: 60 | K152: =IF(Results!$I$26="Baseline",E152,IF(Results!$I$26="Fare Hikes pay for Subway Upgrades",F152,IF(Results!$I$26="Fare Toll (CBD toll = Subway Fare)",G152,IF(Results!$I$26="Move NY - Gridlock Sam Fair Plan (2015)",H152,IF(Results!$I$26="Move NY - Sam Plan w Variable Tolls (2015)",I152,J152))))) -> 60 | O152: =ROW() -> 152
E153: million/year | F153: million/year | G153: million/year | H153: million/year | I153: million/year | J153: million/year | K153: million/year | O153: =ROW() -> 153
O154: =ROW() -> 154
O155: =ROW() -> 155
O156: =ROW() -> 156
B157: =B152+1 -> 33 | C157: Annual Toll Revenue Spent on Roads & Bridges | E157: 0 | F157: 0 | G157: 200 | H157: 350 | I157: 350 | J157: 350 | K157: =IF(Results!$I$26="Baseline",E157,IF(Results!$I$26="Fare Hikes pay for Subway Upgrades",F157,IF(Results!$I$26="Fare Toll (CBD toll = Subway Fare)",G157,IF(Results!$I$26="Move NY - Gridlock Sam Fair Plan (2015)",H157,IF(Results!$I$26="Move NY - Sam Plan w Variable Tolls (2015)",I157,J157))))) -> 350 | L157: (N.A.) | N157: Some toll revenues might be invested in maintaining and/or improving area roads and bridges, as direct benefit to drivers. | O157: =ROW() -> 157
E158: million/year | F158: million/year | G158: million/year | H158: million/year | I158: million/year | J158: million/year | K158: million/year | O158: =ROW() -> 158
O159: =ROW() -> 159
B160: =B157+1 -> 34 | C160: (Other) Subway Service Changes | E160: 0 | F160: 0 | G160: 0 | H160: 0 | I160: 0 | J160: 0 | K160: =IF(Results!$I$26="Baseline",E160,IF(Results!$I$26="Fare Hikes pay for Subway Upgrades",F160,IF(Results!$I$26="Fare Toll (CBD toll = Subway Fare)",G160,IF(Results!$I$26="Move NY - Gridlock Sam Fair Plan (2015)",H160,IF(Results!$I$26="Move NY - Sam Plan w Variable Tolls (2015)",I160,J160))))) -> 0 | L160: Subways | M160: =CONCATENATE("Row ",Subways!O188) -> Row 188 | N160: =CONCATENATE("Denotes expected % incrs in avg duration of subway trips, apart from Items ",B148," & ",B152, " (implied in latter). Negative denotes improvevments.") -> Denotes expected % incrs in avg duration of subway trips, apart from Items 31 & 32 (implied in latter). Negative denotes improvevments. | O160: =ROW() -> 160
O161: =ROW() -> 161
O162: =ROW() -> 162
B163: =B160+1 -> 35 | C163: % Change in Price of Unlimited Fare MetroCard | E163: =E176-1 -> 0 | F163: =F176-1 -> 0.08349080723 | G163: 0 | H163: 0 | I163: 0 | J163: 0 | K163: =IF(Results!$I$26="Baseline",E163,IF(Results!$I$26="Fare Hikes pay for Subway Upgrades",F163,IF(Results!$I$26="Fare Toll (CBD toll = Subway Fare)",G163,IF(Results!$I$26="Move NY - Gridlock Sam Fair Plan (2015)",H163,IF(Results!$I$26="Move NY - Sam Plan w Variable Tolls (2015)",I163,J163))))) -> 0 | L163: Subways | M163: =CONCATENATE("Row ",Subways!O162) -> Row 162 | N163: =CONCATENATE("To reset 30-day unlimited fare to 2013-2014 level (prior to fare hike implemented 22-March-2015), input this amount: ",ROUND((Transit!L44-1)*100,1), "%.") -> To reset 30-day unlimited fare to 2013-2014 level (prior to fare hike implemented 22-March-2015), input this amount: -3.7%. | O163: =ROW() -> 163
E164: =CONCATENATE("Cell G",O163," = Cell G",O176, " less one. Cell G",O176, " = one plus ratio of fare increment needed to pay for subways cap investment, shown in 'Taxes Instead' tab Cell J",'Taxes Instead'!L269, ", to proj'd 2016 per-ride fare.") -> Cell G163 = Cell G176 less one. Cell G176 = one plus ratio of fare increment needed to pay for subways cap investment, shown in 'Taxes Instead' tab Cell J269, to proj'd 2016 per-ride fare. | L164: Buses | M164: =CONCATENATE("Row ",Buses!O82) -> Row 82 | O164: =ROW() -> 164
O165: =ROW() -> 165
B166: =B163+1 -> 36 | C166: % Bonus w/ Purchase of MetroCard of $5 or More | E166: =Transit!$H$28 -> 0.04761904762 | F166: =Transit!$H$28 -> 0.04761904762 | G166: =Transit!$H$28 -> 0.04761904762 | H166: =Transit!$H$28 -> 0.04761904762 | I166: =Transit!$H$28 -> 0.04761904762 | J166: =Transit!$H$28 -> 0.04761904762 | K166: =IF(Results!$I$26="Baseline",E166,IF(Results!$I$26="Fare Hikes pay for Subway Upgrades",F166,IF(Results!$I$26="Fare Toll (CBD toll = Subway Fare)",G166,IF(Results!$I$26="Move NY - Gridlock Sam Fair Plan (2015)",H166,IF(Results!$I$26="Move NY - Sam Plan w Variable Tolls (2015)",I166,J166))))) -> 0.04761904762 | L166: Subways | M166: =CONCATENATE(,Subways!O137, " & ",Subways!O145,) -> 137 & 145 | O166: =ROW() -> 166
L167: Buses | M167: =CONCATENATE(,Buses!O67," & ",Buses!O72,) -> 67 & 72 | O167: =ROW() -> 167
O168: =ROW() -> 168
B169: =B166+1 -> 37 | C169: Weekday Subway Fare | D169: Weekday Fare Intervals | E169: Fare intervals are pre-set. However, you may change fare levels. | L169: Subways | M169: =CONCATENATE("'Proposed Fares' Box in Rows ",Subways!O56," to ",Subways!O63,", or Override Factor in Row ",Subways!O57, ", Col. Z") -> 'Proposed Fares' Box in Rows 56 to 63, or Override Factor in Row 57, Col. Z | N169: Fares shown are for one ride using a pay-per-ride card allowing two or more rides. | O169: =ROW() -> 169
D170: 11 pm - 5 am (6 hrs) | E170: =Subway_Base_Fare -> 2.75 | F170: 2.75 | G170: 2.75 | H170: 2.75 | I170: 2.75 | J170: 2.75 | K170: =IF(Results!$I$26="Baseline",E170,IF(Results!$I$26="Fare Hikes pay for Subway Upgrades",F170,IF(Results!$I$26="Fare Toll (CBD toll = Subway Fare)",G170,IF(Results!$I$26="Move NY - Gridlock Sam Fair Plan (2015)",H170,IF(Results!$I$26="Move NY - Sam Plan w Variable Tolls (2015)",I170,J170))))) -> 2.75 | O170: =ROW() -> 170
D171: 5-6 am + 8-11 pm (4 hrs) | E171: 2.75 | F171: 2.75 | G171: 2.75 | H171: 2.75 | I171: 2.75 | J171: 2.75 | K171: =IF(Results!$I$26="Baseline",E171,IF(Results!$I$26="Fare Hikes pay for Subway Upgrades",F171,IF(Results!$I$26="Fare Toll (CBD toll = Subway Fare)",G171,IF(Results!$I$26="Move NY - Gridlock Sam Fair Plan (2015)",H171,IF(Results!$I$26="Move NY - Sam Plan w Variable Tolls (2015)",I171,J171))))) -> 2.75 | O171: =ROW() -> 171
D172: All other hours (8 hrs) | E172: 2.75 | F172: 2.75 | G172: 2.75 | H172: 2.75 | I172: 2.75 | J172: 2.75 | K172: =IF(Results!$I$26="Baseline",E172,IF(Results!$I$26="Fare Hikes pay for Subway Upgrades",F172,IF(Results!$I$26="Fare Toll (CBD toll = Subway Fare)",G172,IF(Results!$I$26="Move NY - Gridlock Sam Fair Plan (2015)",H172,IF(Results!$I$26="Move NY - Sam Plan w Variable Tolls (2015)",I172,J172))))) -> 2.75 | N172: See Subways worksheet for hours making up each fare bin. | O172: =ROW() -> 172
D173: 7-8 am + 4-5 pm (2 hrs) | E173: 2.75 | F173: 2.75 | G173: 2.75 | H173: 2.75 | I173: 2.75 | J173: 2.75 | K173: =IF(Results!$I$26="Baseline",E173,IF(Results!$I$26="Fare Hikes pay for Subway Upgrades",F173,IF(Results!$I$26="Fare Toll (CBD toll = Subway Fare)",G173,IF(Results!$I$26="Move NY - Gridlock Sam Fair Plan (2015)",H173,IF(Results!$I$26="Move NY - Sam Plan w Variable Tolls (2015)",I173,J173))))) -> 2.75 | O173: =ROW() -> 173
D174: 9-10 am + 6-7 pm (2 hrs) | E174: 2.75 | F174: 2.75 | G174: 2.75 | H174: 2.75 | I174: 2.75 | J174: 2.75 | K174: =IF(Results!$I$26="Baseline",E174,IF(Results!$I$26="Fare Hikes pay for Subway Upgrades",F174,IF(Results!$I$26="Fare Toll (CBD toll = Subway Fare)",G174,IF(Results!$I$26="Move NY - Gridlock Sam Fair Plan (2015)",H174,IF(Results!$I$26="Move NY - Sam Plan w Variable Tolls (2015)",I174,J174))))) -> 2.75 | N174: To test uniform fare hike, e.g., from $2.50 base fare to $2.75, set "Override Factor" to ratio of new fare to base fare, e.g., 1.1 (ratio of $2.75 to $2.50). Zero cancels override factor. | O174: =ROW() -> 174
D175: 8-9 am + 5-6 pm (2 hrs) | E175: 2.75 | F175: 2.75 | G175: 2.75 | H175: 2.75 | I175: 2.75 | J175: 2.75 | K175: =IF(Results!$I$26="Baseline",E175,IF(Results!$I$26="Fare Hikes pay for Subway Upgrades",F175,IF(Results!$I$26="Fare Toll (CBD toll = Subway Fare)",G175,IF(Results!$I$26="Move NY - Gridlock Sam Fair Plan (2015)",H175,IF(Results!$I$26="Move NY - Sam Plan w Variable Tolls (2015)",I175,J175))))) -> 2.75 | O175: =ROW() -> 175
D176: Override Factor | E176: 1 | F176: =1+'Taxes Instead'!J273 -> 1.083490807 | G176: 1 | H176: 1 | I176: 1 | J176: 1 | K176: =IF(Results!$I$26="Baseline",E176,IF(Results!$I$26="Fare Hikes pay for Subway Upgrades",F176,IF(Results!$I$26="Fare Toll (CBD toll = Subway Fare)",G176,IF(Results!$I$26="Move NY - Gridlock Sam Fair Plan (2015)",H176,IF(Results!$I$26="Move NY - Sam Plan w Variable Tolls (2015)",I176,J176))))) -> 1 | O176: =ROW() -> 176
D177: Keep Fare? | O177: =ROW() -> 177
D178: YES | E178: YES | F178: YES | G178: NO | H178: YES | I178: YES | J178: YES | K178: =IF(Results!$I$26="Baseline",E178,IF(Results!$I$26="Fare Hikes pay for Subway Upgrades",F178,IF(Results!$I$26="Fare Toll (CBD toll = Subway Fare)",G178,IF(Results!$I$26="Move NY - Gridlock Sam Fair Plan (2015)",H178,IF(Results!$I$26="Move NY - Sam Plan w Variable Tolls (2015)",I178,J178))))) -> YES | N178: To keep current fare, set Override to 1 and type YES in this row. | O178: =ROW() -> 178
D179: NO | O179: =ROW() -> 179
B180: =B169+1 -> 38 | C180: Saturday Subway Fare | D180: =CONCATENATE("Note that Override Factor referenced in Cell D",O176, " applies only to weekday subway fares. Intended changes to weekend subway fares as well as to bus fares must be inputted into corresponding cells, in Rows ",O180, ", ",O183, ", ",O186, ", ",O188, " and ",O190, ".") -> Note that Override Factor referenced in Cell D176 applies only to weekday subway fares. Intended changes to weekend subway fares as well as to bus fares must be inputted into corresponding cells, in Rows 180, 183, 186, 188 and 190. | E180: =Subway_Base_Fare*$E$176 -> 2.75 | F180: =Subway_Base_Fare*$F$176 -> 2.97959972 | G180: =Subway_Base_Fare -> 2.75 | H180: 2.75 | I180: 2.75 | J180: 2.75 | K180: =IF(Results!$I$26="Baseline",E180,IF(Results!$I$26="Fare Hikes pay for Subway Upgrades",F180,IF(Results!$I$26="Fare Toll (CBD toll = Subway Fare)",G180,IF(Results!$I$26="Move NY - Gridlock Sam Fair Plan (2015)",H180,IF(Results!$I$26="Move NY - Sam Plan w Variable Tolls (2015)",I180,J180))))) -> 2.75 | L180: Subways | N180: To be filled in | O180: =ROW() -> 180
F181: =CONCATENATE("Fares = current fares x F",$O$176, ".") -> Fares = current fares x F176. | O181: =ROW() -> 181
O182: =ROW() -> 182
B183: =B180+1 -> 39 | C183: Sundays + Holidays Subway Fare | E183: =Subway_Base_Fare*$E$176 -> 2.75 | F183: =Subway_Base_Fare*$F$176 -> 2.97959972 | G183: =Subway_Base_Fare -> 2.75 | H183: 2.75 | I183: 2.75 | J183: 2.75 | K183: =IF(Results!$I$26="Baseline",E183,IF(Results!$I$26="Fare Hikes pay for Subway Upgrades",F183,IF(Results!$I$26="Fare Toll (CBD toll = Subway Fare)",G183,IF(Results!$I$26="Move NY - Gridlock Sam Fair Plan (2015)",H183,IF(Results!$I$26="Move NY - Sam Plan w Variable Tolls (2015)",I183,J183))))) -> 2.75 | L183: Subways | O183: =ROW() -> 183
O184: =ROW() -> 184
O185: =ROW() -> 185
B186: =B183+1 -> 40 | C186: NYCT Bus Fare, weekdays | E186: =Subway_Base_Fare*$E$176 -> 2.75 | F186: =Subway_Base_Fare*$F$176 -> 2.97959972 | G186: =Subway_Base_Fare -> 2.75 | H186: 2.75 | I186: 2.75 | J186: 2.75 | K186: =IF(Results!$I$26="Baseline",E186,IF(Results!$I$26="Fare Hikes pay for Subway Upgrades",F186,IF(Results!$I$26="Fare Toll (CBD toll = Subway Fare)",G186,IF(Results!$I$26="Move NY - Gridlock Sam Fair Plan (2015)",H186,IF(Results!$I$26="Move NY - Sam Plan w Variable Tolls (2015)",I186,J186))))) -> 2.75 | L186: Buses | O186: =ROW() -> 186
O187: =ROW() -> 187
B188: =B186+1 -> 41 | C188: NYCT Bus Fare, Saturdays | E188: =Subway_Base_Fare*$E$176 -> 2.75 | F188: =Subway_Base_Fare*$F$176 -> 2.97959972 | G188: =Subway_Base_Fare -> 2.75 | H188: 2.75 | I188: 2.75 | J188: 2.75 | K188: =IF(Results!$I$26="Baseline",E188,IF(Results!$I$26="Fare Hikes pay for Subway Upgrades",F188,IF(Results!$I$26="Fare Toll (CBD toll = Subway Fare)",G188,IF(Results!$I$26="Move NY - Gridlock Sam Fair Plan (2015)",H188,IF(Results!$I$26="Move NY - Sam Plan w Variable Tolls (2015)",I188,J188))))) -> 2.75 | L188: Buses | O188: =ROW() -> 188
O189: =ROW() -> 189
B190: =B188+1 -> 42 | C190: NYCT Bus Fare, Sundays | E190: =Subway_Base_Fare*$E$176 -> 2.75 | F190: =Subway_Base_Fare*$F$176 -> 2.97959972 | G190: =Subway_Base_Fare -> 2.75 | H190: 2.75 | I190: 2.75 | J190: 2.75 | K190: =IF(Results!$I$26="Baseline",E190,IF(Results!$I$26="Fare Hikes pay for Subway Upgrades",F190,IF(Results!$I$26="Fare Toll (CBD toll = Subway Fare)",G190,IF(Results!$I$26="Move NY - Gridlock Sam Fair Plan (2015)",H190,IF(Results!$I$26="Move NY - Sam Plan w Variable Tolls (2015)",I190,J190))))) -> 2.75 | L190: Buses | O190: =ROW() -> 190
O191: =ROW() -> 191
B192: =B190+1 -> 43 | C192: Pay bus fare on board | D192: % NYCT buses w/ on-board payment | E192: 0 | F192: 0 | G192: 0 | H192: 0 | I192: 0 | J192: 0 | K192: =IF(Results!$I$26="Baseline",E192,IF(Results!$I$26="Fare Hikes pay for Subway Upgrades",F192,IF(Results!$I$26="Fare Toll (CBD toll = Subway Fare)",G192,IF(Results!$I$26="Move NY - Gridlock Sam Fair Plan (2015)",H192,IF(Results!$I$26="Move NY - Sam Plan w Variable Tolls (2015)",I192,J192))))) -> 0 | L192: Bus Boarding | O192: =ROW() -> 192
O193: =ROW() -> 193
O194: =ROW() -> 194
B195: =B190+1 -> 43 | C195: Fare Reduxn for All Metro-North & LIRR Service | D195: % reduxn | E195: 0 | F195: 0 | G195: 0 | H195: 0 | I195: 0 | J195: 0 | K195: =IF(Results!$I$26="Baseline",E195,IF(Results!$I$26="Fare Hikes pay for Subway Upgrades",F195,IF(Results!$I$26="Fare Toll (CBD toll = Subway Fare)",G195,IF(Results!$I$26="Move NY - Gridlock Sam Fair Plan (2015)",H195,IF(Results!$I$26="Move NY - Sam Plan w Variable Tolls (2015)",I195,J195))))) -> 0 | L195: Revenues | O195: =ROW() -> 195
O196: =ROW() -> 196
O197: =ROW() -> 197
B198: =B195+1 -> 44 | C198: "City Ticket" for Intra-City Metro-N & LIRR, off-peak | D198: Can be subway fare, or $$ amount shown | E198: NONE | F198: NONE | G198: 4.25 | H198: 4.25 | I198: 4.25 | J198: 4.25 | K198: =IF(Results!$I$26="Baseline",E198,IF(Results!$I$26="Fare Hikes pay for Subway Upgrades",F198,IF(Results!$I$26="Fare Toll (CBD toll = Subway Fare)",G198,IF(Results!$I$26="Move NY - Gridlock Sam Fair Plan (2015)",H198,IF(Results!$I$26="Move NY - Sam Plan w Variable Tolls (2015)",I198,J198))))) -> 4.25 | L198: Revenues | M198: Section F | N198: One-way. Applies to all Metro-N & LIRR off-peak trips that start + end w/i NYC. "Subway" means subway fare. | O198: =ROW() -> 198
O199: =ROW() -> 199
O200: =ROW() -> 200
... 36 more rows

Sheet Cost-Benefit
B1: Cost-Benefit | K1: ='Title Page'!G2 -> 2017-06-05 | O1: =ROW() -> 1
O2: =ROW() -> 2
B3: This worksheet compiles societal costs and benefits of pricing scenario selected by user in Results worksheet. | K3: =CONCATENATE("Figure in Cell H",O7, " is copied from cell K",O87,", where it is turn calculated as the sum of these cells: K",O55," (deadweight administrative costs), K",O76," (net enviro/societal benefits), K",O83," (user fees, aggregated), and K",O85," (surplus/deficit).") -> Figure in Cell H7 is copied from cell K87, where it is turn calculated as the sum of these cells: K55 (deadweight administrative costs), K76 (net enviro/societal benefits), K83 (user fees, aggregated), and K85 (surplus/deficit). | O3: =ROW() -> 3
O4: =ROW() -> 4
B5: For complete results of selected plan, and to test other plans, click: | I5: Results | O5: =ROW() -> 5
B6: Selected Plan: | I6: =Results!I26 -> Move NY - Gridlock Sam Fair Plan (2015) | O6: =ROW() -> 6
B7: Net Benefit of Selected Plan: | H7: =ROUND(K87,-1) -> 2380 | I7: Million / yr | O7: =ROW() -> 7
O8: =ROW() -> 8
O9: =ROW() -> 9
O10: =ROW() -> 10
O11: =ROW() -> 11
O12: =ROW() -> 12
O13: =ROW() -> 13
O14: =ROW() -> 14
O15: =ROW() -> 15
O16: =ROW() -> 16
O17: =ROW() -> 17 | P17: Entries in graph at left are derived in remainder of worksheet. PageDown to find pertinent sections.
O18: =ROW() -> 18
O19: =ROW() -> 19
O20: =ROW() -> 20
O21: =ROW() -> 21
O22: =ROW() -> 22
O23: =ROW() -> 23
O24: =ROW() -> 24
O25: =ROW() -> 25
O26: =ROW() -> 26
O27: =ROW() -> 27
O28: =ROW() -> 28
O29: =ROW() -> 29
O30: =ROW() -> 30
O31: =ROW() -> 31
O32: =ROW() -> 32
O33: =ROW() -> 33
O34: =ROW() -> 34
O35: =ROW() -> 35
O36: =ROW() -> 36
O37: =ROW() -> 37
O38: =ROW() -> 38
O39: =ROW() -> 39
O40: =ROW() -> 40
C41: Travelers' Amenity in chart represents net lost (or gained) "utility" of trips that drivers forego due to congestion toll (or that transit users gain in trips "attracted" by lower fares). If bar falls below x-axis, drivers' lost amenity has outweighed transit users' gain. | I41: If "Transit Fares" appears in User Fees stack in chart, it denotes the increase in expenditures on transit travel attributable to the larger ridership attracted by service improvements financed by the congestion toll revenues. | O41: =ROW() -> 41
O42: =ROW() -> 42
O43: =ROW() -> 43
O44: =ROW() -> 44
O45: =ROW() -> 45
B46: =CONCATENATE("This graph is from the Cost-Benefit page (worksheet tab) of the Balanced Transportation Analyzer (BTA) spreadsheet, as of ",TEXT(K1,"m/d/yyyy"),". To access the BTA, click on this link: <http://www.nnyn.org/kheelplan/BTA_1.1.xls>.") -> This graph is from the Cost-Benefit page (worksheet tab) of the Balanced Transportation Analyzer (BTA) spreadsheet, as of 6/5/2017. To access the BTA, click on this link: <http://www.nnyn.org/kheelplan/BTA_1.1.xls>. | O46: =ROW() -> 46
O47: =ROW() -> 47
O48: =ROW() -> 48
O49: =ROW() -> 49
B50: Results | D50: Clicking on hyperlinks shown will take you to section of this or other tabs where each item has been costed. | I50: Annual $, NYC only, millions | O50: =ROW() -> 50
I51: Values in parentheses denote loss | O51: =ROW() -> 51
B52: Toll & Fare Administration | I52: Revenues | J52: Expenditures | K52: Net | O52: =ROW() -> 52
B53: A. Cordon Administration | J53: =Results!I38 -> -160 | K53: =I53+J53 -> -160 | O53: =ROW() -> 53
B54: B. Agency operating savings if eliminate subway and/or bus farebox | I54: =Results!I51 -> 0 | K54: =I54+J54 -> 0 | O54: =ROW() -> 54
B55: S U B T O T A L, Toll & Fare Administration | I55: =SUM(I53:I54) -> 0 | J55: =SUM(J53:J54) -> -160 | K55: =I55+J55 -> -160 | O55: =ROW() -> 55
O56: =ROW() -> 56
B57: Economic, Social and Environmental Costs and Benefits | I57: Gains | J57: Losses | K57: Net Gain | O57: =ROW() -> 57
B58: A. Transit Riders' saved time due to faster traffic and/or service improvements | I58: =I59+I60 -> 1169.811107 | J58: =J59+J60 -> 0 | K58: =I58+J58 -> 1169.811107 | O58: =ROW() -> 58
B59: 1. Bus Riders | I59: =K149 -> 74.53211955 | J59: 0 | K59: =I59+J59 -> 74.53211955 | O59: =ROW() -> 59
B60: 2. Subway Riders | I60: =K175 -> 1095.278987 | J60: 0 | K60: =I60+J60 -> 1095.278987 | O60: =ROW() -> 60
B61: 3. Bus riders' addit'l saved time, from fare-free boarding | I61: =I202 -> 0 | J61: 0 | K61: =I61+J61 -> 0 | O61: =ROW() -> 61
B62: B. Motor vehicle users' saved time that was previously lost in traffic | H62: Components | O62: =ROW() -> 62
B63: 1. Trips into, in or through CBD | G63: =H63/$I$63 -> 0.5209002345 | H63: =K240 -> 1177.081125 | I63: =SUM(H63:H65) -> 2259.7055 | J63: 0 | K63: =I63+J63 -> 2259.7055 | O63: =ROW() -> 63
B64: 2. Trips that make no use of the CBD | G64: =H64/$I$63 -> 0.472709449 | H64: =K254 -> 1068.184142 | O64: =ROW() -> 64
B65: 3. (Medallion) taxi riders' time saved via quicker hails | G65: =H65/$I$63 -> 0.006390316511 | H65: =K281 -> 14.44023337 | O65: =ROW() -> 65
B66: 4. *Lost* driver time from greater volumes on trips using (discounted) MTA bridges | J66: =K266 -> -465.1829029 | K66: =I66+J66 -> -465.1829029 | O66: =ROW() -> 66
B67: C. Mobility Changes (more transit trips, fewer m.v. trips) | I67: =K352+K357+K362 -> 0 | J67: =-SUM(K321:K337) -> -201.5116775 | K67: -201.5116775 | O67: =ROW() -> 67
B68: D. Reduction in crash damage costs | I68: =-K426 -> 342.3857951 | K68: 342.3857951 | O68: =ROW() -> 68
B69: E. Reduction in climate damage from lesser CO2 emissions | I69: =K451 -> 36.67661048 | K69: 36.67661048 | O69: =ROW() -> 69
B70: F. Reduction in ecological and national-security costs from lesser petroleum use | I70: =L526 -> 18.61724231 | K70: 18.61724231 | O70: =ROW() -> 70
B71: G. Reduction in air pollution health/enviro damages | I71: =K552 -> 213.7322201 | K71: 213.7322201 | O71: =ROW() -> 71
B72: H. Reduction in noise costs | I72: =-I612 -> 70 | K72: 70 | O72: =ROW() -> 72
B73: I. Longevity benefits of increased cycling | I73: =I654 -> 245 | K73: 245 | O73: =ROW() -> 73
B74: J. Longevity benefits of increased walking | I74: =I664 -> 245 | K74: =I74+J74 -> 245 | O74: =ROW() -> 74
B75: K. Taxi surcharge revenues applied to drivers' health plan | I75: =Results!J47 -> 0 | K75: =I75+J75 -> 0 | O75: =ROW() -> 75
B76: S U B T O T A L, Economic, Social and Environmental Costs and Benefits | I76: =I58+I63+SUM(I66:I75) -> 4600.928475 | J76: =J58+J63+SUM(J66:J75) -> -666.6945803 | K76: =I76+J76 -> 3934.233895 | O76: =ROW() -> 76
O77: =ROW() -> 77
B78: User Fees (Tolls and Fares) | O78: =ROW() -> 78
B79: A. Driver Tolls & Fees | I79: =-Results!I41 -> 660 | J79: =-Results!I37+Results!I42-Results!I64 -> -1595 | K79: =I79+J79 -> -935 | O79: =ROW() -> 79
B80: B. Taxi Fares | J80: =-Results!I45-Results!I46 -> -275 | K80: =I80+J80 -> -275 | O80: =ROW() -> 80
B81: C. Transit Fares (farebox costs paid for more trips, less applicable discounts if any) | I81: =Results!J60+Results!J61 -> 50 | J81: =-Results!I49-Results!I50 -> -240 | K81: =I81+J81 -> -190 | O81: =ROW() -> 81
B82: D. Manhattan Residents Parking Tax Payments | J82: =-Results!I64 -> -10 | K82: =I82+J82 -> -10 | O82: =ROW() -> 82
B83: S U B T O T A L, User Fees | I83: =SUM(I79:I82) -> 710 | J83: =SUM(J79:J82) -> -2120 | K83: =I83+J83 -> -1410 | O83: =ROW() -> 83
O84: =ROW() -> 84
B85: Surplus / Deficit | K85: =Results!J77+Results!J66 -> 20 | O85: =ROW() -> 85
O86: =ROW() -> 86
B87: T O T A L | I87: =I55+I76+I83+I85 -> 5310.928475 | J87: =J55+J76+J83+J85 -> -2946.69458 | K87: =I87+J87+K85 -> 2384.233895 | O87: =ROW() -> 87
O88: =ROW() -> 88
D89: Attached array feeds into bar chart above. Quantities are pulled from cells above. | O89: =ROW() -> 89
F90: Toll & Fare Admin. | G90: Travelers' Amenity | H90: Wellness | I90: Environ- ment | J90: Saved Time (Transit) | K90: Saved Time (Drivers) | L90: User Fees | M90: Unspent Revenue | O90: =ROW() -> 90
D91: Fewer Crashes | I91: =K68 -> 342.3857951 | O91: =ROW() -> 91
D92: Less CO2 (Climate) | I92: =K69 -> 36.67661048 | O92: =ROW() -> 92
D93: Less Petroleum | I93: =K70 -> 18.61724231 | O93: =ROW() -> 93
D94: Healthier Air Quality | I94: =K71 -> 213.7322201 | O94: =ROW() -> 94
D95: Less Noise | I95: =K72 -> 70 | O95: =ROW() -> 95
D96: CBD Vehicle Trip Speeds | K96: =H63 -> 1177.081125 | O96: =ROW() -> 96
D97: Non-CBD Vehicle Trip Speeds | K97: =H64 -> 1068.184142 | O97: =ROW() -> 97
D98: Taxi Hail Time | K98: =H65 -> 14.44023337 | O98: =ROW() -> 98
D99: MTA Bridge Vehicle Speeds | K99: =J66 -> -465.1829029 | O99: =ROW() -> 99
D100: Bus Boarding Times | J100: =K61 -> 0 | O100: =ROW() -> 100
D101: Bus Travel Times | J101: =K59 -> 74.53211955 | O101: =ROW() -> 101
D102: Subway Travel Times | J102: =K60 -> 1095.278987 | O102: =ROW() -> 102
D103: Health from More Biking | H103: =I73 -> 245 | O103: =ROW() -> 103
D104: Health from More Walking | H104: =I74 -> 245 | O104: =ROW() -> 104
D105: Cabbies' Health Plan | H105: =I75 -> 0 | O105: =ROW() -> 105
D106: Commuter Rail Discounts | L106: =Results!J60 -> 30 | O106: =ROW() -> 106
D107: Express Bus Discounts | L107: =Results!J61 -> 20 | O107: =ROW() -> 107
D108: Driver Tolls & Fees | L108: =K79 -> -935 | O108: =ROW() -> 108
D109: Taxi Surcharges | L109: =K80 -> -275 | O109: =ROW() -> 109
D110: Transit Fares (more rides) | L110: =J81 -> -240 | O110: =ROW() -> 110
D111: Manhattanites Parking Tax | L111: =K82 -> -10 | O111: =ROW() -> 111
D112: Revenue Allocated to Gov't | M112: =K85 -> 20 | O112: =ROW() -> 112
D113: Toll & Fare Admin. | F113: =K55 -> -160 | O113: =ROW() -> 113
D114: Travelers' Amenity | G114: =K67 -> -201.5116775 | O114: =ROW() -> 114
E115: Column Sums (check): | F115: =SUM(F91:F114) -> -160 | G115: -201.5116775 | H115: 490 | I115: 681.411868 | J115: 1169.811107 | K115: 1794.522598 | L115: -1410 | M115: 20 | N115: =SUM(F115:M115) -> 2384.233895 | O115: =ROW() -> 115
O116: =ROW() -> 116
B117: Derivations | O117: =ROW() -> 117
O118: =ROW() -> 118
B119: Agency Costs and Benefits are derived primarily in Revenue worksheet. The remainder of this worksheet derives ten classes of economic, social and environmental costs and benefits. | O119: =ROW() -> 119
O120: =ROW() -> 120
B121: Input assumptions underlying results in graph are shown in User Inputs worksheet. Explanatory notes are omitted in most cases where values are derived from other worksheets. | O121: =ROW() -> 121
O122: =ROW() -> 122
B123: A. Transit-Riders' Saved Time | I123: Parameters that apply for all 'saved time' calculations | O123: =ROW() -> 123
I124: Ratio, weekend value of time to weekdays: | M124: 0.6 | O124: =ROW() -> 124
B125: Includes: | I125: Ratio, non-CBD value of time to in-CBD value: | M125: =2/3 -> 0.6666666667 | O125: =ROW() -> 125
B126: • Bus riders' savings from general traffic speed-up | I126: Komanoff assumptions | O126: =ROW() -> 126
B127: • Bus and subway riders' time gained from improved service | O127: =ROW() -> 127
B128: • Bus riders' time gained from fare-free boarding (if applicable) | O128: =ROW() -> 128
I129: Weekdays | J129: Weekends | K129: Combined | O129: =ROW() -> 129
B130: 1. Bus riders' savings from general traffic speed-up and improved service | O130: =ROW() -> 130
B131: Number of bus passenger rides per year, with pricing (thousands) | I131: =Buses!I134*1000 -> 537231.5909 | J131: =Buses!J134*1000 -> 129775.3036 | K131: =I131+J131 -> 667006.8945 | O131: =ROW() -> 131
B132: =CONCATENATE("Both figures are from Buses worksheet, Row ",Buses!O134, ".") -> Both figures are from Buses worksheet, Row 134. | O132: =ROW() -> 132
B133: Time saved per ride due to increased transit spending + faster traffic (minutes) | I133: ='Sub v. Bus'!G42-'Sub v. Bus'!K42 -> 0.6269602305 | J133: =I133 -> 0.6269602305 | O133: =ROW() -> 133
B134: =CONCATENATE("Difference btwn 'before' & 'after' figures for duration of average bus ride, calculated and shown in 'Sub v. Bus' worksheet, Row ",'Sub v. Bus'!I42, ". Includes wait time.") -> Difference btwn 'before' & 'after' figures for duration of average bus ride, calculated and shown in 'Sub v. Bus' worksheet, Row 42. Includes wait time. | O134: =ROW() -> 134
B135: Hours saved per year due to increased transit spending + faster traffic | I135: =I131*I133*1000/60 -> 5613714.034 | J135: =J131*J133*1000/60 -> 1356065.904 | K135: =I135+J135 -> 6969779.939 | O135: =ROW() -> 135
B136: =CONCATENATE("Product of Rows ",O131, " and ",O133, ", times 1,000 and divided by 60.") -> Product of Rows 131 and 133, times 1,000 and divided by 60. | O136: =ROW() -> 136
B137: Average value of a bus rider's hour saved in the CBD, weekdays and weekends | I137: ='Value of Time'!$I$145 -> 15.29984759 | J137: ='Value of Time'!$N$145 -> 11.61133785 | O137: =ROW() -> 137
B138: Average value of a bus rider's hour saved outside CBD, weekdays and weekends | I138: ='Value of Time'!$I$147 -> 10.19989839 | J138: ='Value of Time'!$N$147 -> 7.740891902 | O138: =ROW() -> 138
B139: =CONCATENATE("Copied from 2x2 matrix in 'Value of Time' worksheet, Rows ",'Value of Time'!O145, " and ",'Value of Time'!O147, " and Columns I and N.") -> Copied from 2x2 matrix in 'Value of Time' worksheet, Rows 145 and 147 and Columns I and N. | O139: =ROW() -> 139
B140: Percent of bus riders' time savings realized inside CBD | I140: 0.2 | O140: =ROW() -> 140
B141: =CONCATENATE("Komanoff est., reflecting (i) Manhattan's roughly ",100*ROUND('Bus Routes'!K23,2), " percent share of NYC Transit bus ridership, as shown in 'Bus Routes' worksheet, Row ",'Bus Routes'!O23, "; (ii) fact that CBD has some, not all, Manhattan bus rider-miles; (iii) disproportionately high travel speed gains within CBD.") -> Komanoff est., reflecting (i) Manhattan's roughly 25 percent share of NYC Transit bus ridership, as shown in 'Bus Routes' worksheet, Row 23; (ii) fact that CBD has some, not all, Manhattan bus rider-miles; (iii) disproportionately high travel speed gains within CBD. | M141: $ due to faster traffic, not improved service | O141: =ROW() -> 141
O142: =ROW() -> 142
B143: Annual value of bus riders' saved time, inside CBD, millions | I143: =I$135*$I$140*I137/1000000 -> 17.17779382 | J143: =J$135*$I$140*J137/1000000 -> 3.149147873 | M143: ='Bus Boarding'!$J$159/('Bus Boarding'!$J$159-Transit!$I$355)*I143 -> 14.08316866 | N143: ='Bus Boarding'!$J$159/('Bus Boarding'!$J$159-Transit!$I$355)*J143 -> 2.581820524 | O143: =ROW() -> 143
B144: Annual value of bus riders' saved time, outside CBD, millions | I144: =I$135*(1-$I$140)*I138/1000000 -> 45.80745019 | J144: =J$135*(1-$I$140)*J138/1000000 -> 8.397727662 | M144: ='Bus Boarding'!$J$159/('Bus Boarding'!$J$159-Transit!$I$355)*I144 -> 37.55511644 | N144: ='Bus Boarding'!$J$159/('Bus Boarding'!$J$159-Transit!$I$355)*J144 -> 6.88485473 | O144: =ROW() -> 144
B145: =CONCATENATE("Each figure in matrix above is product of three elements: (i) Hours saved in Row ",O135, "; (ii) percent of time savings within CBD, or its complement, from Row ",O140, "; (iii) average value of saved time in Rows ",O137, " and ",O138, ".") -> Each figure in matrix above is product of three elements: (i) Hours saved in Row 135; (ii) percent of time savings within CBD, or its complement, from Row 140; (iii) average value of saved time in Rows 137 and 138. | M145: (in millions) | O145: =ROW() -> 145
O146: =ROW() -> 146
B147: =CONCATENATE("Matrix at right prorates matrix to left by ratio of the sources of bus riders' time savings: less traffic, as reflected in 'Bus Boarding' worksheet, Row ",'Bus Boarding'!AG159, " and 'Transit' worksheet, Row ",Transit!O350,".") -> Matrix at right prorates matrix to left by ratio of the sources of bus riders' time savings: less traffic, as reflected in 'Bus Boarding' worksheet, Row 159 and 'Transit' worksheet, Row 350. | O147: =ROW() -> 147
O148: =ROW() -> 148
B149: Annual value of bus riders' saved time | F149: =CONCATENATE("Sums of Rows ",O143, " and ",O144, ".") -> Sums of Rows 143 and 144. | I149: =I143+I144 -> 62.98524402 | J149: =J143+J144 -> 11.54687553 | K149: =I149+J149 -> 74.53211955 | L149: million | O149: =ROW() -> 149
B150: Of which following percent is attributable to on-board bus payment that speeds trips | K150: ='Bus Boarding'!J161 -> 0 | O150: =ROW() -> 150
B151: =CONCATENATE("Copied from 'Bus Boarding' tab, Row ",'Bus Boarding'!AG161, ".") -> Copied from 'Bus Boarding' tab, Row 161. | O151: =ROW() -> 151
B152: Annual value of bus riders' saved time attributable to speed-up of traffic | K152: =(1-K150)*K149 -> 74.53211955 | L152: million | O152: =ROW() -> 152
B153: =CONCATENATE("Product of Row ",O149, " and complement of Row ",O150, ". Result will enable us to avoid double-counting w/ overall motor vehicle time savings.") -> Product of Row 149 and complement of Row 150. Result will enable us to avoid double-counting w/ overall motor vehicle time savings. | O153: =ROW() -> 153
O154: =ROW() -> 154
B155: 2. Subway Riders' Saved Time from improved service | I155: Weekdays | J155: Weekends | K155: Combined | O155: =ROW() -> 155
B156: Number of subway passenger rides per year, with pricing (thousands) | I156: =Subways!N508 -> 1517948.325 | J156: =Subways!N510 -> 340169.9552 | K156: =I156+J156 -> 1858118.28 | O156: =ROW() -> 156
B157: =CONCATENATE("Both figures are from Subways worksheet, Rows ",Subways!O508, " and ",Subways!O510, ".") -> Both figures are from Subways worksheet, Rows 508 and 510. | O157: =ROW() -> 157
B158: Time saved per ride due to increased transit spending (minutes) | I158: ='Sub v. Bus'!F42-'Sub v. Bus'!J42 -> 2.142590564 | J158: =I158 -> 2.142590564 | O158: =ROW() -> 158
B159: =CONCATENATE("Difference btwn 'before' & 'after' figures for duration of average subway ride, calculated and shown in 'Sub v. Bus' worksheet, Row ",'Sub v. Bus'!I42, ". Includes wait time.") -> Difference btwn 'before' & 'after' figures for duration of average subway ride, calculated and shown in 'Sub v. Bus' worksheet, Row 42. Includes wait time. | O159: =ROW() -> 159
B160: Baseline time per ride (minutes) | I160: ='Sub v. Bus'!F42 -> 25.70392118 | J160: =I160 -> 25.70392118 | L160: Array at left, though useful, isn't used in Cost-Benefit calculations. | O160: =ROW() -> 160
B161: =CONCATENATE("'Before' figure for duration of average subway ride, calculated and shown in 'Sub v. Bus' worksheet, Row ",'Sub v. Bus'!I42, ". Includes wait time.") -> 'Before' figure for duration of average subway ride, calculated and shown in 'Sub v. Bus' worksheet, Row 42. Includes wait time. | O161: =ROW() -> 161
B162: % average improvement in subway speed (includes wait time) | I162: =I160/(I160-I158)-1 -> 0.09093673864 | J162: =I162 -> 0.09093673864 | K162: =(I156*I162+J156*J162)/K156 -> 0.09093673864 | O162: =ROW() -> 162
B163: =CONCATENATE("Algebra on Rows ",O158, " and ",O160, ".") -> Algebra on Rows 158 and 160. | O163: =ROW() -> 163
B164: Hours saved per year due to increased transit spending | I164: =I156*I158*1000/60 -> 54205695.98 | J164: =J156*J158*1000/60 -> 12147415.6 | K164: =I164+J164 -> 66353111.58 | O164: =ROW() -> 164
B165: =CONCATENATE("Product of Rows ",O156, " and ",O158, ", times 1,000 and divided by 60.") -> Product of Rows 156 and 158, times 1,000 and divided by 60. | O165: =ROW() -> 165
B166: Average value of a subway rider's hour saved in the CBD, weekdays and weekends | I166: ='Value of Time'!$G$145 -> 22.52477561 | J166: ='Value of Time'!$L$145 -> 17.09446962 | O166: =ROW() -> 166
B167: Average value of subway rider's hour saved outside CBD, weekdays and weekends | I167: ='Value of Time'!$G$147 -> 15.01651707 | J167: ='Value of Time'!$L$147 -> 11.39631308 | O167: =ROW() -> 167
B168: =CONCATENATE("Copied from 2x2 matrix in 'Value of Time' worksheet, Rows ",'Value of Time'!O145, " and ",'Value of Time'!O147, " and Columns G and L.") -> Copied from 2x2 matrix in 'Value of Time' worksheet, Rows 145 and 147 and Columns G and L. | O168: =ROW() -> 168
B169: Percent of subway riders' time savings realized inside CBD | I169: 0.3 | O169: =ROW() -> 169
B170: Komanoff assumption. | O170: =ROW() -> 170
B171: Annual value of subway riders' saved time, inside CBD | I171: =I$164*$I$169*I166/1000000 -> 366.2913416 | J171: =J$164*$I$169*J166/1000000 -> 62.2960881 | O171: =ROW() -> 171
B172: Annual value of subway riders' saved time, outside CBD | I172: =I$164*(1-$I$169)*I167/1000000 -> 569.7865314 | J172: =J$164*(1-$I$169)*J167/1000000 -> 96.90502593 | O172: =ROW() -> 172
B173: =CONCATENATE("Each figure in matrix is product of three elements: (i) Hours saved in Row ",O164, "; (ii) percent of time savings within CBD, or its complement, from Row ",O169, "; (iii) average value of saved time in Rows ",O166, " and ",O167, ".") -> Each figure in matrix is product of three elements: (i) Hours saved in Row 164; (ii) percent of time savings within CBD, or its complement, from Row 169; (iii) average value of saved time in Rows 166 and 167. | O173: =ROW() -> 173
O174: =ROW() -> 174
B175: Annual value of subway riders' saved time | F175: =CONCATENATE("Sums of Rows ",O171, " and ",O172, ".") -> Sums of Rows 171 and 172. | I175: =I171+I172 -> 936.077873 | J175: =J171+J172 -> 159.201114 | K175: =I175+J175 -> 1095.278987 | L175: million | O175: =ROW() -> 175
O176: =ROW() -> 176
B177: 3. Bus riders' time gained from fare-free boarding (if applicable) | O177: =ROW() -> 177
B178: These savings are calculated on current ridership to avoid double-counting with mobility benefit of new trips. | O178: =ROW() -> 178
O179: =ROW() -> 179
B180: Annual bus ridership (from Buses worksheet) | I180: =Buses!L34/1000 -> 661.215 | J180: million | O180: =ROW() -> 180
B181: Average bus trip distance for commute trips (from VMT worksheet) | I181: =Transit!I278*(1+'Sub v. Bus'!G30) -> 2.904 | J181: miles | O181: =ROW() -> 181
B182: =CONCATENATE("Calculated by reducing average distance for NYC Transit bus-commute trips from Schaller, shown in 'Transit' worksheet, Row ",Transit!O278, ", by adjustment factor for all transit trips shown in 'Sub v. Bus' worksheet, Row ",'Sub v. Bus'!I30, ".") -> Calculated by reducing average distance for NYC Transit bus-commute trips from Schaller, shown in 'Transit' worksheet, Row 278, by adjustment factor for all transit trips shown in 'Sub v. Bus' worksheet, Row 30. | O182: =ROW() -> 182
O183: =ROW() -> 183
B184: Average bus speed | I184: =Transit!I280 -> 7.736688416 | J184: mph | O184: =ROW() -> 184
B185: =CONCATENATE("From NYC Transit data, as calculated in 'Transit' worksheet, Row ",Transit!O280, ".") -> From NYC Transit data, as calculated in 'Transit' worksheet, Row 280. | O185: =ROW() -> 185
B186: Average duration of a bus trip, currently | I186: =I181*60/I184 -> 22.5212637 | J186: minutes | O186: =ROW() -> 186
B187: Estimated average reduction in bus travel time from eliminating fare collection | I187: ='Bus Boarding'!J160 -> 0 | O187: =ROW() -> 187
B188: =CONCATENATE("From 'Bus Boarding' worksheet, Row ",'Bus Boarding'!AG160, ". Includes 20% reduction for conservatism.") -> From 'Bus Boarding' worksheet, Row 160. Includes 20% reduction for conservatism. | O188: =ROW() -> 188
B189: Average duration of a bus trip, after re-priced transit | I189: =I186*(1-I187) -> 22.5212637 | J189: minutes | O189: =ROW() -> 189
B190: Average savings in bus trip duration from eliminating fare collection | I190: =I186-I189 -> 0 | J190: minutes | O190: =ROW() -> 190
B191: Assumed waiting time (current), minutes | I191: =0.4*2.5+0.4*4.5+0.2*7 -> 4.2 | J191: minutes | O191: =ROW() -> 191
B192: NYC Transit "Bus: Wait Assessement" reports wait times within "acceptable limits" 81.7% of time during 7 a.m. - 7 p.m. for 2006 and first half 2007 (http://www.mta.info/mta/ind-perform/month/nyct-b-wait.htm). Criteria are 3 minutes max 7-9 a.m. and 4-7 p.m. (peak) and 5 minutes 9 a.m.-4 p.m (shoulder). We assume 40% of passengers are peak and average 2.5 minutes; 40% shoulder averaging 4.5 minutes; 20% off-peak averaging 7 minutes. | O192: =ROW() -> 192
O193: =ROW() -> 193
O194: =ROW() -> 194
O195: =ROW() -> 195
B196: =CONCATENATE("Reduxn in waiting time from eliminating fare collexn (Row ",O191, " x Row ",O187, ")") -> Reduxn in waiting time from eliminating fare collexn (Row 191 x Row 187) | I196: =I191*I187 -> 0 | J196: minutes | O196: =ROW() -> 196
B197: =CONCATENATE("Est'd total savings per trip from eliminating fare collexn (Row ",O190, " + Row ",O196, ")") -> Est'd total savings per trip from eliminating fare collexn (Row 190 + Row 196) | I197: =I190+I196 -> 0 | J197: minutes | O197: =ROW() -> 197
B198: Hours saved by bus riders from eliminating fare collection | I198: =I180*I197/60 -> 0 | J198: million | O198: =ROW() -> 198
B199: Average value of a bus rider's hour saved | I199: =SUMPRODUCT(I135:J135,I137:J137)/K135*I140+SUMPRODUCT(I135:J135,I138:J138)/K135*(1-I140) -> 10.69361159 | O199: =ROW() -> 199
B200: =CONCATENATE("Wghtd average of in-CBD and out-CBD respective avg per-hour values of saved time, which are calculated from SUMPRODUCT operations on 2x2 array in Columns I & J and Rows ",O137, " & ",O138, ".") -> Wghtd average of in-CBD and out-CBD respective avg per-hour values of saved time, which are calculated from SUMPRODUCT operations on 2x2 array in Columns I & J and Rows 137 & 138. | O200: =ROW() -> 200
... 494 more rows

Sheet Revenues
B1: Revenues | M1: ='Title Page'!G2 -> 2017-06-05 | Q1: =ROW() -> 1
Q2: =ROW() -> 2
B3: This worksheet collects estimates of new revenue streams from the traffic pricing plan selected in the Results tab and/or inputted in the User Inputs tab. These include cordon tolling, taxi surcharges, changes (if any) in transit fares, possible "windfalls" from greater transit use, and reductions in revenues from lowering existing tolls on intra-city bridges. Note that the calculations of these impacts are performed in other worksheets. They are simply collected and combined here. An exception is Section G, Commuter Railroads, in which we estimate lost revenue from discounting some or all Metro-North and Long Island Rail Road service. | Q3: =ROW() -> 3
Q4: =ROW() -> 4
Q5: =ROW() -> 5
Q6: =ROW() -> 6
Q7: =ROW() -> 7
B8: The worksheet has seven parts, not including the summary following directly below. Click on links one screen below to access any of them. | Q8: =ROW() -> 8
Q9: =ROW() -> 9
B10: =CONCATENATE("Piechart at right includes new revenue streams only. Revenue reductions from lowering existing tolls on intra-city bridges are shown in MTA Crossings tab (Rows ",'MTA Crossings'!AL159, "-",'MTA Crossings'!AL281, ") and in graph near top of 'Results' worksheet tab. Revenue reductions from discounting some commuter rail fares are reflected in 'Results' tab (Rows ",Results!M59, "-",Results!M60, " and will be add to graph in that tab in July 2014.") -> Piechart at right includes new revenue streams only. Revenue reductions from lowering existing tolls on intra-city bridges are shown in MTA Crossings tab (Rows 159-281) and in graph near top of 'Results' worksheet tab. Revenue reductions from discounting some commuter rail fares are reflected in 'Results' tab (Rows 59-60 and will be add to graph in that tab in July 2014. | Q10: =ROW() -> 10
Q11: =ROW() -> 11
Q12: =ROW() -> 12
Q13: =ROW() -> 13
B14: New Revenues: Summary (figures do not include tolling admin or possible MTA br discounts) | H14: Amount in $ Millions | I14: % of Category Total | J14: % of Grand Total | Q14: =ROW() -> 14
Q15: =ROW() -> 15
B16: Cordon Toll Revenue (includes applicable revenue from inbound QBB Upper Roadway) | G16: Chart Labels | Q16: =ROW() -> 16
H17: =Results!I37 -> 1670 | J17: =H17/$H$33 -> 0.7324561404 | Q17: =ROW() -> 17
B18: $$ from crossing into Manhattan CBD on E River bridge | F18: Toll E River bridges | H18: =0.5*ROUND(2*I18*$H$17,-1) -> 725 | I18: =IF('User Inputs'!K41="CORDON",Approaches!N228,1) -> 0.4340730113 | J18: =H18/$H$33 -> 0.3179824561 | Q18: =ROW() -> 18
B19: $$ from crossing 60th Streeet in Manhattan | F19: Toll 60th St | H19: =0.5*ROUND(2*I19*$H$17,-1) -> 945 | I19: =IF('User Inputs'!K41="CORDON",Approaches!I228,0) -> 0.5659269887 | J19: =H19/$H$33 -> 0.4144736842 | Q19: =ROW() -> 19
B20: (Hudson River tunnels not shown, on premise they are excluded from any plan modeled here.) | Q20: =ROW() -> 20
Q21: =ROW() -> 21
B22: MTA windfalls | H22: =H23+H24 -> 325 | J22: =H22/$H$33 -> 0.1425438596 | Q22: =ROW() -> 22
B23: from increased use of bridges whose tolls are reduced | F23: MTA bridges (rise in volume) | H23: =Results!I42 -> 85 | I23: =H23/H$22 -> 0.2615384615 | J23: =H23/$H$33 -> 0.03728070175 | Q23: =ROW() -> 23
B24: farebox gain: trips priced off roads + attr'd by imprvd service | F24: MTA farebox (higher ridership) | H24: =Results!I52 -> 240 | I24: =H24/H$22 -> 0.7384615385 | J24: =H24/$H$33 -> 0.1052631579 | Q24: =ROW() -> 24
Q25: =ROW() -> 25
B26: Taxi Surcharges | H26: =H27+H28 -> 275 | J26: =H26/$H$33 -> 0.1206140351 | Q26: =ROW() -> 26
B27: New Surcharge(s) on Medallion Taxis | F27: New taxi surcharge | H27: =Results!I45 -> 270 | I27: =H27/H$26 -> 0.9818181818 | J27: =H27/$H$33 -> 0.1184210526 | Q27: =ROW() -> 27
B28: Change in "Ravitch" Taxi Surcharge | F28: ∆ in Ravitch taxi surcharge $$ | H28: =Results!I46 -> 5 | I28: =H28/H$26 -> 0.01818181818 | J28: =H28/$H$33 -> 0.002192982456 | Q28: =ROW() -> 28
Q29: =ROW() -> 29
B30: Miscellany | H30: =H31+H32 -> 10 | J30: =H30/$H$33 -> 0.004385964912 | Q30: =ROW() -> 30
B31: Tax $ from zeroing Manhattanites' parking break | F31: Eliminate Manhattan residents' parking tax exemption | H31: =Results!I64 -> 10 | I31: =H31/H$30 -> 1 | J31: =H31/$H$33 -> 0.004385964912 | Q31: =ROW() -> 31
Q32: =ROW() -> 32
B33: Grand Total | H33: =H17+H22+H26+H30 -> 2280 | I33: =H33/$H$33 -> 1 | J33: =H33/$H$33 -> 1 | Q33: =ROW() -> 33
Q34: =ROW() -> 34
Q35: =ROW() -> 35
B36: Links to Speed Navigation Around This Worksheet | I36: MTA Annual Revenues (this box is not related to any pricing plan; it simply collects current revenue figures) | Q36: =ROW(Q36) -> 36
B37: A. Transit Revenues | I37: Subways | L37: =Subways!N12 -> 3352.702 | M37: 2015, proj. | N37: =CONCATENATE("'Subways' tab, Cell L",Subways!O27, ".") -> 'Subways' tab, Cell L27. | Q37: =ROW() -> 37
B38: B. Traffic-Pricing Revenues | I38: Buses | L38: =Buses!L41 -> 977.116 | M38: 2015, proj. | N38: =CONCATENATE("'Buses' tab, Cell L",Buses!O41, ".") -> 'Buses' tab, Cell L41. | Q38: =ROW() -> 38
B39: C. QBB Upper Roadway Trips that Don't Enter CBD | I39: LIRR | L39: =F220/1000000 -> 702.622 | M39: 2014 | N39: =CONCATENATE("'Revenues' tab, Cell F",$Q$220, ".") -> 'Revenues' tab, Cell F220. | Q39: =ROW() -> 39
B40: D. MTA Bridges & Tunnels | I40: Metro-North | L40: =H220/1000000 -> 693.277 | M40: 2014 | N40: =CONCATENATE("'Revenues' tab, Cell H",$Q$220, ".") -> 'Revenues' tab, Cell H220. | Q40: =ROW() -> 40
B41: E. Port Authority Crossings | I41: TBTA | L41: ='MTA Crossings'!R156 -> 1812.174057 | M41: 2014 | N41: =CONCATENATE("'MTA Crossings' tab, Cell R",'MTA Crossings'!AL156, ".") -> 'MTA Crossings' tab, Cell R156. | Q41: =ROW() -> 41
B42: F. MTA Bus Company | I42: MTA Bus Co. (express buses) | L42: =I172/1000 -> 202.701 | M42: 2014 | N42: =CONCATENATE("'Revenues' tab, Cell I",$Q$172, ".") -> 'Revenues' tab, Cell I172. | Q42: =ROW() -> 42
B43: G. Commuter Railroads (LIRR & Metro-North) | I43: T O T A L | L43: =SUM(L37:L42) -> 7740.592057 | Q43: =ROW() -> 43
Q44: =ROW() -> 44
Q45: =ROW() -> 45
B46: A. NYC Transit Revenues | Q46: =ROW() -> 46
E47: All figures in box are annual, in millions of dollars, and employ 2015 ridership and revenue. (MTA near-term transit projections have been quite accurate in recent years.) | Q47: =ROW() -> 47
Q48: =ROW() -> 48
Q49: =ROW() -> 49
E50: NYC Transit Revenues | Q50: =ROW() -> 50
Q51: =ROW() -> 51
E52: Subways | H52: Bus | K52: Subways + Bus | Q52: =ROW() -> 52
Q53: =ROW() -> 53
E54: Weekdays | F54: Weekends | G54: Total | H54: Weekdays | I54: Weekends | J54: Total | K54: Weekdays | L54: Weekends | M54: Total | Q54: =ROW() -> 54
Q55: =ROW() -> 55
B56: Rev. w/ Current (2015) Pricing | E56: =Subways!N412/1000 -> 2679.017457 | F56: =Subways!N443/1000 -> 617.5229611 | G56: =E56+F56 -> 3296.540418 | H56: =Buses!I144 -> 786.9759188 | I56: =Buses!J144 -> 190.1400812 | J56: =H56+I56 -> 977.116 | K56: =E56+H56 -> 3465.993375 | L56: =F56+I56 -> 807.6630423 | M56: =G56+J56 -> 4273.656418 | Q56: =ROW() -> 56
Q57: =ROW() -> 57
B58: Revenue with New Pricing Plan | E58: =Subways!N424/1000 -> 2878.727477 | F58: =Subways!N497/1000 -> 647.2392095 | G58: =E58+F58 -> 3525.966686 | H58: =Buses!I167 -> 793.8984796 | I58: =Buses!J167 -> 191.776541 | J58: =H58+I58 -> 985.6750205 | K58: =E58+H58 -> 3672.625956 | L58: =F58+I58 -> 839.0157504 | M58: =G58+J58 -> 4511.641707 | Q58: =ROW() -> 58
Q59: =ROW() -> 59
B60: Revenue Increase (decrease) | E60: =E58-E56 -> 199.7100203 | F60: 29.71624833 | G60: 229.4262686 | H60: 6.922560739 | I60: 1.636459801 | J60: 8.55902054 | K60: 206.6325811 | L60: 31.35270813 | M60: 237.9852892 | Q60: =ROW() -> 60
E61: =CONCATENATE("Subways revenue data are shown and/or derived in Rows ",Subways!O412, " through ",Subways!O497, " of 'Subways' worksheet.") -> Subways revenue data are shown and/or derived in Rows 412 through 497 of 'Subways' worksheet. | Q61: =ROW() -> 61
E62: =CONCATENATE("Bus revenues are from Rows ",Buses!O144, " and ",Buses!O167, " of 'Buses' worksheet.") -> Bus revenues are from Rows 144 and 167 of 'Buses' worksheet. | Q62: =ROW() -> 62
Q63: =ROW() -> 63
B64: Predicted % change in usage resulting from new pricing plan | E64: =CONCATENATE("From 'Results' tab, Row ",Results!M146, ", which in turn is from 'Subways' tab, Row ",Subways!O512, ".") -> From 'Results' tab, Row 146, which in turn is from 'Subways' tab, Row 512. | G64: =Results!G143 -> 0.07246663475 | H64: =CONCATENATE("From 'Results' worksheet, Row ",Results!M151, ", which in turn is from 'Buses', Row ",Buses!O125, ".") -> From 'Results' worksheet, Row 151, which in turn is from 'Buses', Row 125. | J64: =Results!G151 -> 0.008759472304 | Q64: =ROW() -> 64
Q65: =ROW() -> 65
Q66: =ROW() -> 66
Q67: =ROW() -> 67
B68: Revenue attributable to usage change ($ millions) | E68: =CONCATENATE("Derived algebraically from Rows ",Q58, " and ",Q64, ".") -> Derived algebraically from Rows 58 and 64. | G68: =G58*(1-1/(1+G64)) -> 238.2497802 | H68: =CONCATENATE("Derived algebraically from Rows ",Q58, " and ",Q64, ".") -> Derived algebraically from Rows 58 and 64. | J68: =J58*(1-1/(1+J64)) -> 8.55902054 | M68: =G68+J68 -> 246.8088007 | Q68: =ROW() -> 68
G69: million | J69: million | M69: million | Q69: =ROW() -> 69
Q70: =ROW() -> 70
Q71: =ROW() -> 71
Q72: =ROW() -> 72
B73: B. Traffic-Pricing Revenue | Q73: =ROW() -> 73
E74: NYC Traffic-Pricing Revenues | Q74: =ROW() -> 74
E75: Cordon Charge to Drive Into Manhattan CBD | H75: New Surcharges on Medallion Taxi Fares | N75: Existing Srchrges on Medallion Fares | Q75: =ROW() -> 75
N76: ("Ravitch" Surcharge, enacted 2009) | Q76: =ROW() -> 76
E77: Based on 2012 traffic levels + 2015 baseline tolls, gas and parking costs, etc. | H77: Based on 2011 taxi ridership & 2015 fare structure. | Q77: =ROW() -> 77
N78: Trips/yr, millions | O78: Surcharge per trip | P78: $$/yr, millions | Q78: =ROW() -> 78
K79: Weekdays | L79: Weekends | M79: Total | Q79: =ROW() -> 79
E80: Weekdays | F80: Weekends | G80: Total | H80: Annual Trips, baseline (millions) | K80: =Taxis!L129*weekday_per_yr/1000000 -> 122.2 | L80: =Taxis!N129*wkend_per_yr/1000000 -> 56.212 | M80: =K80+L80 -> 178.412 | N80: =M80 -> 178.412 | O80: =Taxis!$G$62 -> 0.5 | P80: =N80*O80 -> 89.206 | Q80: =ROW() -> 80
Q81: =ROW() -> 81
B82: Revenue with Current Pricing | E82: =G82/(wkday_per_yr+wkend_per_yr*Weekends!V154)*wkday_per_yr -> 0 | F82: =G82-E82 -> 0 | G82: 0 | H82: Annual Trips w/ new pricing (millions) | K82: =K80*(1+Taxis!K351) -> 128.1911303 | L82: =L80*(1+Taxis!M351) -> 58.72032183 | M82: =K82+L82 -> 186.9114522 | N82: =M82 -> 186.9114522 | O82: =Taxis!$G$62 -> 0.5 | P82: =N82*O82 -> 93.45572608 | Q82: =ROW() -> 82
Q83: =ROW() -> 83
B84: Revenue with New Pricing | E84: ='Motor Vs'!N1080 -> 1221.484043 | F84: ='Motor Vs Weekends'!N1080 -> 449.40104 | G84: =E84+F84 -> 1670.885083 | H84: Taxi surcharge $, under chosen plan | K84: =Taxis!H626 -> 1.747352863 | L84: =Taxis!K626 -> 0.8164355481 | Q84: =ROW() -> 84
N85: Change from Baseline (millions) | Q85: =ROW() -> 85
B86: Revenue Increase (decrease) | E86: =E84-E82 -> 1221.484043 | F86: =F84-F82 -> 449.40104 | G86: =G84-G82 -> 1670.885083 | H86: Annual taxi-surcharge rev. (millions) | K86: =K82*K84 -> 223.9951386 | L86: =L82*L84 -> 47.94135814 | M86: =K86+L86 -> 271.9364967 | N86: =N82-N80 -> 8.499452169 | O86: =Taxis!$G$62 -> 0.5 | P86: =P82-P80 -> 4.249726085 | Q86: =ROW() -> 86
Q87: =ROW() -> 87
E88: =CONCATENATE("New Cordon-pricing figures for Weekdays and Weekends are derived in Motor Vs and Motor Vs Weekends worksheets, Rows ",'Motor Vs'!O1080, ".") -> New Cordon-pricing figures for Weekdays and Weekends are derived in Motor Vs and Motor Vs Weekends worksheets, Rows 1080. | N88: =CONCATENATE("Trips are from Column M. Surcharge per trip is from Taxis worksheet, Cell G",Taxis!O69, ".") -> Trips are from Column M. Surcharge per trip is from Taxis worksheet, Cell G69. | Q88: =ROW() -> 88
E89: =CONCATENATE("Taxi Surcharge revenues are respective products of Rows ",Q82, " and ",Q84," which in turn are from 'Taxis' worksheet.") -> Taxi Surcharge revenues are respective products of Rows 82 and 84 which in turn are from 'Taxis' worksheet. | Q89: =ROW() -> 89
Q90: =ROW() -> 90
B91: C. Queensboro Bridge Upper Roadway -- Inbound Trips that enter Manhattan at 62nd St and never cross CBD Cordon | Q91: =ROW() -> 91
B92: =CONCATENATE("See important note in Row ",Q118, ".") -> See important note in Row 118. | Q92: =ROW() -> 92
J93: Weekday | K93: Weekend | Q93: =ROW() -> 93
B94: Number of daily trips entering Manhattan at 62nd Street and not subsequently crossing CBD Cordon | J94: ='Motor Vs'!E301 -> 10841.025 | K94: ='Motor Vs Weekends'!E301 -> 9431.69175 | Q94: =ROW() -> 94
B95: =CONCATENATE("Taken from daily round-trips shown in 'Motor Vs' and 'Motor Vs Weekend' worksheets, Cell E",'Motor Vs'!O301, ".") -> Taken from daily round-trips shown in 'Motor Vs' and 'Motor Vs Weekend' worksheets, Cell E301. | Q95: =ROW() -> 95
B96: E-ZPass Toll Rate (round-trip) for those trips | J96: =IF('User Inputs'!K57="ZERO",0,(IF('User Inputs'!K57="PARTIAL",'User Inputs'!K27+2*'User Inputs'!K88,'User Inputs'!K27))) -> 6.08 | K96: =IF('User Inputs'!K57="ZERO",0,(IF('User Inputs'!K57="PARTIAL",'User Inputs'!K34+2*'User Inputs'!K88,'User Inputs'!K34))) -> 6.08 | Q96: =ROW() -> 96
B97: =CONCATENATE("Calculated with IF statement drawing on toll option chosen/shown in 'User Inputs' tab, Cell K",'User Inputs'!O57, ", and toll rates in that tab's Cells K",'User Inputs'!O27," and K",'User Inputs'!O34,", respectively.") -> Calculated with IF statement drawing on toll option chosen/shown in 'User Inputs' tab, Cell K57, and toll rates in that tab's Cells K27 and K34, respectively. | Q97: =ROW() -> 97
B98: E-ZPass Toll Rate (round-trip) for "normal" cordon crossing | J98: ='User Inputs'!K27 -> 11.08 | K98: ='User Inputs'!K34 -> 11.08 | Q98: =ROW() -> 98
B99: =CONCATENATE("Taken from normal cordon crossing toll rates in 'User Inputs' tab, Cells K",'User Inputs'!O27," and K",'User Inputs'!O34,", respectively.") -> Taken from normal cordon crossing toll rates in 'User Inputs' tab, Cells K27 and K34, respectively. | Q99: =ROW() -> 99
B100: Ratio, Toll Rate for 62nd Street non-CBD-entering trip, to normal cordon-crossing trip | J100: =J96/J98 -> 0.5487364621 | K100: =K96/K98 -> 0.5487364621 | Q100: =ROW() -> 100
B101: =CONCATENATE("Row ",Q96, " divided by Row ",Q98, ".") -> Row 96 divided by Row 98. | Q101: =ROW() -> 101
B102: Trip "Attrition" for QBB, for trips paying full cordon toll | J102: =1-Approaches!K218 -> 0.3695946686 | K102: =1-Approaches!V218 -> 0.7188841986 | Q102: =ROW() -> 102
B103: =CONCATENATE("From 'Approaches' worksheet, complement of Cells K",Approaches!O218, " and V",Approaches!O218, ", respectively.") -> From 'Approaches' worksheet, complement of Cells K218 and V218, respectively. | Q103: =ROW() -> 103
B104: Estimated Attrition for 62nd Street non-CBD-entering trips | J104: =J100*J102 -> 0.2028100709 | K104: =K100*K102 -> 0.3944779718 | Q104: =ROW() -> 104
B105: =CONCATENATE("Product of Rows ",Q100, " and ",Q102, ".") -> Product of Rows 100 and 102. | Q105: =ROW() -> 105
B106: Surviving daily round-trips entering Manhattan at 62nd Street and not subsequently entering CBD (after toll) | J106: =J94*(1-J104) -> 8642.355951 | K106: =K94*(1-K104) -> 5711.097118 | Q106: =ROW() -> 106
B107: =CONCATENATE("Row ",Q94, " times complement of Row ",Q104, ".") -> Row 94 times complement of Row 104. | Q107: =ROW() -> 107
B108: Increment to Average Toll for those trips to reflect trips using cash payment | J108: =(1-Cordon!$I$87)*'User Inputs'!$K$75 -> 0.5904 | K108: =(1-Cordon!$I$87)*'User Inputs'!$K$75 -> 0.5904 | Q108: =ROW() -> 108
B109: =CONCATENATE("One-half of round-trip surcharge for cash payments, shown in 'User Inputs' tab, Cell K",'User Inputs'!O75, "; times fraction of trips not using E-ZPass, from 'Cordon' tab, complement of figure in Row ",Cordon!M87, ".") -> One-half of round-trip surcharge for cash payments, shown in 'User Inputs' tab, Cell K75; times fraction of trips not using E-ZPass, from 'Cordon' tab, complement of figure in Row 87. | Q109: =ROW() -> 109
B110: Total Effective Toll | J110: =J96+J108 -> 6.6704 | K110: =K96+K108 -> 6.6704 | Q110: =ROW() -> 110
B111: =CONCATENATE("Sum of Rows ",Q96, " and ",Q108, ".") -> Sum of Rows 96 and 108. | Q111: =ROW() -> 111
B112: Dailiy Revenue | J112: =ROUND(J106*J110,-2) -> 57600 | K112: =ROUND(K106*K110,-2) -> 38100 | Q112: =ROW() -> 112
B113: =CONCATENATE("Product of Rows ",Q106, " and ",Q110, ".") -> Product of Rows 106 and 110. | Q113: =ROW() -> 113
B114: Annual Revenue | J114: =weekday_per_yr*J112 -> 14400000 | K114: =wkend_per_yr*K112 -> 4381500 | Q114: =ROW() -> 114
B115: =CONCATENATE("Product of respective figures in Row ",Q112, " and number of weekdays or weekends/holidays per year.") -> Product of respective figures in Row 112 and number of weekdays or weekends/holidays per year. | Q115: =ROW() -> 115
B116: Total Annual Revenue | J116: =J114+K114 -> 18781500 | Q116: =ROW() -> 116
B117: =CONCATENATE("Sum of Cells J",Q114, " and K",Q114, ".") -> Sum of Cells J114 and K114. | Q117: =ROW() -> 117
B118: Important Note: Revenue shown in this section is already "booked" in 'Motor Vs' + 'Motor Vs Weekends' tabs, and, thus, is excluded in the bottom-line figures shown in 'Results' tab. | Q118: =ROW() -> 118
Q119: =ROW() -> 119
B120: D. MTA Bridges & Tunnels | E120: This section has been off-loaded to a stand-alone tab, MTA Crossings. Clicking link immediately to right will take you there. | O120: MTA Crossings | Q120: =ROW() -> 120
Q121: =ROW() -> 121 | S121: Sept 18, 2011 - Dec 1, 2012 | T121: Dec 2, 2012 - Nov 30, 2013 | U121: Dec 1, 2013 - Dec 7, 2014
B122: E. Port Authority Crossings | Q122: =ROW() -> 122 | R122: E-Zpass (peak)
Q123: =ROW() -> 123 | R123: Car | S123: 9.5 | T123: 10.25 | U123: 11
B124: This section, and the BTA overall, reflects PA Hudson River crossings toll rates instituted Dec. 2, 2012. A new set of toll hikes, effective Dec. 1, 2013, is shown at right but has not been incorporated into the model. Note that the Complete "2012-2015" toll schedule is available at <http://www.panynj.gov/bridges-tunnels/tolls.html>. | Q124: =ROW() -> 124 | R124: Motorcycle | S124: 8.5 | T124: 9.25 | U124: 10
Q125: =ROW() -> 125 | R125: Truck (2 axles) | S125: 20 | T125: 24 | U125: 28
Q126: =ROW() -> 126 | R126: Truck (3 axles) | S126: 30 | T126: 36 | U126: 42
Q127: =ROW() -> 127 | R127: Truck (4 axles) | S127: 40 | T127: 48 | U127: 56
B128: Following are excerpts. | Q128: =ROW() -> 128 | R128: Truck (5 axles) | S128: 50 | T128: 60 | U128: 70
B129: PEAK HOURS: Weekdays: 6-10 a.m., 4-8 p.m., Sat. & Sun.: 11 a.m.-9 p.m. OFF-PEAK HOURS: All Other Times. | Q129: =ROW() -> 129 | R129: Truck (6 axles) | S129: 60 | T129: 72 | U129: 84
B130: OVERNIGHT HOURS for Trucks: Sundays-Thursdays, 10 p.m. until 6 a.m. the following morning | Q130: =ROW() -> 130 | R130: E-Zpass (off-peak)
Q131: =ROW() -> 131 | R131: Car | S131: 7.5 | T131: 8.25 | U131: 9
E132: Effective 2-Dec-2012 | Q132: =ROW() -> 132 | R132: Motorcycle | S132: 6.5 | T132: 7.25 | U132: 8
G133: E-ZPass Off-Peak | H133: E-ZPass Peak | I133: E-ZP Trucks Overnight | J133: Cash Toll All Hours | Q133: =ROW() -> 133 | R133: Truck (2 axles) | S133: 18 | T133: 22 | U133: 26
B134: Vehicle Type | E134: Class | F134: # Axles | Q134: =ROW() -> 134 | R134: Truck (3 axles) | S134: 27 | T134: 33 | U134: 39
B135: Cars | E135: 1 | F135: 2 | G135: 8.25 | H135: 10.25 | I135: NA | J135: 13 | Q135: =ROW() -> 135 | R135: Truck (4 axles) | S135: 36 | T135: 44 | U135: 52
B136: Trucks | E136: 3 | F136: 3 | G136: 33 | H136: 36 | I136: 28.5 | J136: 45 | Q136: =ROW() -> 136 | R136: Truck (5 axles) | S136: 45 | T136: 55 | U136: 65
Q137: =ROW() -> 137 | R137: Truck (6 axles) | S137: 54 | T137: 66 | U137: 78
B138: Volumes and Revenue | E138: Allocable % | F138: 2013 Toll Volumes (Eastbound Traffic) | Q138: =ROW() -> 138 | R138: Cash
F139: Annual | G139: Weekday | H139: Revenue | Q139: =ROW() -> 139 | R139: Car | S139: 12 | T139: 13 | U139: 13
B140: George Washington Bridge | E140: 0.06 | F140: 49402000 | G140: =F140/Constants!$J$6 -> 149703.0303 | H140: 612640000 | Q140: =ROW() -> 140 | R140: Motorcycle | S140: 11 | T140: 12 | U140: 13
B141: Holland Tunnel | F141: 16158000 | G141: =F141/Constants!$J$6 -> 48963.63636 | H141: 170116000 | Q141: =ROW() -> 141 | R141: Truck (2 axles) | S141: 26 | T141: 30 | U141: 34
B142: Lincoln Tunnel | F142: 18746000 | G142: =F142/Constants!$J$6 -> 56806.06061 | H142: 213241000 | I142: =G142+G141 -> 105769.697 | Q142: =ROW() -> 142 | R142: Truck (3 axles) | S142: 39 | T142: 45 | U142: 51
B143: Bayonne Bridge | F143: 31382000 | G143: =F143/Constants!$J$6 -> 95096.9697 | H143: 34901000 | Q143: =ROW() -> 143 | R143: Truck (4 axles) | S143: 52 | T143: 60 | U143: 68
B144: Goethals Bridge | H144: 165660000 | Q144: =ROW() -> 144 | R144: Truck (5 axles) | S144: 65 | T144: 75 | U144: 85
B145: Outerbridge Crossing | H145: 133936000 | Q145: =ROW() -> 145 | R145: Truck (6 axles) | S145: 78 | T145: 90 | U145: 102
B146: P O R T T O T A L, | F146: =SUM(F140:F145) -> 115688000 | H146: =SUM(H140:H145) -> 1330494000 | Q146: =ROW() -> 146
B147: Source: Annual volumes are from PA 2013 Annual Report, Comprehensive Annual Financial Report for the Year Ended December 31, 2013, available at XX, Schedule G, Port Authority Facility Traffic (unaudited), p. 119. Weekday volumes divide annuals by annual/weekday ratio in Constants worksheet. Annual revenues are from same PA report, Schedule E, Information on Port Authroity Operations, p. 117. GWB revenue figure is for "G.W. Bridge & Bus Station." | Q147: =ROW() -> 147
Q148: =ROW() -> 148
Q149: =ROW() -> 149
Q150: =ROW() -> 150
M151: This figure is used to estimate PANYNJ baseline toll revenues from trips into the CBD. | O151: This figure is used to est. PA's revenue loss from fewer trips to CBD with cordon toll. | Q151: =ROW() -> 151
B152: PANYNJ Estimated Lost Revenues from Implementing Congestion Pricing (uses 2011 projected revenue) | Q152: =ROW() -> 152
Q153: =ROW() -> 153
B154: To the extent that the cordon toll raises existing trans-Hudson tolls, the Port Authority stands to lose revenues from its current Holland and Lincoln Tunnel tolls, as drivers cut back on CBD trips due to the higher toll. The same will apply to the share of GWB crossings that would have eventually entered the CBD. | Q154: =ROW() -> 154
Q155: =ROW() -> 155
Q156: =ROW() -> 156
G157: Weekdays (revenue in $000) | J157: Weekends (revenue in $000) | M157: Weighted Average ($000) | P157: Total | Q157: =ROW() -> 157
G158: Lincoln | H158: Holland | I158: GW Bridge | J158: Lincoln | K158: Holland | L158: GW Bridge | M158: Lincoln | N158: Holland | O158: GW Bridge | P158: (rounded) | Q158: =ROW() -> 158
B159: Survival rate | G159: =Bridges!E100 -> 1 | H159: =Bridges!F100 -> 1 | I159: =1-(1-Bridges!K117)*I163 -> 0.9837673965 | J159: =Bridges!E133 -> 1 | K159: =Bridges!F133 -> 1 | L159: =1-(1-Bridges!K150)*L163 -> 1 | M159: =(G159*weekday_per_yr+J159*wkend_per_yr)/365 -> 1 | N159: =(H159*weekday_per_yr+K159*wkend_per_yr)/365 -> 1 | O159: =(I159*weekday_per_yr+L159*wkend_per_yr)/365 -> 0.9888817784 | Q159: =ROW() -> 159
B160: Citation TK | Q160: =ROW() -> 160
B161: Change in revenue | G161: =(G159-1)*H142 -> 0 | H161: =(H159-1)*H141 -> 0 | M161: =(M159-1)*H142 -> 0 | N161: =(N159-1)*H141 -> 0 | O161: =(O159-1)*H140 -> -6811467.271 | P161: =ROUND(SUM(M161:O161),-3) -> -6811000 | Q161: =ROW() -> 161
B162: Citation TK | Q162: =ROW() -> 162
B163: Share of GWB toll traffic that continues into Manhattan CBD | I163: =Approaches!I106 -> 0.06 | L163: =I163 -> 0.06 | Q163: =ROW() -> 163
B164: Komanoff estimates. | Q164: =ROW() -> 164
Q165: =ROW() -> 165
Q166: =ROW() -> 166
B167: F. MTA Bus Co. | Q167: =ROW() -> 167
Q168: =ROW() -> 168
B169: This section, in formation in Sept-2014, allows for the option of reducing express bus fares to promote "fare equity" for commuters and other travelers who rely on MTA Bus Co. express buses (or who are deterred by budgetary considerations from making full use of that service). | L169: (Text from 2008 that may or may not be obsolete as of 2015) | Q169: =ROW() -> 169
Q170: =ROW() -> 170
L171: MTA Bus Co. (MTABC) was created as a subsidiary of the MTA in Sept. 2004, under an agreement with the City of New York, in order to maintain service by seven private bus companies. Under the agreement, NYC pays MTABC the difference between the cost of operation of the bus routes and all revenues and subsidies received by MTABC. Thus, the costs of MTABC operations are 100% reimbursable by the City. The transition of service began on Jan. 3, 2005 and was completed on Feb. 20, 2006. Upon completion, MTABC was operating over 1,250 buses serving approximately 350,000 riders daily. MTABC operates 46 local routes in the Bronx, Brooklyn and Queens, and 35 premium-fare express routes between those boroughs and Manhattan. | Q171: =ROW() -> 171
B172: MTA Bus Co. Farebox Revenue, 2014, thousands | H172: This figure isn't used; included for info purposes only. | I172: 202701 | Q172: =ROW() -> 172
B173: Table, "MTA Bus Company, February Financial Plan 2015-2018, Accrual Statement of Operations by Category, p. VI-181. From MTA 2015 Adopted Budget February Financial Plan 2015-2018.pdf. | Q173: =ROW() -> 173
Q174: =ROW() -> 174
G175: Ditto. | H175: 2014 | I175: 2015 | Q175: =ROW() -> 175
B176: MTA Bus Co. Ridership (of which some are on xpress buses) | H176: 125025000 | I176: 125812000 | Q176: =ROW() -> 176
B177: Same souce as revenue, directly above, but p. VI-187. 2014 figure is final estimate, 2015 is adopted budget. | Q177: =ROW() -> 177
Q178: =ROW() -> 178
B179: Here we derive annual ridership figures on MTA express buses. | L179: Source: MTA 2007 Budget (available at http://mta.info/mta/budget/nov2007/part7.pdf). | Q179: =ROW() -> 179
Q180: =ROW() -> 180
B181: Data in this section are from MTA New York City Transit "Bus Ridership Report, April 2014," provided by Regional Plan Ass'n senior transportation fellow Jeff Zupan. Figures are 12-month total or averages for May 2013 - April 2014 and, thus, represent a recent 12-month period. | Q181: =ROW() -> 181
Q182: =ROW() -> 182
Q183: =ROW() -> 183
Q184: =ROW() -> 184
B185: Express Bus Ridership in NYC (all boroughs) | F185: 12-Month Rolling Averages, May 2013 - April 2014 | Q185: =ROW() -> 185
F186: Weekdays | G186: Saturdays | H186: Sundays | I186: Total | Q186: =ROW() -> 186
B187: NYC Transit | F187: 42237 | G187: 7612 | H187: 4483 | Q187: =ROW() -> 187
B188: Source is MTA NYCT report referenced directly above | F188: p 13/35 | G188: p 19/35 | H188: p 25/35 | Q188: =ROW() -> 188
B189: MTA Bus Company | F189: 31799 | G189: 8117 | H189: 4500 | Q189: =ROW() -> 189
B190: Same as above; fig's exclude "adjustments" that might add ~1% | F190: p 31/35 | G190: p 33/35 | H190: p 35/35 | Q190: =ROW() -> 190
B191: Two express bus entitites combined | F191: =F187+F189 -> 74036 | G191: =G187+G189 -> 15729 | H191: =H187+H189 -> 8983 | Q191: =ROW() -> 191
B192: =CONCATENATE("Sum of Rows ",Q188, " and ",Q190, ".") -> Sum of Rows 188 and 190. | Q192: =ROW() -> 192
B193: Days per year | F193: =weekday_per_yr -> 250 | G193: =Constants!J27 -> 52 | H193: =Constants!J28 -> 63 | Q193: =ROW() -> 193
B194: From Constants tab | Q194: =ROW() -> 194
B195: Rides per year | F195: =F191*F193 -> 18509000 | G195: =G191*G193 -> 817908 | H195: =H191*H193 -> 565929 | I195: =SUM(F195:H195) -> 19892837 | Q195: =ROW() -> 195
B196: =CONCATENATE("Product of Rows ",Q191, " and ",Q193, ".") -> Product of Rows 191 and 193. | Q196: =ROW() -> 196
Q197: =ROW() -> 197
B198: Proposed Discount per trip | I198: ='User Inputs'!K204 -> 1 | Q198: =ROW() -> 198
B199: =CONCATENATE("From 'User Inputs' tab, Cell K",'User Inputs'!O204, ". We apply it to all trips, not just single purchases.") -> From 'User Inputs' tab, Cell K204. We apply it to all trips, not just single purchases. | Q199: =ROW() -> 199
B200: Annual cost of proposed discount, if no change in ridership | I200: =ROUND(I195*I198,-5) -> 19900000 | Q200: =ROW() -> 200
... 211 more rows

Sheet Taxes Instead
B1: =CONCATENATE("Taxes Instead, i.e., Tax Alternatives to the ",Select_Plan_Box," ") -> Taxes Instead, i.e., Tax Alternatives to the Move NY - Gridlock Sam Fair Plan (2015) | K1: ='Title Page'!G2 -> 2017-06-05 | L1: =ROW() -> 1
L2: =ROW() -> 2
B3: A big reason to begin pricing vehicle trips to the Manhattan CBD is to create a new revenue stream that will generate funds for maintaining and improving the NYC region's transportation infrastructure. Absent a new traffic-pricing plan, those new funds presumably would have to be raised through tax instruments. The MTA relies on a patchwork of taxes and fees levied on certain business activities in its 12-county region to supplement farebox revenues. These include a salex tax surcharge, a Petroleum Business Tax levied primarily on motor fuels, and the Payroll Mobility Tax, which has become a lightning rod for opponents of MTA funding in some NY suburban districts. These various taxes and fees are considered the most likely candidates to be increased, in the absence of the new revenue stream from traffic-pricing. This worksheet estimates the increases in sales or motor fuel tax rates or the Payroll Mobility Tax rate that would be needed to collect the same net revenue as traffic-pricing. The calculations assume that the increases would be imposed throughout the 12-county MTA region in New York State. We also calculate the average rise in automobile registration fees that would be required to match traffic-pricing's net revenue with a recurring annual surcharge on motor vehicle registration fees, charged only to vehicles registered within the City of New York. This tab concludes with a calculation of the rise in the NYC transit (bus and subway) fare that would be necessary to support debt service on bonds to finance capital investments to upgrade the subways that are included in the MTA capital plan but are currently (May 2015) unfunded. | L3: =ROW() -> 3
L4: =ROW() -> 4
L5: =ROW() -> 5
L6: =ROW() -> 6
L7: =ROW() -> 7
L8: =ROW() -> 8
L9: =ROW() -> 9
L10: =ROW() -> 10
L11: =ROW() -> 11
L12: =ROW() -> 12
L13: =ROW() -> 13
L14: =ROW() -> 14
L15: =ROW() -> 15
L16: =ROW() -> 16
L17: =ROW() -> 17
L18: =ROW() -> 18
B19: Summary of Results | L19: =ROW() -> 19
L20: =ROW() -> 20
B21: Sales Tax (across the 12-county MTA tax district) | L21: =ROW() -> 21
B22: =CONCATENATE("1. To raise the estimated $",Results!C$18/1000," billion a year in net revenue anticipated to be generated by the ",Select_Plan_Box," by instead raising the sales tax rate in the 12-county MTA region, that rate would need be raised by an estimated ",ROUND(100*J87,2)," percentage points. This would have the effect of raising the sales tax rate in New York City to ",ROUND(100*J92,3), "% from its current level of ",ROUND(100*J89,3), "%. Rates in the seven 'MTA' counties outside NYC would rise by the same amount (",ROUND(100*J87,2), " percentage points). See Part B of this worksheet, beginning in Row ",L52, ".") -> 1. To raise the estimated $1.46 billion a year in net revenue anticipated to be generated by the Move NY - Gridlock Sam Fair Plan (2015) by instead raising the sales tax rate in the 12-county MTA region, that rate would need be raised by an estimated 0.66 percentage points. This would have the effect of raising the sales tax rate in New York City to 9.539% from its current level of 8.875%. Rates in the seven 'MTA' counties outside NYC would rise by the same amount (0.66 percentage points). See Part B of this worksheet, beginning in Row 52. | L22: =ROW() -> 22
L23: =ROW() -> 23
L24: =ROW() -> 24
L25: =ROW() -> 25
L26: =ROW() -> 26
B27: Gasoline Tax (across the 12-county MTA tax district) | L27: =ROW() -> 27
B28: =CONCATENATE("2. To raise the estimated $",Results!C$18/1000," billion a year in net revenue anticipated to be generated by the ",Select_Plan_Box," by instead raising the motor fuels tax rate in the 12-county MTA region, that rate would need to rise by an estimated ",ROUND(100*J136,0)," cents per gallon. This would have the effect of raising the current MTA-related state and local motor fuels tax rate in New York City and the 7 surrounding counties to ",ROUND(100*J138,0), " cents a gallon from its current level of ",ROUND(100*J113,0), " cents. See Part C of this worksheet, beginning in Row ",L100, ".") -> 2. To raise the estimated $1.46 billion a year in net revenue anticipated to be generated by the Move NY - Gridlock Sam Fair Plan (2015) by instead raising the motor fuels tax rate in the 12-county MTA region, that rate would need to rise by an estimated 51 cents per gallon. This would have the effect of raising the current MTA-related state and local motor fuels tax rate in New York City and the 7 surrounding counties to 93 cents a gallon from its current level of 42 cents. See Part C of this worksheet, beginning in Row 100. | L28: =ROW() -> 28
L29: =ROW() -> 29
L30: =ROW() -> 30
L31: =ROW() -> 31
L32: =ROW() -> 32
B33: Payroll Mobility Tax (across the 12-county MTA tax district) | L33: =ROW() -> 33
B34: =CONCATENATE("3. To raise the estimated $",Results!C$18/1000," billion a year in net revenue anticipated to be generated by the ",Select_Plan_Box," by instead raising the Payroll Mobility Tax rate in the 12-county MTA region, that rate would need to rise by an estimated ",ROUND(100*J151,2)," percentage points. This would require raising the Payroll Mobility Tax rate in all 12 counties (the 5 boroughs of New York City and the 7 suburban counties) to ",ROUND(100*J153,2), "% from the current level of ",ROUND(100*J147,3), "%. See Part D of this worksheet, beginning in Row ",L143, ".") -> 3. To raise the estimated $1.46 billion a year in net revenue anticipated to be generated by the Move NY - Gridlock Sam Fair Plan (2015) by instead raising the Payroll Mobility Tax rate in the 12-county MTA region, that rate would need to rise by an estimated 0.39 percentage points. This would require raising the Payroll Mobility Tax rate in all 12 counties (the 5 boroughs of New York City and the 7 suburban counties) to 0.73% from the current level of 0.34%. See Part D of this worksheet, beginning in Row 143. | L34: =ROW() -> 34
L35: =ROW() -> 35
L36: =ROW() -> 36
L37: =ROW() -> 37
L38: =ROW() -> 38
B39: Vehicle Registration Surcharge (NYC only) | L39: =ROW() -> 39
B40: =CONCATENATE("4. To raise the estimated $",Results!C$18/1000," billion a year in net revenue anticipated to be generated by the ",Select_Plan_Box," by instead raising automobile registration fees on vehicles registered within New York City limits, current fees would need to rise by an estimated $",ROUND(J162,0)," per vehicle. This burden would fall most heavily on Staten Island and Queens, which have the most vehicles per capita, while Manhattan, with just ",ROUND(F167,2), " vehicles per household, would pay relatively little. In fact, under this scheme the average Manhattan household would pay only 1/",ROUND(J167/F167,0), " as much as the average household in the four other boroughs, notwithstanding the far greater average income and wealth of Manhattan residents.") -> 4. To raise the estimated $1.46 billion a year in net revenue anticipated to be generated by the Move NY - Gridlock Sam Fair Plan (2015) by instead raising automobile registration fees on vehicles registered within New York City limits, current fees would need to rise by an estimated $788 per vehicle. This burden would fall most heavily on Staten Island and Queens, which have the most vehicles per capita, while Manhattan, with just 0.24 vehicles per household, would pay relatively little. In fact, under this scheme the average Manhattan household would pay only 1/3 as much as the average household in the four other boroughs, notwithstanding the far greater average income and wealth of Manhattan residents. | L40: =ROW() -> 40
L41: =ROW() -> 41
L42: =ROW() -> 42
L43: =ROW() -> 43
L44: =ROW() -> 44
L45: =ROW() -> 45
B46: Transit Fare Hike (subway and bus fares only, but only to fund subway investments earmarked in the Move NY - Gridlock Sam plan) | L46: =ROW() -> 46
B47: =CONCATENATE("5. To raise the estimated $",ROUND(J235/1000000,-1)," million a year in prospective debt service for NYC Transit's unfunded share of the MTA 2015-2019 capital plan raising all NYC Transit bus and subway fares, the average fare paid by riders would need to rise by an estimated ",ROUND(100*J273,1), "%.") -> 5. To raise the estimated $310 million a year in prospective debt service for NYC Transit's unfunded share of the MTA 2015-2019 capital plan raising all NYC Transit bus and subway fares, the average fare paid by riders would need to rise by an estimated 8.3%. | L47: =ROW() -> 47
L48: =ROW() -> 48
L49: =ROW() -> 49
L50: =ROW() -> 50
L51: =ROW() -> 51
B52: A. Raising the Sales Tax in the 12-County MTA Region | G52: 2013 Sales Tax Collections (local portion) | H52: Combined State/Local Sales Tax Rate | I52: Local Sales Tax Rate | J52: Sales Tax Base (rounded to nearest million) | L52: =ROW() -> 52
L53: =ROW() -> 53
L54: =ROW() -> 54
B55: New York City | G55: 6349043149 | H55: 0.08875 | I55: =H55-4% -> 0.04875 | J55: =ROUND(G55/I55,-6) -> 130237000000 | L55: =ROW() -> 55
B56: Dutchess | G56: 165945206.7 | H56: 0.08125 | I56: =H56-4% -> 0.04125 | J56: 4023000000 | L56: =ROW() -> 56
B57: Nassau | G57: 1138834701 | H57: 0.08625 | I57: 0.04625 | J57: 24623000000 | L57: =ROW() -> 57
B58: Orange | G58: 258819004.6 | H58: 0.08125 | I58: 0.04125 | J58: 6274000000 | L58: =ROW() -> 58
B59: Putnam | G59: 53367340.25 | H59: 0.08375 | I59: 0.04375 | J59: 1220000000 | L59: =ROW() -> 59
B60: Rockland | G60: 185633703.1 | H60: 0.08375 | I60: 0.04375 | J60: 4243000000 | L60: =ROW() -> 60
B61: Suffolk | G61: 1281871707 | H61: 0.08625 | I61: 0.04625 | J61: 27716000000 | L61: =ROW() -> 61
B62: Westchester except 4 cities below | G62: 488045564.8 | H62: 0.07375 | I62: 0.03375 | J62: 14461000000 | L62: =ROW() -> 62
B63: Mount Vernon | G63: 18483007.66 | H63: 0.08375 | I63: 0.04375 | J63: 422000000 | L63: =ROW() -> 63
B64: New Rochelle | G64: 26195832.1 | H64: 0.08375 | I64: 0.04375 | J64: 599000000 | L64: =ROW() -> 64
B65: White Plains | G65: 50879832.02 | H65: 0.08375 | I65: 0.04375 | J65: 1163000000 | L65: =ROW() -> 65
B66: Yonkers | G66: 70062672.01 | H66: 0.08375 | I66: 0.04375 | J66: 1601000000 | L66: =ROW() -> 66
B67: Source: Sales tax collections are from Excel file, as570.xls, provided to Komanoff by staff of NYS Dept. of Taxation and Finance, July 29, 2014. Combined State/Local Sales Tax Rates are from Rand New York. Updated: Feb. 2, 2010. Available at: http://bit.ly/ciKUrF. Local rates are Combined rates less 4.00% (percentage points), which is state portion. Sales Tax Base is calculated by dividing sales tax collections by respective local sales tax rate. | L67: =ROW() -> 67
L68: =ROW() -> 68
L69: =ROW() -> 69
L70: =ROW() -> 70
B71: 12-County Total, Taxable Sales (rounded) | J71: =SUM(J55:J66) -> 216582000000 | L71: =ROW() -> 71
B72: =CONCATENATE("Sum of eight rows, ",L55, "-",L62, ".") -> Sum of eight rows, 55-62. | L72: =ROW() -> 72
B73: Assumed attrition in taxable sales due to increase in tax rate | J73: 0.005 | L73: =ROW() -> 73
B74: Komanoff estimate. Ideally would be parametrized to magnitude of tax increase. | L74: =ROW() -> 74
B75: Assumed annual increase in taxable sales going forward. | J75: 0.01 | L75: =ROW() -> 75
B76: Komanoff estimate. | L76: =ROW() -> 76
B77: Benchmark year for tax calculations in table | J77: 2013 | L77: =ROW() -> 77
B78: Benchmark year for tax calculations for this analysis | J78: 2015 | L78: =ROW() -> 78
B79: No. of years to benchmark year from most recent period reflected in taxable sales figure. | J79: =J78-J77 -> 2 | L79: =ROW() -> 79
B80: =CONCATENATE("Difference between Rows ",L77, " and ",L54, ".") -> Difference between Rows 77 and 54. | L80: =ROW() -> 80
B81: Projected % increase in taxable sales from most recent level to benchmark year. | J81: =(1+J75)^J79-1 -> 0.0201 | L81: =ROW() -> 81
B82: =CONCATENATE("Calculated by exponentiating % in Row ",L75, " for number of years indicated in Row ",L79, ".") -> Calculated by exponentiating % in Row 75 for number of years indicated in Row 79. | L82: =ROW() -> 82
B83: Available Base for Sales Tax in Benchmark Year (rounded) | J83: =ROUND(J71*(1-J73)*(1+J81),-6) -> 219831000000 | L83: =ROW() -> 83
B84: =CONCATENATE("Calculated by increasing Row ",L71, " by Row ",L81, " and decreasing the result by Row ",L73, ".") -> Calculated by increasing Row 71 by Row 81 and decreasing the result by Row 73. | L84: =ROW() -> 84
B85: =CONCATENATE("Revenue needed to match projection from ",Select_Plan_Box,".") -> Revenue needed to match projection from Move NY - Gridlock Sam Fair Plan (2015). | J85: =Results!C18*1000000 -> 1460000000 | L85: =ROW() -> 85
B86: =CONCATENATE("From 'Results' tab, Cell C",Results!M18, ".") -> From 'Results' tab, Cell C18. | K86: This is expressed in percentage points. | L86: =ROW() -> 86
B87: =CONCATENATE("% change in sales tax to yield net revenue projected from ",Select_Plan_Box, ".") -> % change in sales tax to yield net revenue projected from Move NY - Gridlock Sam Fair Plan (2015). | J87: =J85/J83 -> 0.006641465489 | L87: =ROW() -> 87
B88: =CONCATENATE("Ratio of Row ",L85, " to Row ",L83, ".") -> Ratio of Row 85 to Row 83. | L88: =ROW() -> 88
B89: Current total sales tax rate in NYC (Note: rate in most surrounding counties is slightly lower, varying from 7.375% in Westchester (outside of cities) to 8.625% in Nassau & Suffolk, per "New York State Tax Rates." Rand New York. Updated: Feb. 2, 2010. Available at: http://bit.ly/ciKUrF.) | J89: 0.08875 | L89: =ROW() -> 89
L90: =ROW() -> 90
L91: =ROW() -> 91
B92: =CONCATENATE("New NYC sales tax rate, to yield net revenue projected from ",Select_Plan_Box, "") -> New NYC sales tax rate, to yield net revenue projected from Move NY - Gridlock Sam Fair Plan (2015) | J92: =J89+J87 -> 0.09539146549 | L92: =ROW() -> 92
B93: =CONCATENATE("Sum of Rows ",L87, " and ",L89, ".") -> Sum of Rows 87 and 89. | L93: =ROW() -> 93
B94: Current Sales Tax for MTA across 12-county MTA Region | J94: 0.00375 | L94: =ROW() -> 94
B95: Source: Metropolitan Commuter Transportation District (MCTD) Sales and Use Tax Rate Increase Effective June 1, 2005. NYS Dept. of Taxation and Finance. Available at: http://bit.ly/e27AOM . | L95: =ROW() -> 95
L96: =ROW() -> 96
B97: =CONCATENATE("Multiple to current MTA sales tax implied by additional ",ROUND(J87*100,2), "% tax shown in Cell J",L87,".") -> Multiple to current MTA sales tax implied by additional 0.66% tax shown in Cell J87. | J97: =J87/J94 -> 1.771057464 | L97: =ROW() -> 97
B98: =CONCATENATE("Ratio of Row ",L87, " to Row ",L94, ".") -> Ratio of Row 87 to Row 94. | L98: =ROW() -> 98
L99: =ROW() -> 99
B100: B. Raising the Motor Fuel Tax in the 12-County MTA Region | L100: =ROW() -> 100
L101: =ROW() -> 101
B102: Present motor fuel taxes that are local or are allocable to the MTA (does not include standard state tax rate) | L102: =ROW() -> 102
B103: Petroleum Business Tax Rate (per gallon) | J103: 0.184 | L103: =ROW() -> 103
B104: Source: NYS DTF, Fuel tax rates. Article 13-A, Publication 908 (1/14). | L104: =ROW() -> 104
B105: State Excise Tax Rate (per gallon) | J105: 0.0805 | L105: =ROW() -> 105
B106: Source: NYS DTF, Fuel tax rates. Article 13-A, Publication 908 (1/14). Includes petroleum testing fee. | L106: =ROW() -> 106
B107: Total Motor Fuel Taxes collected by NYS, allocable to the MTA | J107: =SUM(J103:J105) -> 0.2645 | L107: =ROW() -> 107
B108: =CONCATENATE("Sum of Rows ",L103, " and ",L105, ".") -> Sum of Rows 103 and 105. | L108: =ROW() -> 108
B109: NYC Sales Tax Rate on gasoline | I109: 0.045 | L109: =ROW() -> 109
B110: Source: Sales and Use Tax. New York City Finance. "Tax rate." 2011. Available at: http://bit.ly/fpAfkm. | L110: =ROW() -> 110
B111: =CONCATENATE("Approx. price of gas/gallon, to which % in Cell E",L109," is applied.") -> Approx. price of gas/gallon, to which % in Cell E109 is applied. | I111: 3.4 | L111: =ROW() -> 111
B112: Local Sales Tax (4.5% of price in dollars) | J112: =I109*I111 -> 0.153 | L112: =ROW() -> 112
B113: Total State and Local Motor Fuel Taxes in New York City, baseline: | J113: =SUM(J107:J112) -> 0.4175 | L113: =ROW() -> 113
B114: =CONCATENATE("Sum of Rows ",L107, " and ",L112, ".") -> Sum of Rows 107 and 112. | L114: =ROW() -> 114
B115: Taxable motor fuel consumed in MTA Region, gallons, 2014 | J115: 2931000000 | L115: =ROW() -> 115
B116: Email communication from "Ziter, Cary B (TAX)" <Cary.Ziter@tax.ny.gov>, Feb. 24, 2015, in response to Komanoff inquiry. | L116: =ROW() -> 116
B117: Taxable motor fuel consumed in MTA Region, gallons, 2006 | J117: 3508400000 | L117: =ROW() -> 117
B118: NYMTC, Regional Transportation Statistical Report: 2006. Published in 2009. P. 72 of 108. Available at: http://bit.ly/gnuCGx. | L118: =ROW() -> 118
B119: Change in taxable motor fuel consumed in MTA Region, gallons, 2006-2014 | J119: =J115/J117-1 -> -0.1645764451 | L119: =ROW() -> 119
B120: =CONCATENATE("Ratio of Row ",L115, " to Row ",L117, ", less one.") -> Ratio of Row 115 to Row 117, less one. | L120: =ROW() -> 120
B121: Annualized change in taxable motor fuel consumed in MTA Region, gallons, 2006-2014 | J121: =(J115/J117)^(1/8)-1 -> -0.02222632699 | L121: =ROW() -> 121
B122: =CONCATENATE("Ratio of Row ",L115, " to Row ",L117, ", exponentiated to the 1/8 power, less one.") -> Ratio of Row 115 to Row 117, exponentiated to the 1/8 power, less one. | L122: =ROW() -> 122
B123: Assumed annual change in motor fuel sales in MTA region, going forward. | J123: 0 | L123: =ROW() -> 123
B124: Komanoff estimate, based on expectation that late 2014 - early 2015 plunge in gasoline price will offset trends toward stagnant VMT and improved fuel economy. | L124: =ROW() -> 124
B125: Benchmark year for tax calculations | J125: 2017 | L125: =ROW() -> 125
B126: No. of years to benchmark year from most recent period reflected in taxable sales figure. | J126: =J125-2014 -> 3 | L126: =ROW() -> 126
B127: =CONCATENATE("Difference between Row ",L125, " and 2014.") -> Difference between Row 125 and 2014. | L127: =ROW() -> 127
B128: Projected % change in taxable sales from most recent level to benchmark year. | J128: =(1+J123)^J126-1 -> 0 | L128: =ROW() -> 128
B129: =CONCATENATE("Calculated by exponentiating % in Row ",L123, " for number of years indicated in Row ",L126, ".") -> Calculated by exponentiating % in Row 123 for number of years indicated in Row 126. | L129: =ROW() -> 129
B130: Assumed attrition in taxable motor fuel sales due to increase in motor fuel tax rate | J130: 0.02 | L130: =ROW() -> 130
B131: Komanoff estimate. Ideally would be parametrized to magnitude of tax increase. | L131: =ROW() -> 131
B132: Estimated Available Base for Motor Fuels Tax in Benchmark Year, Gallons (rounded) | J132: =ROUND(J115*(1+J128)*(1-J130),-6) -> 2872000000 | L132: =ROW() -> 132
B133: =CONCATENATE("Calculated by increasing Row ",L115, " by Row ",L128, " and decreasing the result by Row ",L130, ".") -> Calculated by increasing Row 115 by Row 128 and decreasing the result by Row 130. | L133: =ROW() -> 133
B134: =CONCATENATE("Revenue needed to match projection from ",Select_Plan_Box,".") -> Revenue needed to match projection from Move NY - Gridlock Sam Fair Plan (2015). | J134: =Results!C$18*1000000 -> 1460000000 | L134: =ROW() -> 134
B135: =CONCATENATE("From 'Results' tab, Cell C",Results!M$18, ".") -> From 'Results' tab, Cell C18. | L135: =ROW() -> 135
B136: =CONCATENATE("Increase in motor fuels tax to yield net revenue projected from ",Select_Plan_Box, ".") -> Increase in motor fuels tax to yield net revenue projected from Move NY - Gridlock Sam Fair Plan (2015). | J136: =J134/J132 -> 0.508356546 | L136: =ROW() -> 136
B137: =CONCATENATE("Ratio of Row ",L134, " to Row ",L132, ".") -> Ratio of Row 134 to Row 132. | L137: =ROW() -> 137
B138: Revised total rate per gallon of fuel of MTA-dedicated tax | J138: =J113+J136 -> 0.925856546 | L138: =ROW() -> 138
B139: =CONCATENATE("Sum of Rows ",L113, " and ",L136, ".") -> Sum of Rows 113 and 136. | L139: =ROW() -> 139
B140: Implied % Increase in MTA-dedicated motor fuel tax | J140: =J138/J113-1 -> 1.217620469 | L140: =ROW() -> 140
B141: =CONCATENATE("Ratio of Row ",L138, " to Row ",L113, ".") -> Ratio of Row 138 to Row 113. | L141: =ROW() -> 141
L142: =ROW() -> 142
B143: C. Raising the Payroll Mobility Tax Rate in the 12-County MTA Region | L143: =ROW() -> 143
L144: =ROW() -> 144
B145: Current (2014 projected) revenue generated by PMT | J145: 1256900000 | L145: =ROW() -> 145
B146: MTA, July Financial Plan 2015-2018, Consolidated Subsidies, Accrual Basis. Figure is for "2014 Mid-Year Forecast" | L146: =ROW() -> 146
B147: PMT Rate | J147: 0.0034 | L147: =ROW() -> 147
B148: No source needed. Figure is commonly known. | L148: =ROW() -> 148
B149: =CONCATENATE("Revenue needed to match projection from ",Select_Plan_Box,".") -> Revenue needed to match projection from Move NY - Gridlock Sam Fair Plan (2015). | J149: =Results!C$18*1000000 -> 1460000000 | L149: =ROW() -> 149
B150: =CONCATENATE("From 'Results' tab, Cell C",Results!M$18, ".") -> From 'Results' tab, Cell C18. | L150: =ROW() -> 150
B151: =CONCATENATE("Increase in Payroll Mobility Tax rate to match revenue from ",Select_Plan_Box, ".") -> Increase in Payroll Mobility Tax rate to match revenue from Move NY - Gridlock Sam Fair Plan (2015). | J151: =J149/J145*J147 -> 0.003949399316 | L151: =ROW() -> 151
B152: =CONCATENATE("Calculated by prorating the current PMT rate shown in Row ",L147, " by the ratio of Row ",L149, " to Row ",L145,".") -> Calculated by prorating the current PMT rate shown in Row 147 by the ratio of Row 149 to Row 145. | L152: =ROW() -> 152
B153: Rate required to generate projected 2014 revenue plus revenue projected for Move NY plan | J153: =J147+J151 -> 0.007349399316 | L153: =ROW() -> 153
B154: =CONCATENATE("Sum of Rows ",L147, " and ",L151, ".") -> Sum of Rows 147 and 151. | L154: =ROW() -> 154
L155: =ROW() -> 155
B156: D. Raising Automobile Registration Fees in NYC (but not in the 7 "suburban" MTA counties) | L156: =ROW() -> 156
L157: =ROW() -> 157
B158: Number of Registered Automobiles in the five boroughs | J158: =Incidence!V533 -> 1853150.5 | L158: =ROW() -> 158
B159: =CONCATENATE("From 'Incidence' worksheet, Cell V",Incidence!AA533, ". Drawn from U.S. Census, American Community Survey, 2012 data.") -> From 'Incidence' worksheet, Cell V533. Drawn from U.S. Census, American Community Survey, 2012 data. | L159: =ROW() -> 159
B160: =CONCATENATE("Revenue needed to match projection from ",Select_Plan_Box,"") -> Revenue needed to match projection from Move NY - Gridlock Sam Fair Plan (2015) | J160: =Results!C$18*1000000 -> 1460000000 | L160: =ROW() -> 160
B161: =CONCATENATE("From 'Results' tab, Cell C",Results!M$18, ".") -> From 'Results' tab, Cell C18. | L161: =ROW() -> 161
B162: =CONCATENATE("Incrs in NYC per-vehicle registration fee to match revenue from ",Select_Plan_Box,"") -> Incrs in NYC per-vehicle registration fee to match revenue from Move NY - Gridlock Sam Fair Plan (2015) | J162: =J160/J158 -> 787.8475062 | L162: =ROW() -> 162
B163: =CONCATENATE("Ratio of Row ",L160, " to Row ",L158, ". Assumes no exemptions/leakage; also ignores trucks.") -> Ratio of Row 160 to Row 158. Assumes no exemptions/leakage; also ignores trucks. | L163: =ROW() -> 163
L164: =ROW() -> 164
B165: Results: Impacts, by borough | L165: =ROW() -> 165
D166: =Incidence!G525 -> Bronx | E166: =Incidence!H525 -> Brooklyn | F166: =Incidence!I525 -> Manhattan | G166: =Incidence!J525 -> Queens | H166: =Incidence!K525 -> S.I. | I166: =Incidence!V525 -> NYC | J166: NYC w/o Manhattan | L166: =ROW() -> 166
B167: Vehicles per Household | D167: =Incidence!G535 -> 0.4968717042 | E167: =Incidence!H535 -> 0.5469579576 | F167: =Incidence!I535 -> 0.2387248455 | G167: =Incidence!J535 -> 0.9004599224 | H167: =Incidence!K535 -> 1.424673331 | I167: =Incidence!V535 -> 0.6005386261 | J167: =Incidence!W535 -> 0.7160352063 | L167: =ROW() -> 167
B168: Per Household | D168: =$J$162*Incidence!G535 -> 391.459133 | E168: =$J$162*Incidence!H535 -> 430.9194629 | F168: =$J$162*Incidence!I535 -> 188.0787742 | G168: =$J$162*Incidence!J535 -> 709.4251043 | H168: =$J$162*Incidence!K535 -> 1122.425331 | I168: =$J$162*Incidence!V535 -> 473.1328589 | J168: =$J$162*Incidence!W535 -> 564.1265516 | L168: =ROW() -> 168
B169: Total, $ millions per yr | D169: =$J$162*Incidence!G533/1000000 -> 186.3259352 | E169: =$J$162*Incidence!H533/1000000 -> 396.1584825 | F169: =$J$162*Incidence!I533/1000000 -> 140.4357876 | G169: =$J$162*Incidence!J533/1000000 -> 553.5991707 | H169: =$J$162*Incidence!K533/1000000 -> 183.4806239 | I169: =$J$162*Incidence!V533/1000000 -> 1460 | J169: =I169-F169 -> 1319.564212 | L169: =ROW() -> 169
B170: Chosen Plan, $ millions/y | D170: =Incidence!G385 -> 92.01061014 | E170: =Incidence!H385 -> 220.0713612 | F170: =Incidence!I385 -> 310.1066329 | G170: =Incidence!J385 -> 221.6031658 | H170: =Incidence!K385 -> 22.53149425 | I170: =SUM(D170:H170) -> 866.3232644 | J170: =I170-F170 -> 556.2166315 | L170: =ROW() -> 170
B171: Net change vs. Plan, $ mill/y | D171: =D169-D170 -> 94.31532507 | E171: 176.0871213 | F171: -169.6708453 | G171: 331.9960049 | H171: 160.9491297 | I171: 593.6767356 | J171: 763.347581 | L171: =ROW() -> 171
B172: =CONCATENATE("Row ",L167, " is copied from 'Incidence' tab, Row ",Incidence!AA537, ".") -> Row 167 is copied from 'Incidence' tab, Row 537. | L172: =ROW() -> 172
B173: =CONCATENATE("Row ",L168, " is product of per-vehicle fee in Cell J",L162, " and borough avg # of vehicles per HH in Row ",L167, ".") -> Row 168 is product of per-vehicle fee in Cell J162 and borough avg # of vehicles per HH in Row 167. | L173: =ROW() -> 173
B174: =CONCATENATE("Row ",L169, " is product of per-veh. fee in Cell J",L162, " and borough total # of vehicles per HH from 'Incidence' tab, Row ",Incidence!AA533, ".") -> Row 169 is product of per-veh. fee in Cell J162 and borough total # of vehicles per HH from 'Incidence' tab, Row 533. | L174: =ROW() -> 174
B175: =CONCATENATE("Row ",L170, ", which is also an annual amount, denotes net total cost to each borough of ",Select_Plan_Box, ". It is copied from 'Incidence' tab, Row ",Incidence!AA385, ".") -> Row 170, which is also an annual amount, denotes net total cost to each borough of Move NY - Gridlock Sam Fair Plan (2015). It is copied from 'Incidence' tab, Row 385. | L175: =ROW() -> 175
B176: =CONCATENATE("Row ",L171," is Row ",L169," less Row ",L170,"; denotes annual cost increment if registration fees (NYC vehicles only) are substituted for ",Select_Plan_Box, ".") -> Row 171 is Row 169 less Row 170; denotes annual cost increment if registration fees (NYC vehicles only) are substituted for Move NY - Gridlock Sam Fair Plan (2015). | L176: =ROW() -> 176
L177: =ROW() -> 177
B178: F. Further Calculations with Payroll Mobility Tax | L178: =ROW() -> 178
L179: =ROW() -> 179
B180: 1. Alternative revenue breakdowns for various hypothetical changes to current PMT rate (0.34%) | L180: =ROW() -> 180
L181: =ROW() -> 181
B182: =CONCATENATE("No county breakdowns of revenue generated for the PMT are readily available. As a proxy, we use sales tax bases, calculated in Rows ",L55, "-",L66, ".") -> No county breakdowns of revenue generated for the PMT are readily available. As a proxy, we use sales tax bases, calculated in Rows 55-66. | L182: =ROW() -> 182
L183: =ROW() -> 183
D184: Current PMT Rate | E184: 2013 Sales Tax Base ($ 106) | F184: % of Sales Tax Base | G184: Est'd revenue contrib to PMT | H184: Alt PMT Rate "A" | I184: PMT revenue w/ Rate "A" | J184: Alt PMT Rate "B" | K184: PMT revenue w/ Rate "B" | L184: =ROW() -> 184 | M184: Alt PMT Rate "C" | N184: PMT revenue w/ Rate "C" | O184: Alt PMT Rate "D" | P184: PMT revenue w/ Rate "D" | Q184: Alt PMT Rate "E" | R184: PMT revenue w/ Rate "E" | S184: Alt PMT Rate "F" | T184: PMT revenue w/ Rate "F"
L185: =ROW() -> 185
B186: New York City | D186: 0.0034 | E186: =J55/1000000 -> 130237 | F186: =E186/$E$194 -> 0.601328827 | G186: =ROUND(F186*$J$145,-3) -> 755810000 | H186: =$D186 -> 0.0034 | I186: =ROUND(H186/$D186*$G186,-3) -> 755810000 | J186: 0.0033 | K186: =ROUND(J186/$D186*$G186,-3) -> 733580000 | L186: =ROW() -> 186 | M186: 0.0034 | N186: =ROUND(M186/$D186*$G186,-3) -> 755810000 | O186: 0.0036 | P186: =ROUND(O186/$D186*$G186,-3) -> 800269000 | Q186: 0.004 | R186: =ROUND(Q186/$D186*$G186,-3) -> 889188000 | S186: 0.0046 | T186: =ROUND(S186/$D186*$G186,-3) -> 1022566000
B187: Dutchess | D187: 0.0034 | E187: 4023 | F187: 0.01857495083 | G187: 23347000 | H187: 0.0011 | I187: 7553000 | J187: 0.0011 | K187: 7553000 | L187: =ROW() -> 187 | M187: 0.0022 | N187: 15107000 | O187: 0.0024 | P187: 16480000 | Q187: 0.002 | R187: 13734000 | S187: 0.0011 | T187: 7553000
B188: Nassau | D188: 0.0034 | E188: 24623 | F188: 0.1136890416 | G188: 142896000 | H188: 0.0022 | I188: 92462000 | J188: 0.0022 | K188: 92462000 | L188: =ROW() -> 188 | M188: 0.0028 | N188: 117679000 | O188: 0.003 | P188: 126085000 | Q188: 0.003 | R188: 126085000 | S188: 0.0022 | T188: 92462000
B189: Orange | D189: 0.0034 | E189: 6274 | F189: 0.02896824297 | G189: 36410000 | H189: 0.0011 | I189: 11780000 | J189: 0.0011 | K189: 11780000 | L189: =ROW() -> 189 | M189: 0.0022 | N189: 23559000 | O189: 0.0024 | P189: 25701000 | Q189: 0.002 | R189: 21418000 | S189: 0.0011 | T189: 11780000
B190: Putnam | D190: 0.0034 | E190: 1220 | F190: 0.005632970422 | G190: 7080000 | H190: 0.0011 | I190: 2291000 | J190: 0.0011 | K190: 2291000 | L190: =ROW() -> 190 | M190: 0.0022 | N190: 4581000 | O190: 0.0024 | P190: 4998000 | Q190: 0.002 | R190: 4165000 | S190: 0.0011 | T190: 2291000
B191: Rockland | D191: 0.0034 | E191: 4243 | F191: 0.01959073238 | G191: 24624000 | H191: 0.0011 | I191: 7967000 | J191: 0.0011 | K191: 7967000 | L191: =ROW() -> 191 | M191: 0.0022 | N191: 15933000 | O191: 0.0024 | P191: 17382000 | Q191: 0.002 | R191: 14485000 | S191: 0.0011 | T191: 7967000
B192: Suffolk | D192: 0.0034 | E192: 27716 | F192: 0.1279700067 | G192: 160846000 | H192: 0.0011 | I192: 52038000 | J192: 0.0011 | K192: 52038000 | L192: =ROW() -> 192 | M192: 0.0022 | N192: 104077000 | O192: 0.0024 | P192: 113538000 | Q192: 0.002 | R192: 94615000 | S192: 0.0011 | T192: 52038000
B193: Westchester | D193: 0.0034 | E193: =SUM(J62:J66)/1000000 -> 18246 | F193: 0.08424522814 | G193: 105888000 | H193: 0.0022 | I193: 68516000 | J193: 0.0022 | K193: 68516000 | L193: =ROW() -> 193 | M193: 0.0028 | N193: 87202000 | O193: 0.003 | P193: 93431000 | Q193: 0.003 | R193: 93431000 | S193: 0.0022 | T193: 68516000
B194: T O T A L | E194: =SUM(E186:E193) -> 216582 | F194: 1 | G194: =SUM(G186:G193) -> 1256901000 | I194: =SUM(I186:I193) -> 998417000 | K194: =SUM(K186:K193) -> 976187000 | L194: =ROW() -> 194 | N194: =SUM(N186:N193) -> 1123948000 | P194: =SUM(P186:P193) -> 1197884000 | R194: =SUM(R186:R193) -> 1257121000 | T194: =SUM(T186:T193) -> 1265173000
B195: Difference from current total (rounded to nearest $ million) | I195: =ROUND(I194-$G$194,-6) -> -258000000 | K195: =ROUND(K194-$G$194,-6) -> -281000000 | L195: =ROW() -> 195 | N195: =ROUND(N194-$G$194,-6) -> -133000000 | P195: =ROUND(P194-$G$194,-6) -> -59000000 | R195: =ROUND(R194-$G$194,-6) -> 0 | T195: =ROUND(T194-$G$194,-6) -> 8000000
L196: =ROW() -> 196
B197: 2. Aggregation of some of the results in Part 1 directly above | L197: =ROW() -> 197
L198: =ROW() -> 198
B199: PMT Revenues, hypothetical scenarios, summary | G199: New York City (Bklyn, Bx, Man, Qns, S.I.) | H199: Inner Suburban (Nassau + Westchester) | I199: Outer Suburban (Dutch, Orange, Put, Rock, Suff) | J199: Total (all 12 counties in MTA tax district) | L199: =ROW() -> 199
L200: =ROW() -> 200
... 74 more rows

Sheet CBD Congestion
B1: CBD Congestion | L1: ='Title Page'!G2 -> 2017-06-05 | O1: =ROW() -> 1
O2: =ROW() -> 2
B3: This worksheet was begun in late July 2015, to quantify, on a preliminary basis, the causal "ingredients" of the reported worsening of CBD travel speeds in 2014 and 2015. | O3: =ROW() -> 3
O4: =ROW() -> 4
B5: Summary of Analysis | O5: =ROW() -> 5
O6: =ROW() -> 6
B7: Reduction in CBD travel speeds to be accounted for: | F7: =K48 -> -0.1045013976 | O7: =ROW() -> 7
B8: =CONCATENATE("(Calculated as reported decline of ",ROUND(100*K39,1), "% minus missed *improvement* of ",ROUND(100*K42,1),".0%. See below.)") -> (Calculated as reported decline of -8.5% minus missed *improvement* of 2.0%. See below.) | O8: =ROW() -> 8
F9: CBD Speed Reduction attributed to each factor | G9: Factor's Share of Total Observed Reduction | O9: =ROW() -> 9
O10: =ROW() -> 10
B11: Factors found contributing to slower CBD vehicular travel | O11: =ROW() -> 11
B12: Uber | F12: =K52 -> -0.04278631849 | G12: =F12/$F$7 -> 0.4094329788 | O12: =ROW() -> 12
B13: Increased Bicycle Lanes | F13: =K56 -> -0.01935155776 | G13: 0.1851798944 | O13: =ROW() -> 13
B14: Cheaper Gasoline leading to More Driving | F14: =K79 -> -0.01955516118 | G14: 0.1871282264 | O14: =ROW() -> 14
B15: More Pedestrian Activity | F15: =K113 -> -0.005 | G15: 0.04784625006 | O15: =ROW() -> 15
B16: Increased Motorist Observance of Pedestrian Right Of Way | F16: =K121 -> -0.005 | G16: 0.04784625006 | O16: =ROW() -> 16
B17: Speed Limit Reduction to 25 mph | F17: =K128 -> -0.001 | G17: 0.009569250012 | O17: =ROW() -> 17
B18: SUBTOTAL | F18: =SUM(F12:F17) -> -0.09269303744 | G18: 0.8870028497 | O18: =ROW() -> 18
B19: Other factors not identified | F19: =F7-F18 -> -0.01180836013 | G19: 0.1129971503 | O19: =ROW() -> 19
O20: =ROW() -> 20
B21: The rest of this worksheet fills in the figures in the table above. | O21: =ROW() -> 21
O22: =ROW() -> 22
B23: 0. Quantifying the actual change in average CBD travel speeds, 2014 vs. 2012 | O23: =ROW() -> 23
I24: Weekday Motor Vehicles Entering CBD | O24: =ROW() -> 24
B25: All data in these rows are from a July 20, 2015 e-mail from Carl Bialik, a writer for Nate Silver's Web site fivethirtyeight.com, who sourced them to NYC DOT. The percentage change calculations are mine, however. Figures in last column, showing weekday vehicles entering CBD per BTA, are also mine. | E25: Calendar Year | F25: Average MPH | G25: ∆ from 2012 | H25: ∆ from 2013 | I25: Per NYCDOT | J25: ∆ from 2012 | K25: ∆ from 2013 | L25: Same, per BTA | O25: =ROW() -> 25
E26: 2009 | F26: 9.27 | I26: 771000 | L26: ='Hub-Bound'!N27*1000 -> 750000 | O26: =ROW() -> 26
E27: 2010 | F27: 9.35 | I27: 778000 | L27: ='Hub-Bound'!N28*1000 -> 767000 | O27: =ROW() -> 27
E28: 2011 | F28: 8.93 | I28: 764000 | L28: ='Hub-Bound'!N29*1000 -> 748000 | O28: =ROW() -> 28
E29: 2012 | F29: 9.3 | I29: 751000 | L29: ='Hub-Bound'!N30*1000 -> 740000 | O29: =ROW() -> 29
E30: 2013 | F30: 8.9 | G30: =F30/$F$29-1 -> -0.04301075269 | I30: 747000 | J30: =I30/$I$29-1 -> -0.005326231691 | L30: =CONCATENATE("Above figures are from 'Hub-Bound' tab, Rows ",'Hub-Bound'!R27,"-",'Hub-Bound'!R30, ". It's unclear why DOT figures at left are different.") -> Above figures are from 'Hub-Bound' tab, Rows 27-30. It's unclear why DOT figures at left are different. | O30: =ROW() -> 30
E31: 2014 | F31: 8.51 | G31: =F31/$F$29-1 -> -0.08494623656 | H31: =F31/$F$30-1 -> -0.04382022472 | I31: 731000 | J31: =I31/$I$29-1 -> -0.02663115846 | K31: =I31/I30-1 -> -0.02141900937 | O31: =ROW() -> 31
O32: =ROW() -> 32
B33: =CONCATENATE("The analysis below will compare 2014 to 2012, using City DOT figures for both the change in CBD average travel speeds in those two years (a ", -ROUND(G31*100,1), "% drop) and the change in vehicle entries to the CBD (a ",-ROUND(J31*100,1), "% drop).") -> The analysis below will compare 2014 to 2012, using City DOT figures for both the change in CBD average travel speeds in those two years (a 8.5% drop) and the change in vehicle entries to the CBD (a 2.7% drop). | O33: =ROW() -> 33
O34: =ROW() -> 34
O35: =ROW() -> 35
B36: Note that some of the calculations below will use 2015 data instead of 2014. This process, while irregular, is necessitated by the currency of the issue and the novelty of the app-based ride service Uber. | O36: =ROW() -> 36
O37: =ROW() -> 37
O38: =ROW() -> 38
B39: A. Observed change in average CBD travel speeds, 2014 vs. 2012 | K39: =G31 -> -0.08494623656 | O39: =ROW() -> 39
B40: =CONCATENATE("Calculated and shown in Cell G",O31, ".") -> Calculated and shown in Cell G31. | O40: =ROW() -> 40
O41: =ROW() -> 41
B42: B. Predicted change in avg CBD travel speeds, 2014 vs. 2012, as result of reported reduxn in veh entries to CBD | K42: 0.01955516101 | O42: =ROW() -> 42
B43: =CONCATENATE("Calculated by inputting negative ",(I29-I31)/1000, ",000, (the change in number of CBD entries reported by NYCDOT and calculated as the difference between Cells I",O29, " and I",O31, ") into Cell E",'User Inputs'!O213, " of the 'User Inputs' tab, then setting the switch in Cell E",'User Inputs'!O211, " of the same tab to 'C', and then running the BTA with the 'Baseline' scenario, i.e., setting the pull-down menu switch in Cell I",Results!M26, " to 'Baseline'. When I did this on July 27, 2015, the result shown here in Cell K",O42, " appeared in Cell B",Results!M18, " of the 'Results' tab. However, I've had to 'hardwire' the value shown in Row ",O42, ", since the scenario that led to it is a special one, not the default one, in the BTA.") -> Calculated by inputting negative 20,000, (the change in number of CBD entries reported by NYCDOT and calculated as the difference between Cells I29 and I31) into Cell E213 of the 'User Inputs' tab, then setting the switch in Cell E211 of the same tab to 'C', and then running the BTA with the 'Baseline' scenario, i.e., setting the pull-down menu switch in Cell I26 to 'Baseline'. When I did this on July 27, 2015, the result shown here in Cell K42 appeared in Cell B18 of the 'Results' tab. However, I've had to 'hardwire' the value shown in Row 42, since the scenario that led to it is a special one, not the default one, in the BTA. | O43: =ROW() -> 43
O44: =ROW() -> 44
O45: =ROW() -> 45
O46: =ROW() -> 46
O47: =ROW() -> 47
B48: C. Change in avg CBD travel speeds, 2014 vs. 2012, to be "explained" by changes in factors other than veh entries to CBD | K48: =K39-K42 -> -0.1045013976 | O48: =ROW() -> 48
B49: =CONCATENATE("Row ",O39, " less Row ",O42, ". The premise is that we need to account for a 'swing' of ",ROUND(-K48*100,1), "% in speeds, since speeds would have been predicted to increase slightly (by ",ROUND(K42*100,1), "%) due to the reduction in vehicle entries to the CBD from 2012 to 2014.") -> Row 39 less Row 42. The premise is that we need to account for a 'swing' of 10.5% in speeds, since speeds would have been predicted to increase slightly (by 2%) due to the reduction in vehicle entries to the CBD from 2012 to 2014. | O49: =ROW() -> 49
O50: =ROW() -> 50
O51: =ROW() -> 51
B52: 1. Possible Factor #1: Change in avg CBD travel speeds that would be expected due to net incrs in CBD VMT attributable to Uber | K52: =Taxis!L849 -> -0.04278631849 | L52: =CONCATENATE("Copied from Cell L",Taxis!O849, " of 'Taxis' tab, where it is derived.") -> Copied from Cell L849 of 'Taxis' tab, where it is derived. | O52: =ROW() -> 52
B53: =CONCATENATE("Calculated and shown in 'Taxis' tab, in Row ",Taxis!O849, ". While that is based on a current (mid-2015) estimate of Uber volumes, rather than an increase from 2012 to 2014, it appears to be the best approximation available at this time.") -> Calculated and shown in 'Taxis' tab, in Row 849. While that is based on a current (mid-2015) estimate of Uber volumes, rather than an increase from 2012 to 2014, it appears to be the best approximation available at this time. | O53: =ROW() -> 53
O54: =ROW() -> 54
O55: =ROW() -> 55
B56: 2. Possible Factor #2: Change in avg CBD travel speeds that would be expected due to "appropriation" of lanes for bicycle network | K56: =K76 -> -0.01935155776 | L56: =CONCATENATE("Copied from Cell K",O76, " and derived directly below.") -> Copied from Cell K76 and derived directly below. | O56: =ROW() -> 56
O57: =ROW() -> 57
B58: Increase in CBD bicycle lanes, 2012 to 2014, miles | K58: =SUM(Bicycles!J334:J335) -> 14.136 | O58: =ROW() -> 58
B59: =CONCATENATE("Estimated from NYCDOT data, derived and sourced in 'Bicycles' tab, Rows ",Bicycles!O334, " and ",Bicycles!O335, ".") -> Estimated from NYCDOT data, derived and sourced in 'Bicycles' tab, Rows 334 and 335. | O59: =ROW() -> 59
B60: Effective loss of motor vehicle lane-miles per bicycle lane-mile | K60: 0.5 | O60: =ROW() -> 60
B61: Komanoff estimate, intended to reflect less-than-"standard" width of most bicycle lanes, along with lanes' "regularizing" function on overall traffic. | O61: =ROW() -> 61
B62: Effective loss of CBD motor-vehicle lanes due to expansion of bicycle network, 2012 to 2014, lane-miles | K62: =K60*K58 -> 7.068 | O62: =ROW() -> 62
B63: =CONCATENATE("Product of Rows ",O60, " and ",O58, ".") -> Product of Rows 60 and 58. | O63: =ROW() -> 63
B64: Total number of CBD lane-miles | K64: =Cordon!F285 -> 906.5 | L64: Figures at left aren't used in calculations, but are shown for possible interest. | O64: =ROW() -> 64
B65: =CONCATENATE("Copied from Row ",Cordon!M285, " of 'Cordon' tab, where it is derived in detail.") -> Copied from Row 285 of 'Cordon' tab, where it is derived in detail. | O65: =ROW() -> 65
B66: Effective loss of CBD motor-veh lanes due to expansion of bicycle network, 2012 to 2014, expressed as a percent (rounded) | K66: =ROUND(K62/K64,3) -> 0.008 | O66: =ROW() -> 66
B67: =CONCATENATE("Row ",O62, " divided by Row ",O64, ".") -> Row 62 divided by Row 64. | O67: =ROW() -> 67
B68: =CONCATENATE("Predicted decline in CBD travel speeds from removing ",ROUND(K62,1), " motor vehicle lane-miles.") -> Predicted decline in CBD travel speeds from removing 7.1 motor vehicle lane-miles. | K68: -0.02418944721 | O68: =ROW() -> 68
B69: =CONCATENATE("Calculated by inputting the number ",ROUND(K62,1), ", which is the effective loss of CBD motor-v lane miles calculated in Row ",O62, ", into Cell E",'User Inputs'!O142, " of 'User Inputs' tab, and running the BTA with the 'Baseline' scenario, i.e., setting the pull-down menu switch in Cell I",Results!M26, " to 'Baseline'. When I did this on July 28, 2015, the result shown here appeared in Cell B",Results!M18, " of the 'Results' tab. However, I've had to 'hardwire' the value shown in Row ",O68, " since the scenario that led to it is a special one, not the default one, in the BTA.") -> Calculated by inputting the number 7.1, which is the effective loss of CBD motor-v lane miles calculated in Row 62, into Cell E142 of 'User Inputs' tab, and running the BTA with the 'Baseline' scenario, i.e., setting the pull-down menu switch in Cell I26 to 'Baseline'. When I did this on July 28, 2015, the result shown here appeared in Cell B18 of the 'Results' tab. However, I've had to 'hardwire' the value shown in Row 68 since the scenario that led to it is a special one, not the default one, in the BTA. | O69: =ROW() -> 69
O70: =ROW() -> 70
O71: =ROW() -> 71
O72: =ROW() -> 72
B73: Attenuation factor to above predicted decline, to reflect posited (if slight) decline in motor veh. travel due to increase in bicycle travel | K73: 0.2 | O73: =ROW() -> 73
B74: Komanoff estimate. To be firmed up based on empirical data on bicycle use and estimates of the associated decline in use of yellow cabs, other for-hire vehicles, and private autos. | O74: =ROW() -> 74
O75: =ROW() -> 75
B76: Expected change in avg CBD travel speeds due to expansion of CBD Bicycle Network, 2012 to 2014 | K76: =K68*(1-K73) -> -0.01935155776 | O76: =ROW() -> 76
B77: =CONCATENATE("Product of Row ",O68, " and complement of Row ",O73, ".") -> Product of Row 68 and complement of Row 73. | O77: =ROW() -> 77
O78: =ROW() -> 78
B79: 3. Possible Factor #3: Change in avg CBD travel speeds that would be expected if cheaper gasoline has led to an uptick in vehicle entries to CBD | K79: =K101 -> -0.01955516118 | L79: =CONCATENATE("Copied from Cell K",O101, " and derived directly below.") -> Copied from Cell K101 and derived directly below. | O79: =ROW() -> 79
O80: =ROW() -> 80
B81: I wrote last fall (Nov. 2014), that "the price of gas ... has already fallen below three bucks a gallon after averaging about $3.60 nationally in 2013 and $3.70 in 2012. Unlike some prior falls that proved transitory, this one looks like it could have staying power owing to the boom in U.S. production, the stutter-stop world economy, and Saudi Arabia’s disinclination to curb production to stabilize prices." | J81: These quotes are from my Nov. 24, 2014 post on Streetsblog, "Cheaper Gas and Uber Have Manhattan Gridlock Poised to Get Worse." <http://www.streetsblog.org/2014/11/24/cheaper-gas-and-uber-have-manhattan-gridlock-poised-to-get-worse/> | O81: =ROW() -> 81
O82: =ROW() -> 82
O83: =ROW() -> 83
O84: =ROW() -> 84
B85: I went on to say, " I estimate that a dollar a gallon drop in pump prices would shave 6 percent off the cost of a typical CBD commute. That correlates to an additional 12,000 or so motor vehicle trips to the CBD ... ([N]ote also that the rise would be 20,000 but for the “rebound” effect of new trips crowding out some current trips.)" | O85: =ROW() -> 85
O86: =ROW() -> 86
O87: =ROW() -> 87
B88: The 6 percent reduction in the cost of a typical CBD round-trip from a $1/gal drop in the price of gasoline can be documented at another time. (If the percentage seems small, it's because parking and tolls dominate the cost of most auto commutes to or through the CBD.) Here's how that 6% drop translates to an expected 12,000 additional vehicle trips per day to the CBD: | O88: =ROW() -> 88
O89: =ROW() -> 89
O90: =ROW() -> 90
B91: Assumed change in cost of a typical motor vehicle commute to or through Manhattan CBD | K91: -0.06 | O91: =ROW() -> 91
B92: =CONCATENATE("See discussion in Rows ",O81, "-",O90, ".") -> See discussion in Rows 81-90. | O92: =ROW() -> 92
B93: Assumed price-elasticity of motor vehicle trips to or through Manhattan CBD | K93: -0.5 | O93: =ROW() -> 93
B94: =CONCATENATE("Unweighted average of price-elasticities for auto work-trips, non-work-trips and through trips, recorded in Row ",Elasticities!O66, " of the 'Elasticities' tab, and derived in that worksheet.") -> Unweighted average of price-elasticities for auto work-trips, non-work-trips and through trips, recorded in Row 66 of the 'Elasticities' tab, and derived in that worksheet. | O94: =ROW() -> 94
B95: Estimated % change in auto trips to/through Manhattan CBD due to assumed $1.00/gallon reduction in price of gasoline | K95: =(1+K91)^K93-1 -> 0.03142124626 | O95: =ROW() -> 95
B96: =CONCATENATE("Calculated algebraically as one less than the number one plus the value in Cell K",O91, ", raised to the exponent given in Cell K",O93, ".") -> Calculated algebraically as one less than the number one plus the value in Cell K91, raised to the exponent given in Cell K93. | O96: =ROW() -> 96
B97: Baseline auto trips to/through Manhattan CBD, typical weekday | K97: ='Motor Vs'!H90 -> 631077.7778 | O97: =ROW() -> 97
B98: =CONCATENATE("Copied from 'Motor Vs' tab, Cell H",'Motor Vs'!O90, ". Is less than figures shown here in Rows ",O26, "-",O31, " because we adjust through-trips to count as one entry, rather than two.") -> Copied from 'Motor Vs' tab, Cell H90. Is less than figures shown here in Rows 26-31 because we adjust through-trips to count as one entry, rather than two. | O98: =ROW() -> 98
B99: Estimated numerical change in auto trips to/through Manhattan CBD due to assumed $1.00/gallon reduction in price of gasoline | K99: =ROUND(K95*K97,-3) -> 20000 | O99: =ROW() -> 99
B100: =CONCATENATE("Product of Rows ",O95, " and ",O97, ".") -> Product of Rows 95 and 97. | O100: =ROW() -> 100
B101: Expected change in avg CBD travel speeds due to anticipated increase in auto trips resulting from $1.00/gallon reduxn in gas price | K101: -0.01955516118 | O101: =ROW() -> 101
B102: =CONCATENATE("Calculated by inputting ",K99/1000, ",000, which is the expected change in the number of CBD entries derived and shown in Cell K",O99, ", into Cell E",'User Inputs'!O213, " of the 'User Inputs' tab, setting the switch in Cell E",'User Inputs'!O211, " of the same tab to 'C', and then running the BTA with the 'Baseline' scenario, i.e., setting the pull-down menu switch in Cell I",Results!M26, " to 'Baseline'. When I did this on July 28, 2015, the result shown here in Cell K",O101, " appeared in Cell B",Results!M18, " of the 'Results' tab. However, I've had to 'hardwire' the value shown in Cell K",O101, ", since the scenario that led to it is a special one, not the default one, in the BTA.") -> Calculated by inputting 20,000, which is the expected change in the number of CBD entries derived and shown in Cell K99, into Cell E213 of the 'User Inputs' tab, setting the switch in Cell E211 of the same tab to 'C', and then running the BTA with the 'Baseline' scenario, i.e., setting the pull-down menu switch in Cell I26 to 'Baseline'. When I did this on July 28, 2015, the result shown here in Cell K101 appeared in Cell B18 of the 'Results' tab. However, I've had to 'hardwire' the value shown in Cell K101, since the scenario that led to it is a special one, not the default one, in the BTA. | O102: =ROW() -> 102
O103: =ROW() -> 103
O104: =ROW() -> 104
O105: =ROW() -> 105
O106: =ROW() -> 106
B107: 4. Possible Factor #4: Increased Pedestrian Travel, and Vision Zero | O107: =ROW() -> 107
O108: =ROW() -> 108
B109: Three possible phenomena are discussed here: (i) an increasing number of people on foot in the CBD, (ii) increasing observance of pedestrians' right of way by drivers, especially via delayed turns into crosswalks, and (iii) the reduction in the nominal speed limit on NYC streets to 25 mph (from 30 mph). With no empirical data readily available, this section is necessarily speculative. | O109: =ROW() -> 109
O110: =ROW() -> 110
O111: =ROW() -> 111
O112: =ROW() -> 112
B113: A. Increasing Number of People on Foot in CBD ― estimated impact on average CBD travel speeds | K113: -0.005 | O113: =ROW() -> 113
B114: NYC's economy is rebounding from the 2008 recession ― at least according to traditional indicators (details TK). Tourism is strong, and "in 2014 the number of international visitors to New York City topped 12 million, a record," the New York Times reported on July 28, 2015. <http://www.nytimes.com/2015/07/28/arts/design/metropolitan-museum-draws-record-crowds.html>. Although I can neither quantify (or verify) increased pedestrian activity from 2012 to 2014, nor mathematically translate an hypothesized increase into greater "congestion" that would slow vehicular travel, it seems reasonable to posit increased pedestrian travel and to assign a small but non-zero responsibility to it for slowing motor traffic. | O114: =ROW() -> 114
O115: =ROW() -> 115
O116: =ROW() -> 116
O117: =ROW() -> 117
O118: =ROW() -> 118
O119: =ROW() -> 119
O120: =ROW() -> 120
B121: B. Increasing Observance of Pedestrians' Right of Way by Drivers ― estimated impact on average CBD travel speeds | K121: -0.005 | M121: NB: NYT July 1, 2016 Page-One story on growing pedestrian volumes in midtown. Emphasis on crowding rather than "traffic," but worth consulting. http://www.nytimes.com/2016/07/01/nyregion/new-york-city-overcrowded-sidewalks.html. | O121: =ROW() -> 121
B122: As in "A" directly above, I’m relying on a well-infomed (?) hunch about traffic behavior in the CBD. Over the past decade, I have observed what I believe is greater adherence by motorists to the requirement to yield to pedestrians in crosswalks before turning, especially in the case of right turns, which are far more common than left turns in the CBD. Though I have no empirical evidence or quantification, I believe it is reasonable to posit greater observance of pedestrian right of way by drivers and to assign a small but non-zero responsibility to it for slowing motor traffic. | O122: =ROW() -> 122
O123: =ROW() -> 123
O124: =ROW() -> 124
O125: =ROW() -> 125
O126: =ROW() -> 126
O127: =ROW() -> 127
B128: C. Imposition of a 5 MPH Reduction in the Speed Limit as Part of Vision Zero ― estimated impact on average CBD travel speeds | K128: -0.001 | O128: =ROW() -> 128
B129: Several commentators have pointed to the reduction in the NYC speed limit to 25 mph (from 30 mph) as a contributing factor in lower average vehicle travel speeds in the CBD. This seems absurd on its face, insofar as (i) the vast majority of miles and minutes traveled in the CBD is at speeds of 25 mph or less, and (ii) the speed limit isn't rigorously enforced in any case. Accordingly, I've assigned this factor a near-zero role in reducing CBD travel speeds. | O129: =ROW() -> 129
O130: =ROW() -> 130
O131: =ROW() -> 131
O132: =ROW() -> 132

Sheet MTA Crossings
B1: MTA Crossings | L1: ='Title Page'!G2 -> 2017-06-05 | AL1: =ROW() -> 1
AL2: =ROW() -> 2
AL3: =ROW() -> 3
B4: The Metropolitan Transportation Authority operates nine river crossings (two tunnels and seven bridges). All are entirely within the New York City limits, and all but one (Q Midtown Tunnel) were built under the aegis of Robert Moses, creator and ruler of the Triborough Bridge & Tunnel Authority until it was folded into the MTA, in 1968. All are tolled facilities. Indeed, their surplus toll revenues (in excess of debt amortization and O&M) are, by law, applied to support operations of the MTA's transit subsidiaries: the NYC Transit Authority, the Long Island Rail Road, and Metro-North. | N4: Establish share of Triboro Br trips that enter or leave Manhattan | AL4: =ROW() -> 4
N5: Calculations prorate 2013 total bridge volume.against borough split in 2012 NYCDOT "Manhattan River Crossings" report. (Breakout is needed to reflect different E-ZP-use rates betw portals.) | AL5: =ROW() -> 5
AL6: =ROW() -> 6
N7: Triborough Bridge 2013 volumes | AL7: =ROW() -> 7
N8: Annual (000) | Q8: =CONCATENATE("Cell S",AL36, ". All trips, not just toll-pay.") -> Cell S36. All trips, not just toll-pay. | T8: =S36 -> 63230 | AL8: =ROW() -> 8
B9: These crossings figure prominently in NYC transportation and, thus, in this (BTA) spreadsheet. First, because of the revenues just noted. Second, because the proximity of tolled MTA crossings to untolled city-owned bridges, particularly on the East River, leads to gross distortion of "natural" travel patterns via "toll-shopping." Third, the Sam Schwartz "Fair [Toll] Plan" envisions lowering MTA bridge (but not tunnel) tolls; detailed modeling is required to assess the travel and revenue ramifications. | N9: Daily | Q9: 2013 Stantec Report, Table 9, p. E-22. | T9: 159518 | AL9: =ROW() -> 9
N10: Adj. #1 to above figure: all days to weekdays | T10: =365/(weekday_per_yr+wkend_per_yr*Weekends!$L$21) -> 1.042708185 | AL10: =ROW() -> 10
N11: Calculated w/ factors that take into account # of weekdays and weekends/holidays in year, and relative volume on typical weekdays and weekends | AL11: =ROW() -> 11
AL12: =ROW() -> 12
N13: Adj. #2 to above figure: paying trips to all trips | T13: =1/(1-1.25%) -> 1.012658228 | AL13: =ROW() -> 13
B14: The primary source of data in this worksheet is the current (2016) edition of an annual report produced for the MTA by Stantec: "History and Projection of Traffic, Toll Revenues and Expenses and Review of Physical Conditions of the Facilities of Triborough Bridge and Tunnel Authority," This edition is dated April 29, 2016 and is available at <http://web.mta.info/mta/investor/pdf/2016/AppendixE_Stantec.pdf>. | N14: Assumes 1.25% of Triborough traffic doesn't pay toll and is excluded from AADT figure in Stantec report. | AL14: =ROW() -> 14
N15: Triboro Br total traffic, all boros, wkdys | Q15: =CONCATENATE("Product of Rows ",AL9, ", ",AL10, " and ",AL13, ".") -> Product of Rows 9, 10 and 13. | T15: =T9*T10*T13 -> 168436.1764 | AL15: =ROW() -> 15
N16: 2012 split between trips relating to Manhattan, and trips not (weekdays, 24-h) | AL16: =ROW() -> 16
N17: Inbound traffic to Manhattan | Q17: NYCDOT, "Manhattan River Crossings 2012," cover sheet. | T17: 50818 | AL17: =ROW() -> 17
B18: =CONCATENATE("All toll levels in this worksheet are 1-way and are collected in both directions; w/ the exception of the Verrazano-Narrow Bridge toll, as noted in Row ",AL53, ".") -> All toll levels in this worksheet are 1-way and are collected in both directions; w/ the exception of the Verrazano-Narrow Bridge toll, as noted in Row 53. | N18: Outbound traffic from Manhattan | T18: 40138 | AL18: =ROW() -> 18
N19: Total traffic to/from Manhattan | Q19: =CONCATENATE("Sum of Rows ",AL11, " and ",AL12, ".") -> Sum of Rows 11 and 12. | T19: =T17+T18 -> 90956 | AL19: =ROW() -> 19
B20: Use these internal links to navigate around this tab. | N20: Estimated share of Triboro Bridge traffic that enters or leaves Manhattan | T20: =T19/T15 -> 0.5400027592 | AL20: =ROW() -> 20
B21: Baseline (2015) MTA bridge and tunnel vehicle volumes and toll rates | N21: =CONCATENATE("Ratio of Rows ",AL19, " to ",AL15, ".") -> Ratio of Rows 19 to 15. | AL21: =ROW() -> 21
B22: Baseline (2015) MTA bridge and tunnel revenue projections | AL22: =ROW() -> 22
B23: Calculate revenue change (loss) from altering (discounting) some or all MTA bridges | N23: Triborough Bridge 2016 projected toll-paying volume | T23: 64283 | AL23: =ROW() -> 23
B24: Calculate revenue change (gain) from "driving" traffic to MTA tunnels | N24: 2016 Stantec Report, Table 23. | AL24: =ROW() -> 24
AL25: =ROW() -> 25
B26: A. Baseline: MTA Bridge & Tunnel Vehicle Volumes by Vehicle Classification (2015) and Toll Rates (effective March 22, 2015) | AL26: =ROW() -> 26
AL27: =ROW() -> 27
B28: 1. Volumes | AL28: =ROW() -> 28
B29: All figures are in 000s, are annual, and are "each way," so that round trips appear twice. | AL29: =ROW() -> 29
B30: =CONCATENATE("Source is Table 8, 'Traffic by Facility and Vehicle Class, 2015,' from p. 27 of 83 in 2016 report ref'd in Rows ",AL14,"-",AL16,". Except penultimate col (proj 2016) is from Table 23, Est'd 2016 Toll-Paying Traffic and Toll Revenue. VNB figure is 2x # of westbound trips, and final col applies EZP % usage rates from Rows ",AL82,"-",AL91,".") -> Source is Table 8, 'Traffic by Facility and Vehicle Class, 2015,' from p. 27 of 83 in 2016 report ref'd in Rows 14-16. Except penultimate col (proj 2016) is from Table 23, Est'd 2016 Toll-Paying Traffic and Toll Revenue. VNB figure is 2x # of westbound trips, and final col applies EZP % usage rates from Rows 82-91. | AL30: =ROW() -> 30
B31: TBTA Vehicle Class # | D31: 1 | E31: 2 | F31: 3 | G31: 4 | H31: 5 | I31: 6 | J31: 7 | K31: 8 | L31: 9 | M31: 10 | N31: 11 | O31: 12 | P31: 13 | Q31: 14 | AL31: =ROW() -> 31
D32: Passenger Cars | E32: Passenger Cars w/ 1-axle trailer | F32: Passenger Cars w/ 2-axle trailer | G32: Trucks 2 Axles | H32: Franchise Buses 2 Axles | I32: Trucks 3 Axles | J32: Trucks 4 Axles | K32: Trucks 5 Axles | L32: Motorcycles | M32: Non-Revenue Vehicles | N32: Franchise Buses 3 Axles | O32: Trucks 6 Axles | P32: Trucks 7 Axles | Q32: Other Vehicles | R32: Total Toll-Paying Vehicles (2015) | S32: Total Vehicles (2015) | T32: Projected Toll-Paying Vehicles (2016) | U32: Projected E-ZPass-Paying Vehicles (2015) | AL32: =ROW() -> 32
AL33: =ROW() -> 33
AL34: =ROW() -> 34
B35: Verrazano Bridge | D35: 61786 | E35: 32 | F35: 28 | G35: 2074 | H35: 197 | I35: 391 | J35: 241 | K35: 929 | L35: 120 | M35: 603 | N35: 375 | O35: 37 | P35: 4 | Q35: 2 | R35: 66215 | S35: 66819 | T35: 68659 | U35: =T35*F82 -> 59115.399 | AL35: =ROW() -> 35
B36: Triborough Br (Manhattan) | D36: 57067 | E36: 25 | F36: 15 | G36: 3358 | H36: 15 | I36: 588 | J36: 123 | K36: 584 | L36: 104 | M36: 1003 | N36: 326 | O36: 19 | P36: 2 | Q36: 2 | R36: 62227 | S36: 63230 | T36: =T20*T23 -> 34712.99737 | U36: 29679.61275 | AL36: =ROW() -> 36
B37: Triborough Bridge (Bronx) | D37: Note that Stantec's 2015 volumes combine Triboro's Manhattan and Bronx spans, whereas its 2016 projections record them separately. Our projections (below) will prorate the total between the two spans. | T37: =(1-T20)*T23 -> 29570.00263 | U37: 22828.04203 | AL37: =ROW() -> 37
B38: Bronx Whitestone Bridge | D38: 38993 | E38: 17 | F38: 10 | G38: 1500 | H38: 55 | I38: 302 | J38: 217 | K38: 787 | L38: 63 | M38: 205 | N38: 100 | O38: 15 | P38: 3 | Q38: 1 | R38: 42062 | S38: 42267 | T38: 44689 | U38: 35751.2 | AL38: =ROW() -> 38
B39: Throgs Neck Bridge | D39: 37750 | E39: 59 | F39: 56 | G39: 1772 | H39: 2 | I39: 341 | J39: 321 | K39: 1722 | L39: 60 | M39: 191 | N39: 2 | O39: 84 | P39: 16 | Q39: 3 | R39: 42189 | S39: 42380 | T39: 44205 | U39: 37087.995 | AL39: =ROW() -> 39
B40: Brooklyn Battery Tunnel | D40: 16230 | E40: 3 | F40: 1 | G40: 654 | H40: 6 | I40: 117 | J40: 20 | K40: 4 | L40: 67 | M40: 459 | N40: 552 | O40: 1 | P40: 0 | Q40: 0 | R40: 17655 | S40: 18114 | T40: 18288 | U40: 16459.2 | AL40: =ROW() -> 40
B41: Queens Midtown Tunnel | D41: 26339 | E41: 8 | F41: 4 | G41: 1663 | H41: 68 | I41: 249 | J41: 50 | K41: 12 | L41: 45 | M41: 380 | N41: 259 | O41: 1 | P41: 0 | Q41: 0 | R41: 28697 | S41: 29077 | T41: 29229 | U41: 26072.268 | AL41: =ROW() -> 41
B42: Henry Hudson Bridge | D42: 22911 | E42: 4 | F42: 2 | G42: 234 | H42: 0 | I42: 3 | J42: 1 | K42: 0 | L42: 39 | M42: 50 | N42: 0 | O42: 0 | P42: 0 | Q42: 0 | R42: 23194 | S42: 23243 | T42: 24237 | U42: 22685.832 | AL42: =ROW() -> 42
B43: Marine Parkway Bridge | D43: 7427 | E43: 2 | F43: 2 | G43: 207 | H43: 63 | I43: 19 | J43: 4 | K43: 15 | L43: 12 | M43: 79 | N43: 0 | O43: 2 | P43: 0 | Q43: 0 | R43: 7753 | S43: 7832 | T43: 8059 | U43: 7099.979 | AL43: =ROW() -> 43
B44: Cross Bay Bridge | D44: 7378 | E44: 4 | F44: 2 | G44: 310 | H44: 154 | I44: 29 | J44: 7 | K44: 14 | L44: 19 | M44: 133 | N44: 35 | O44: 1 | P44: 0 | Q44: 0 | R44: 7954 | S44: 8087 | T44: 8278 | U44: 7044.578 | AL44: =ROW() -> 44
B45: S U M S (in thousands) | D45: =SUM(D35:D44) -> 275881 | E45: 154 | F45: 120 | G45: 11772 | H45: 560 | I45: 2039 | J45: 984 | K45: 4067 | L45: 529 | M45: 3103 | N45: 1649 | O45: 160 | P45: 25 | Q45: 8 | R45: 297946 | S45: 301049 | T45: 309927 | U45: 263824.1058 | AL45: =ROW() -> 45
B46: Percents (of Total Veh's) | D46: =D45/$S$45 -> 0.9163989915 | E46: 0.0005115446323 | F46: 0.000398606207 | G46: 0.0391032689 | H46: 0.001860162299 | I46: 0.0067729838 | J46: 0.003268570897 | K46: 0.0135094287 | L46: 0.001757189029 | M46: 0.01030729217 | N46: 0.005477513627 | O46: 0.0005314749426 | P46: 8.304295978e-05 | Q46: 2.657374713e-05 | R46: 0.9896927078 | S46: 1 | AL46: =ROW() -> 46
B47: Stantec's total, where diff: | D47: 275882 | E47: 152 | G47: 11771 | H47: 559 | J47: 983 | L47: 530 | M47: 3102 | O47: 159 | P47: 26 | Q47: 9 | S47: 301048 | AL47: =ROW() -> 47
R48: Proj'd 2016 toll-pay veh's for Queens bridges, though includes 100% of Triborough so may overstate. | T48: Annual (000) | U48: Daily (ATDT) | AL48: =ROW() -> 48
B49: 2. Toll Levels (as of March 22, 2015). | T49: =T45-T35-T40-T41-T42 -> 169514 | U49: =T49*1000/Constants!$J$6 -> 513678.7879 | AL49: =ROW() -> 49
B50: =CONCATENATE("All tolls are from Stantec, Table 1: Current Toll Rates at TBTA Facilities, Effective March 22, 2015. Except that Verrazano, Marine Parkway and Cross Bay Bridge tolls " & "incorporate resident discounts; those are listed in Section 4, and their effective impacts (wghtd avg reductions from nominal tolls) are shown in Cells M",AL107, " and N",AL107, " (Verrazano); and O",AL107, " and P",AL107," (Marine Pkwy & Cross-Bay). Verrazano truck tolls also reflect 'VNB Commercial Rebate Program' entered in Row ",AL113, ".") -> All tolls are from Stantec, Table 1: Current Toll Rates at TBTA Facilities, Effective March 22, 2015. Except that Verrazano, Marine Parkway and Cross Bay Bridge tolls incorporate resident discounts; those are listed in Section 4, and their effective impacts (wghtd avg reductions from nominal tolls) are shown in Cells M107 and N107 (Verrazano); and O107 and P107 (Marine Pkwy & Cross-Bay). Verrazano truck tolls also reflect 'VNB Commercial Rebate Program' entered in Row 113. | U50: =CONCATENATE("Annual > daily uses factor in 'Constants' tab, Row ",Constants!O6, ".") -> Annual > daily uses factor in 'Constants' tab, Row 6. | AL50: =ROW() -> 50
R51: =CONCATENATE("Actual 2015 toll-pay veh's for all Queens x-ings, including QMT. Assumes ",T54*100, "% of Trib trips have Queens component.") -> Actual 2015 toll-pay veh's for all Queens x-ings, including QMT. Assumes 60% of Trib trips have Queens component. | T51: Annual (000) | AL51: =ROW() -> 51
T52: =T54*(S36)+S38+S39+S41+S43+S44 -> 167581 | AL52: =ROW() -> 52
B53: Note that tolls for Verrazano are charged in westbound direction, at twice rates shown, while eastbound travel is free. | U53: =T52*1000/Constants!$J$6 -> 507821.2121 | AL53: =ROW() -> 53
D54: Passenger Cars | E54: Passenger Cars w/ 1-axle trailer | F54: Passenger Cars w/ 2-axle trailer | G54: Trucks 2 Axles | H54: Franchise Buses 2 Axles | I54: Trucks 3 Axles | J54: Trucks 4 Axles | K54: Trucks 5 Axles | L54: Motorcycles | M54: Non-Revenue Vehicles | N54: Franchise Buses 3 Axles | O54: Trucks 6 Axles | P54: Trucks 7 Axles | S54: Assumed Trib trips w/ Qns leg | T54: 0.6 | U54: Daily (ATDT) | AL54: =ROW() -> 54
T55: Same as directly above but excluding QMT: | U55: =(T52-S41)*1000/Constants!J6 -> 419709.0909 | AL55: =ROW() -> 55
B56: E-ZPass | AL56: =ROW() -> 56
B57: Verrazano Bridge | D57: =M107 -> 4.685 | E57: =D57+D82 -> 7.935 | F57: =E57+D82 -> 11.185 | G57: =9.62*(1-$Q$113) -> 9.2352 | H57: 3.86 | I57: =15.76*(1-$Q$113) -> 15.1296 | J57: =20.14*(1-$Q$113) -> 19.3344 | K57: =26.26*(1-$Q$113) -> 25.2096 | L57: 2.32 | M57: FN "e" in 2016 Stantec report Table 8 (source of these figures) says Non-Rev. Veh's "Includes police, fire and other emergency vehicles and TBTA vehicles." | N57: 4.58 | O57: =30.64*(1-$Q$113) -> 29.4144 | P57: =36.76*(1-$Q$113) -> 35.2896 | AL57: =ROW() -> 57
B58: Triborough Br (Manhattan) | D58: =MTA_1Way_EZPass_2015 -> 5.54 | E58: 8.79 | F58: 12.04 | G58: 9.62 | H58: 3.86 | I58: 15.76 | J58: 20.14 | K58: 26.26 | L58: 2.32 | N58: 4.58 | O58: 30.64 | P58: 36.76 | AL58: =ROW() -> 58
B59: Triborough Bridge (Bronx) | D59: 5.54 | E59: 8.79 | F59: 12.04 | G59: 9.62 | H59: 3.86 | I59: 15.76 | J59: 20.14 | K59: 26.26 | L59: 2.32 | N59: 4.58 | O59: 30.64 | P59: 36.76 | AL59: =ROW() -> 59
B60: Bronx Whitestone Bridge | D60: 5.54 | E60: 8.79 | F60: 12.04 | G60: 9.62 | H60: 3.86 | I60: 15.76 | J60: 20.14 | K60: 26.26 | L60: 2.32 | N60: 4.58 | O60: 30.64 | P60: 36.76 | AL60: =ROW() -> 60
B61: Throgs Neck Bridge | D61: 5.54 | E61: 8.79 | F61: 12.04 | G61: 9.62 | H61: 3.86 | I61: 15.76 | J61: 20.14 | K61: 26.26 | L61: 2.32 | N61: 4.58 | O61: 30.64 | P61: 36.76 | AL61: =ROW() -> 61
B62: Brooklyn Battery Tunnel | D62: 5.54 | E62: 8.79 | F62: 12.04 | G62: 9.62 | H62: 3.86 | I62: 15.76 | J62: 20.14 | K62: 26.26 | L62: 2.32 | N62: 4.58 | O62: 30.64 | P62: 36.76 | AL62: =ROW() -> 62
B63: Queens Midtown Tunnel | D63: 5.54 | E63: 8.79 | F63: 12.04 | G63: 9.62 | H63: 3.86 | I63: 15.76 | J63: 20.14 | K63: 26.26 | L63: 2.32 | N63: 4.58 | O63: 30.64 | P63: 36.76 | AL63: =ROW() -> 63
B64: Henry Hudson Bridge | D64: =HH_1Way_EZPass_2015 -> 2.54 | E64: 5.04 | F64: 7.54 | G64: 0 | H64: 0 | I64: 0 | J64: 0 | K64: 0 | L64: 1.66 | N64: 0 | O64: 0 | P64: 0 | AL64: =ROW() -> 64
B65: Marine Parkway Bridge | D65: =O107 -> 1.793 | E65: 4.293 | F65: 6.793 | G65: 4.81 | H65: 1.92 | I65: 7.88 | J65: 10.07 | K65: 13.13 | L65: 1.66 | N65: 2.41 | O65: 15.32 | P65: 18.38 | AL65: =ROW() -> 65
